Directorate,Department,Expenditure Type,Ref.Doc.1,Vendor Name,Expenditure Amount (exc VAT),Payment Date
Delivery Units,Assurance,Professional Services,1022954601,PRICEWATERHOUSE COOPERS,"20,000.00",15/03/2023
Delivery Units,Assurance,Consultants Fees,1023035602,One Eighty Advisory Limited,"14,400.00",14/03/2023
Delivery Units,Assurance,Audit Fee,1023127801,PRICEWATERHOUSE COOPERS,348.60,15/03/2023
Delivery Units,Assurance,Consultants Fees,1023586301,One Eighty Advisory Limited,"11,400.00",29/03/2023
Delivery Units,Assurance,Professional Services,1023595301,PRICEWATERHOUSE COOPERS,"19,492.00",29/03/2023
Delivery Units,Assurance,Translation Exp / Interpret,1022747102,D.A. Languages Ltd,30.90,07/03/2023
Delivery Units,Assurance,Professional Services,1022963202,National Crime Agency,290.00,16/03/2023
Delivery Units,Assurance,Professional Services,1023249602,Training Connections,845.00,20/03/2023
Delivery Units,Strategy and Resources,Other Establishments - Third P,0080063755,TRANSPORT TRADING LIMITED,"2,255,325.72",07/03/2023
Delivery Units,Strategy and Resources,Other Services,1022723902,POSTURITE LTD,924.30,10/03/2023
Delivery Units,Strategy and Resources,Other Establishments - Third P,0080063821,GLA LEVIES,"50,633.80",09/03/2023
Delivery Units,Strategy and Resources,Other Establishments - Third P,0080063820,LEE VALLEY REGIONAL PARK AUTH.,"29,737.40",09/03/2023
Delivery Units,Customer and Place,Professional Services,1023380602,THE BARNETGROUP LIMITED,"377,058.16",28/03/2023
Delivery Units,Customer and Place,Rents,1023595401,TBG Open Door Limited,150.00,30/03/2023
Delivery Units,Customer and Place,Professional Services,1023646602,THE BARNETGROUP LIMITED,"82,430.43",31/03/2023
Delivery Units,Customer and Place,Professional Services,1023647402,THE BARNETGROUP LIMITED,"120,476.65",31/03/2023
Delivery Units,Customer and Place,Ttl IT & Comms,1023647602,THE BARNETGROUP LIMITED,"126,894.18",31/03/2023
DELUNITS,Regional Enterprise,Professional Services,1023036801,Brett-Pitt Associates Limited,880.00,17/03/2023
DELUNITS,Regional Enterprise,Professional Services,1023527101,PHD Chartered Town Planners Ltd,"7,995.00",28/03/2023
Delivery Units,Customer and Place,Professional Services,1023593201,CAPITA BUSINESS SERVICES LTD,"5,174.00",30/03/2023
Delivery Units,Customer and Place,Professional Services,1023386802,LONDON BOROUGH OF EALING,"9,800.00",23/03/2023
Delivery Units,Customer and Place,Building Repairs & Maintenance,1013230902,Gemco Services Ltd,276.00,14/03/2023
Delivery Units,Customer and Place,Building Repairs & Maintenance,1020849702,Orion Building Engineering Services Ltd,90.00,03/03/2023
Delivery Units,Customer and Place,Building Repairs & Maintenance,1022198303,Orion Building Engineering Services Ltd,"97,000.00",06/03/2023
Delivery Units,Customer and Place,Building Repairs & Maintenance,1022499202,Orion Building Engineering Services Ltd,283.20,03/03/2023
Delivery Units,Customer and Place,Building Repairs & Maintenance,1022500102,Orion Building Engineering Services Ltd,"2,842.50",03/03/2023
Delivery Units,Customer and Place,Building Repairs & Maintenance,1022501402,Orion Building Engineering Services Ltd,168.74,03/03/2023
Delivery Units,Customer and Place,Building Repairs & Maintenance,1022503402,Orion Building Engineering Services Ltd,418.88,03/03/2023
Delivery Units,Customer and Place,Building Repairs & Maintenance,1022508002,Orion Building Engineering Services Ltd,818.44,03/03/2023
Delivery Units,Customer and Place,Building Repairs & Maintenance,1022676502,RGE SERVICES,230.00,10/03/2023
Delivery Units,Customer and Place,Building Repairs & Maintenance,1022715202,Integrated Water Services Ltd,157.20,22/03/2023
Delivery Units,Customer and Place,Building Repairs & Maintenance,1022718602,S W Bruce & Co Ltd,150.00,09/03/2023
Delivery Units,Customer and Place,Building Repairs & Maintenance,1022752702,S W Bruce & Co Ltd,896.25,09/03/2023
Delivery Units,Customer and Place,Building Repairs & Maintenance,1022753402,S W Bruce & Co Ltd,396.25,09/03/2023
Delivery Units,Customer and Place,Building Repairs & Maintenance,1022755202,S W Bruce & Co Ltd,"1,500.00",09/03/2023
Delivery Units,Customer and Place,Building Repairs & Maintenance,1022756302,Charles Wilson Engineers Ltd,"3,536.00",13/03/2023
Delivery Units,Customer and Place,Building Repairs & Maintenance,1022843002,Charles Wilson Engineers Ltd,"1,460.00",22/03/2023
Delivery Units,Customer and Place,Building Repairs & Maintenance,1023042002,S W Bruce & Co Ltd,253.75,16/03/2023
Delivery Units,Customer and Place,Building Repairs & Maintenance,1023042702,RGE SERVICES,230.00,27/03/2023
Delivery Units,Customer and Place,Building Repairs & Maintenance,1023044402,S W Bruce & Co Ltd,256.25,16/03/2023
Delivery Units,Customer and Place,Building Repairs & Maintenance,1023044702,S W Bruce & Co Ltd,87.00,16/03/2023
Delivery Units,Customer and Place,Building Repairs & Maintenance,1023045302,S W Bruce & Co Ltd,88.00,16/03/2023
Delivery Units,Customer and Place,Building Repairs & Maintenance,1023045502,S W Bruce & Co Ltd,138.75,16/03/2023
Delivery Units,Customer and Place,Building Repairs & Maintenance,1023077602,S W Bruce & Co Ltd,200.00,23/03/2023
Delivery Units,Customer and Place,Building Repairs & Maintenance,1023078002,S W Bruce & Co Ltd,80.00,16/03/2023
Delivery Units,Customer and Place,Building Repairs & Maintenance,1023078402,S W Bruce & Co Ltd,50.00,23/03/2023
Delivery Units,Customer and Place,Building Repairs & Maintenance,1023078502,S W Bruce & Co Ltd,80.00,23/03/2023
Delivery Units,Customer and Place,Building Repairs & Maintenance,1023078902,S W Bruce & Co Ltd,80.00,23/03/2023
Delivery Units,Customer and Place,Building Repairs & Maintenance,1023079002,S W Bruce & Co Ltd,128.75,16/03/2023
Delivery Units,Customer and Place,Building Repairs & Maintenance,1023079502,S W Bruce & Co Ltd,117.50,16/03/2023
Delivery Units,Customer and Place,Building Repairs & Maintenance,1023080202,S W Bruce & Co Ltd,142.50,23/03/2023
Delivery Units,Customer and Place,Building Repairs & Maintenance,1023080302,S W Bruce & Co Ltd,60.00,23/03/2023
Delivery Units,Customer and Place,Building Repairs & Maintenance,1023080802,S W Bruce & Co Ltd,88.00,16/03/2023
Delivery Units,Customer and Place,Building Repairs & Maintenance,1023081102,S W Bruce & Co Ltd,80.00,16/03/2023
Delivery Units,Customer and Place,Building Repairs & Maintenance,1023081302,S W Bruce & Co Ltd,70.00,16/03/2023
Delivery Units,Customer and Place,Building Repairs & Maintenance,1023081402,S W Bruce & Co Ltd,303.75,27/03/2023
Delivery Units,Customer and Place,Building Repairs & Maintenance,1023082102,S W Bruce & Co Ltd,233.75,23/03/2023
Delivery Units,Customer and Place,Building Repairs & Maintenance,1023082602,S W Bruce & Co Ltd,313.75,23/03/2023
Delivery Units,Customer and Place,Building Repairs & Maintenance,1023082702,S W Bruce & Co Ltd,88.00,16/03/2023
Delivery Units,Customer and Place,Building Repairs & Maintenance,1023084102,S W Bruce & Co Ltd,140.00,23/03/2023
Delivery Units,Customer and Place,Building Repairs & Maintenance,1023084202,S W Bruce & Co Ltd,135.00,16/03/2023
Delivery Units,Customer and Place,Building Repairs & Maintenance,1023084302,S W Bruce & Co Ltd,70.00,16/03/2023
Delivery Units,Customer and Place,Building Repairs & Maintenance,1023087802,RGE SERVICES,552.00,27/03/2023
Delivery Units,Customer and Place,Building Repairs & Maintenance,1023090103,S W Bruce & Co Ltd,80.00,31/03/2023
Delivery Units,Customer and Place,Building Repairs & Maintenance,1023090202,S W Bruce & Co Ltd,87.00,23/03/2023
Delivery Units,Customer and Place,Building Repairs & Maintenance,1023090302,S W Bruce & Co Ltd,86.00,16/03/2023
Delivery Units,Customer and Place,Building Repairs & Maintenance,1023090402,S W Bruce & Co Ltd,175.00,23/03/2023
Delivery Units,Customer and Place,Building Repairs & Maintenance,1023090702,S W Bruce & Co Ltd,217.50,23/03/2023
Delivery Units,Customer and Place,Building Repairs & Maintenance,1023090802,S W Bruce & Co Ltd,236.00,23/03/2023
Delivery Units,Customer and Place,Building Repairs & Maintenance,1023090902,S W Bruce & Co Ltd,676.00,23/03/2023
Delivery Units,Customer and Place,Building Repairs & Maintenance,1023091102,S W Bruce & Co Ltd,56.25,16/03/2023
Delivery Units,Customer and Place,Building Repairs & Maintenance,1023091202,S W Bruce & Co Ltd,80.00,16/03/2023
Delivery Units,Customer and Place,Building Repairs & Maintenance,1023091302,S W Bruce & Co Ltd,50.00,23/03/2023
Delivery Units,Customer and Place,Building Repairs & Maintenance,1023091502,S W Bruce & Co Ltd,118.75,23/03/2023
Delivery Units,Customer and Place,Building Repairs & Maintenance,1023092002,S W Bruce & Co Ltd,171.25,16/03/2023
Delivery Units,Customer and Place,Building Repairs & Maintenance,1023092202,S W Bruce & Co Ltd,325.00,23/03/2023
Delivery Units,Customer and Place,Building Repairs & Maintenance,1023092402,S W Bruce & Co Ltd,90.00,16/03/2023
Delivery Units,Customer and Place,Building Repairs & Maintenance,1023092502,S W Bruce & Co Ltd,107.50,16/03/2023
Delivery Units,Customer and Place,Building Repairs & Maintenance,1023146002,RGE SERVICES,395.00,23/03/2023
Delivery Units,Customer and Place,Building Repairs & Maintenance,1023253202,Elite Entrance Systems Ltd,997.28,23/03/2023
Delivery Units,Customer and Place,Building Repairs & Maintenance,1023288402,RGE SERVICES,275.00,23/03/2023
Delivery Units,Customer and Place,Building Repairs & Maintenance,1023341202,Integrated Water Services Ltd,"2,859.55",22/03/2023
Delivery Units,Customer and Place,Building Repairs & Maintenance,1023348602,Integrated Water Services Ltd,58.33,22/03/2023
Delivery Units,Customer and Place,Building Repairs & Maintenance,1023524702,Pirtek Watford,205.95,29/03/2023
Delivery Units,Customer and Place,Building Repairs & Maintenance,1023630402,S W Bruce & Co Ltd,410.00,31/03/2023
Delivery Units,Customer and Place,Building Repairs & Maintenance,1023645802,Sureserve Fire & Electrical Ltd,"3,008.61",30/03/2023
Delivery Units,Childrens Family Services,Professional Services,1022867702,BARNET EDUCATION AND LEARNING,"18,464.00",09/03/2023
Delivery Units,Childrens Family Services,Stationery,1023032902,ONLINE ERGONOMICS LIMITED,83.50,16/03/2023
Delivery Units,Childrens Service DSG,Other Establishments - Third P,0050065690,BROADFIELDS ACADEMY,"3,421.92",15/03/2023
Delivery Units,Childrens Service DSG,Other Establishments - Third P,0050065759,Millbrook Park Primary School,"2,297.18",15/03/2023
Delivery Units,Childrens Service DSG,Other Establishments - Third P,0050065777,PARKFIELD ACADEMY,"6,683.69",15/03/2023
Delivery Units,Childrens Service DSG,Other Establishments - Third P,0050065829,THE HYDE EF ACADEMY,"7,108.87",15/03/2023
Delivery Units,Childrens Service DSG,Other Establishments - Third P,0050065865,PARKFIELD ACADEMY,"-1,438.97",15/03/2023
Delivery Units,Childrens Service DSG,Other Services,0050066081,FOUNTAIN MONTESSORI PRE-SCHOOL,300.00,21/03/2023
Delivery Units,Childrens Service DSG,Other Services,0050066082,The Finchley Day Nursery,640.18,21/03/2023
Delivery Units,Childrens Service DSG,Education CFR Funding Advances,0020065015,BEIS SOROH SCHNEIRER,"22,450.23",29/03/2023
Delivery Units,Childrens Service DSG,Education CFR Funding Advances,0020065020,BROADFIELDS ACADEMY,"12,367.43",29/03/2023
Delivery Units,Childrens Service DSG,Education CFR Funding Advances,0020065026,Claremont Primary School Academy,"9,805.76",29/03/2023
Delivery Units,Childrens Service DSG,Education CFR Funding Advances,0020065031,BEIS CHINUCH PRIMARY SCHOOL,"4,187.49",29/03/2023
Delivery Units,Childrens Service DSG,Education CFR Funding Advances,0020065034,Finchley Yochien,"3,999.27",29/03/2023
Delivery Units,Childrens Service DSG,Education CFR Funding Advances,0020065039,HENDON PREPARATORY SCHOOL,"25,319.25",29/03/2023
Delivery Units,Childrens Service DSG,Education CFR Funding Advances,0020065043,INDEPENDENT JEWISH DAY SCHOOL,"2,828.13",29/03/2023
Delivery Units,Childrens Service DSG,Education CFR Funding Advances,0020065045,The Mill Hill Foundation,"3,828.33",29/03/2023
Delivery Units,Childrens Service DSG,Education CFR Funding Advances,0020065051,Millbrook Park Primary School,"12,313.29",29/03/2023
Delivery Units,Childrens Service DSG,Education CFR Funding Advances,0020065053,NANCY REUBEN PRIMARY SCHOOL,"26,381.52",29/03/2023
Delivery Units,Childrens Service DSG,Education CFR Funding Advances,0020065057,PARKFIELD ACADEMY,"16,732.50",29/03/2023
Delivery Units,Childrens Service DSG,Education CFR Funding Advances,0020065058,Peninim Primary School,"28,100.49",29/03/2023
Delivery Units,Childrens Service DSG,Education CFR Funding Advances,0020065062,St Anthony's School for Girls,"2,056.44",29/03/2023
Delivery Units,Childrens Service DSG,Education CFR Funding Advances,0020065071,Summerside Primary Academy,"9,822.69",29/03/2023
Delivery Units,Childrens Service DSG,Education CFR Funding Advances,0020065073,THE HYDE EF ACADEMY,"16,168.44",29/03/2023
Delivery Units,Childrens Service DSG,Private Contractors - Third Pa,0080064222,Mara Nursery,935.90,17/03/2023
Delivery Units,Childrens Service DSG,Private Contractors - Third Pa,0080064531,Abracadabra Preschool Nursery,754.80,24/03/2023
Delivery Units,Childrens Service DSG,Private Contractors - Third Pa,0080064534,Abracadabra Preschool Nursery,377.40,24/03/2023
Delivery Units,Childrens Service DSG,Private Contractors - Third Pa,0080064569,ELY NURSERY,138.39,28/03/2023
Delivery Units,Childrens Service DSG,Private Contractors - Third Pa,0080064572,LITTLE LEO'S NURSERY,344.56,27/03/2023
Delivery Units,Childrens Service DSG,Private Contractors - Third Pa,0080064605,BuzyBees Childcare Ltd T/A Blue Nest,503.25,27/03/2023
Delivery Units,Childrens Service DSG,Private Contractors - Third Pa,0080064663,BuzyBees Childcare Ltd T/A Blue Nest,"1,207.80",29/03/2023
Delivery Units,Childrens Service DSG,Private Contractors - Third Pa,0080064676,SPARKLER'S  NURSERY,201.30,29/03/2023
Delivery Units,Childrens Service DSG,Private Contractors - Third Pa,0080064567,Kidz Choice Nursery,704.55,28/03/2023
Delivery Units,Childrens Family Services,Cleaning and domestic material,1019283602,BIRKIN CLEANING SERVICES LTD,"1,261.02",20/03/2023
Delivery Units,Childrens Family Services,Other Services,1023003201,LEE SECURITY LONDON LIMITED,77.00,10/03/2023
Delivery Units,Childrens Family Services,Other Agencies - Third Party P,1023033201,GLS Education Services Ltd,139.97,13/03/2023
Delivery Units,Childrens Family Services,Other Agencies - Third Party P,1023033601,GLS Education Services Ltd,10.00,13/03/2023
Delivery Units,Childrens Family Services,Other Agencies - Third Party P,1023035902,GLS Education Services Ltd,29.94,13/03/2023
Delivery Units,Childrens Family Services,Equipment and Materials Purcha,1023041902,ClearCall2000 LTD,44.10,13/03/2023
Delivery Units,Childrens Family Services,Cleaning and domestic material,1023078801,Cleantec Services Ltd,"1,118.24",14/03/2023
Delivery Units,Childrens Family Services,Equipment and Materials Purcha,1022861502,Norse Commercial Services Ltd,56.92,16/03/2023
Delivery Units,Childrens Family Services,Cleaning and domestic material,1022866402,Norse Commercial Services Ltd,639.16,15/03/2023
Delivery Units,Childrens Family Services,Equipment and Materials Purcha,1023396302,Norse Commercial Services Ltd,56.92,27/03/2023
Delivery Units,Childrens Family Services,Electricity,1023439301,KENT COUNTY COUNCIL (KCS),"1,162.85",24/03/2023
Delivery Units,Childrens Family Services,Gas,1023440802,KENT COUNTY COUNCIL (KCS),875.10,27/03/2023
Delivery Units,Childrens Family Services,Cleaning and domestic material,1022863902,Norse Commercial Services Ltd,479.51,15/03/2023
Delivery Units,Childrens Family Services,Equipment and Materials Purcha,1022864202,Norse Commercial Services Ltd,55.04,15/03/2023
Delivery Units,Childrens Family Services,Equipment and Materials Purcha,1023398001,Norse Commercial Services Ltd,55.04,23/03/2023
Delivery Units,Childrens Family Services,Electricity,1018193101,KENT COUNTY COUNCIL (KCS),-319.58,24/03/2023
Delivery Units,Childrens Family Services,Electricity,1018195401,KENT COUNTY COUNCIL (KCS),-324.02,24/03/2023
Delivery Units,Childrens Family Services,Electricity,1018196001,KENT COUNTY COUNCIL (KCS),-617.71,24/03/2023
Delivery Units,Childrens Family Services,Electricity,1018196101,KENT COUNTY COUNCIL (KCS),-607.66,24/03/2023
Delivery Units,Childrens Family Services,Electricity,1018196301,KENT COUNTY COUNCIL (KCS),-806.84,24/03/2023
Delivery Units,Childrens Family Services,Electricity,1018197201,KENT COUNTY COUNCIL (KCS),-948.67,24/03/2023
Delivery Units,Childrens Family Services,Electricity,1020402801,KENT COUNTY COUNCIL (KCS),-221.58,24/03/2023
Delivery Units,Childrens Family Services,Gas,1023530602,KENT COUNTY COUNCIL (KCS),96.45,28/03/2023
Delivery Units,Childrens Family Services,Gas,1023531502,KENT COUNTY COUNCIL (KCS),339.64,28/03/2023
Delivery Units,Childrens Family Services,Electricity,1023531702,KENT COUNTY COUNCIL (KCS),388.43,28/03/2023
Delivery Units,Childrens Family Services,Electricity,1023531801,KENT COUNTY COUNCIL (KCS),825.43,28/03/2023
Delivery Units,Childrens Family Services,Gas,1023532801,KENT COUNTY COUNCIL (KCS),702.91,28/03/2023
Delivery Units,Childrens Family Services,Other Agencies - Third Party P,1023582302,KENT COUNTY COUNCIL (KCS),302.75,29/03/2023
Delivery Units,Childrens Family Services,Gas,1023582402,KENT COUNTY COUNCIL (KCS),87.73,29/03/2023
Delivery Units,Childrens Family Services,Professional Services,1022870301,New Enterprise Pest,75.00,07/03/2023
Delivery Units,Childrens Family Services,Contract Cleaning,1022871601,Norse Commercial Services Ltd,795.17,07/03/2023
Delivery Units,Childrens Family Services,Electricity,1022916801,EDF ENERGY CUSTOMERS PLC,949.51,14/03/2023
Delivery Units,Childrens Family Services,Other Agencies - Third Party P,1022870602,OFSTED,220.00,10/03/2023
Delivery Units,Childrens Family Services,Operational Leases - Equipment,1020944501,Canon (UK) limited,-83.87,03/03/2023
Delivery Units,Childrens Family Services,Operational Leases - Equipment,1022712501,Canon (UK) limited,10.58,03/03/2023
Delivery Units,Childrens Family Services,Operational Leases - Equipment,1022712701,Canon (UK) limited,90.85,03/03/2023
Delivery Units,Childrens Family Services,Operational Leases - Equipment,1022712801,Canon (UK) limited,4.07,03/03/2023
Delivery Units,Childrens Family Services,Operational Leases - Equipment,1022713201,Canon (UK) limited,9.68,06/03/2023
Delivery Units,Childrens Family Services,Operational Leases - Equipment,1022713301,Canon (UK) limited,0.20,06/03/2023
Delivery Units,Childrens Family Services,Operational Leases - Equipment,1022713501,Canon (UK) limited,90.85,06/03/2023
Delivery Units,Childrens Family Services,Operational Leases - Equipment,1022713601,Canon (UK) limited,90.85,06/03/2023
Delivery Units,Childrens Family Services,Operational Leases - Equipment,1022713701,Canon (UK) limited,90.85,03/03/2023
Delivery Units,Childrens Family Services,Operational Leases - Equipment,1022713801,Canon (UK) limited,90.85,03/03/2023
Delivery Units,Childrens Family Services,Operational Leases - Equipment,1022714101,Canon (UK) limited,90.85,06/03/2023
Delivery Units,Childrens Family Services,Operational Leases - Equipment,1022714201,Canon (UK) limited,3.76,06/03/2023
Delivery Units,Childrens Family Services,Operational Leases - Equipment,1022714601,Canon (UK) limited,64.30,03/03/2023
Delivery Units,Childrens Family Services,Operational Leases - Equipment,1022714701,Canon (UK) limited,90.85,03/03/2023
Delivery Units,Childrens Family Services,Operational Leases - Equipment,1022714801,Canon (UK) limited,90.85,06/03/2023
Delivery Units,Childrens Family Services,Operational Leases - Equipment,1022715601,Canon (UK) limited,90.85,06/03/2023
Delivery Units,Childrens Family Services,Operational Leases - Equipment,1022715701,Canon (UK) limited,14.40,03/03/2023
Delivery Units,Childrens Family Services,Operational Leases - Equipment,1022715901,Canon (UK) limited,4.39,03/03/2023
Delivery Units,Childrens Family Services,Operational Leases - Equipment,1022716201,Canon (UK) limited,0.06,06/03/2023
Delivery Units,Childrens Family Services,Operational Leases - Equipment,1022716601,Canon (UK) limited,8.62,03/03/2023
Delivery Units,Childrens Family Services,Operational Leases - Equipment,1022716701,Canon (UK) limited,5.96,03/03/2023
Delivery Units,Childrens Family Services,Operational Leases - Equipment,1022717001,Canon (UK) limited,90.85,03/03/2023
Delivery Units,Childrens Family Services,Other Services,1023142601,BLUE 9 SECURITY LIMITED,"1,708.14",15/03/2023
Delivery Units,Childrens Family Services,Other Services,1023142901,BLUE 9 SECURITY LIMITED,148.16,15/03/2023
Delivery Units,Childrens Family Services,Other Services,1023143301,BLUE 9 SECURITY LIMITED,122.01,15/03/2023
Delivery Units,Childrens Family Services,Other Services,1023144101,Enigma CCTV Ltd,"5,124.90",15/03/2023
Delivery Units,Childrens Family Services,Other Services,1023144801,BLUE 9 SECURITY LIMITED,69.72,20/03/2023
Delivery Units,Childrens Family Services,Other Services,1023145201,BLUE 9 SECURITY LIMITED,"1,673.28",15/03/2023
Delivery Units,Childrens Family Services,Other Services,1023145501,BLUE 9 SECURITY LIMITED,"1,806.00",15/03/2023
Delivery Units,Childrens Family Services,Other Services,1023290501,1ST CONTAINERS UK LIMITED,28.00,21/03/2023
Delivery Units,Childrens Family Services,Operational Leases - Equipment,1023532401,Canon (UK) limited,90.85,28/03/2023
Delivery Units,Childrens Family Services,Operational Leases - Equipment,1023532901,Canon (UK) limited,90.85,28/03/2023
Delivery Units,Childrens Family Services,Operational Leases - Equipment,1023539303,Canon (UK) limited,"1,051.24",30/03/2023
Delivery Units,Childrens Family Services,Operational Leases - Equipment,1023540101,Canon (UK) limited,90.85,28/03/2023
Delivery Units,Childrens Family Services,Operational Leases - Equipment,1023541801,Canon (UK) limited,90.85,28/03/2023
Delivery Units,Childrens Family Services,Operational Leases - Equipment,1023584601,Canon (UK) limited,90.85,29/03/2023
Delivery Units,Childrens Family Services,Operational Leases - Equipment,1023586401,Canon (UK) limited,90.85,29/03/2023
Delivery Units,Childrens Family Services,Books-CDs-Audio-Video,0021006256,Colindale Local Ltd,117.60,22/03/2023
Delivery Units,Childrens Family Services,Books-CDs-Audio-Video,0021006258,Mill Hill Newsagents Ltd,122.80,22/03/2023
Delivery Units,Childrens Family Services,Books-CDs-Audio-Video,0021006259,DX NETWORK SERVICES LTD,12.97,22/03/2023
Delivery Units,Childrens Family Services,Books-CDs-Audio-Video,0021006262,Digital Content Associates,"3,990.00",22/03/2023
Delivery Units,Childrens Family Services,Books-CDs-Audio-Video,0021006263,Malhotra News Agent Ltd,255.50,22/03/2023
Delivery Units,Childrens Family Services,Books-CDs-Audio-Video,0021006266,Latitude Mapping Ltd,347.65,22/03/2023
Delivery Units,Childrens Family Services,Books-CDs-Audio-Video,0021006268,Malhotra News Agent Ltd,242.40,23/03/2023
Delivery Units,Childrens Family Services,Books-CDs-Audio-Video,0021006270,ASKEWS & HOLTS LIBRARY SERVICES LTD,5.46,23/03/2023
Delivery Units,Childrens Family Services,Books-CDs-Audio-Video,0021006272,ASKEWS & HOLTS LIBRARY SERVICES LTD,16.59,23/03/2023
Delivery Units,Childrens Family Services,Books-CDs-Audio-Video,0021006274,ASKEWS & HOLTS LIBRARY SERVICES LTD,5.46,23/03/2023
Delivery Units,Childrens Family Services,Books-CDs-Audio-Video,0021006279,ASKEWS & HOLTS LIBRARY SERVICES LTD,11.38,23/03/2023
Delivery Units,Childrens Family Services,Books-CDs-Audio-Video,0021006291,ASKEWS & HOLTS LIBRARY SERVICES LTD,32.76,23/03/2023
Delivery Units,Childrens Family Services,Books-CDs-Audio-Video,0021006294,ASKEWS & HOLTS LIBRARY SERVICES LTD,32.76,23/03/2023
Delivery Units,Childrens Family Services,Books-CDs-Audio-Video,0021006296,ASKEWS & HOLTS LIBRARY SERVICES LTD,32.76,23/03/2023
Delivery Units,Childrens Family Services,Books-CDs-Audio-Video,0021006299,ASKEWS & HOLTS LIBRARY SERVICES LTD,5.46,23/03/2023
Delivery Units,Childrens Family Services,Books-CDs-Audio-Video,0021006300,ASKEWS & HOLTS LIBRARY SERVICES LTD,32.76,23/03/2023
Delivery Units,Childrens Family Services,Books-CDs-Audio-Video,0021006303,ASKEWS & HOLTS LIBRARY SERVICES LTD,27.30,23/03/2023
Delivery Units,Childrens Family Services,Books-CDs-Audio-Video,0021006305,ASKEWS & HOLTS LIBRARY SERVICES LTD,27.30,23/03/2023
Delivery Units,Childrens Family Services,Books-CDs-Audio-Video,0021006306,ASKEWS & HOLTS LIBRARY SERVICES LTD,32.76,23/03/2023
Delivery Units,Childrens Family Services,Books-CDs-Audio-Video,0021006308,ASKEWS & HOLTS LIBRARY SERVICES LTD,6.03,23/03/2023
Delivery Units,Childrens Family Services,Books-CDs-Audio-Video,0021006317,ASKEWS & HOLTS LIBRARY SERVICES LTD,26.59,23/03/2023
Delivery Units,Childrens Family Services,Books-CDs-Audio-Video,0021006325,ASKEWS & HOLTS LIBRARY SERVICES LTD,26.59,23/03/2023
Delivery Units,Childrens Family Services,Books-CDs-Audio-Video,0021006328,OXFORD UNIVERSITY PRESS,"7,005.10",24/03/2023
Delivery Units,Childrens Family Services,Books-CDs-Audio-Video,0021006254,CONFAGS,240.60,22/03/2023
Delivery Units,Childrens Family Services,Books-CDs-Audio-Video,0021006264,GOSH COMICS,452.70,22/03/2023
Delivery Units,Childrens Family Services,Books-CDs-Audio-Video,0021006265,GOSH COMICS,"3,930.49",22/03/2023
Delivery Units,Childrens Family Services,Other Services,1022865102,Norse Commercial Services Ltd,32.39,13/03/2023
Delivery Units,Childrens Family Services,Other Services,1023433602,Norse Commercial Services Ltd,32.39,29/03/2023
Delivery Units,Childrens Family Services,Cleaning and domestic material,1023435001,Norse Commercial Services Ltd,"2,121.70",24/03/2023
Delivery Units,Childrens Family Services,Other Services,1022863002,Norse Commercial Services Ltd,62.59,13/03/2023
Delivery Units,Childrens Family Services,Other Services,1023433502,Norse Commercial Services Ltd,62.59,28/03/2023
Delivery Units,Childrens Family Services,Cleaning and domestic material,1023433701,Norse Commercial Services Ltd,"2,403.40",24/03/2023
Delivery Units,Childrens Family Services,Other Services,1022863102,Norse Commercial Services Ltd,15.83,13/03/2023
Delivery Units,Childrens Family Services,Other Services,1023396502,Norse Commercial Services Ltd,15.83,29/03/2023
Delivery Units,Childrens Family Services,Cleaning and domestic material,1023434001,Norse Commercial Services Ltd,479.51,24/03/2023
Delivery Units,Childrens Family Services,Cleaning and domestic material,1022726401,Banner Group Limited,-6.39,23/03/2023
Delivery Units,Childrens Family Services,Other Services,1022862902,Norse Commercial Services Ltd,27.52,13/03/2023
Delivery Units,Childrens Family Services,Cleaning and domestic material,1023433801,Norse Commercial Services Ltd,"1,057.93",24/03/2023
Delivery Units,Childrens Family Services,Other Services,1023434602,Norse Commercial Services Ltd,27.52,29/03/2023
Delivery Units,Childrens Family Services,Other Services,1022864602,Norse Commercial Services Ltd,15.83,13/03/2023
Delivery Units,Childrens Family Services,Other Services,1023433402,Norse Commercial Services Ltd,15.83,29/03/2023
Delivery Units,Childrens Family Services,Cleaning and domestic material,1023434701,Norse Commercial Services Ltd,479.01,24/03/2023
Delivery Units,Childrens Family Services,Other Services,1022863602,Norse Commercial Services Ltd,28.25,13/03/2023
Delivery Units,Childrens Family Services,Other Services,1023434102,Norse Commercial Services Ltd,28.25,29/03/2023
Delivery Units,Childrens Family Services,Cleaning and domestic material,1023434301,Norse Commercial Services Ltd,640.00,24/03/2023
Delivery Units,Childrens Family Services,Other Services,1022867002,Norse Commercial Services Ltd,19.97,13/03/2023
Delivery Units,Childrens Family Services,Cleaning and domestic material,1023397301,Norse Commercial Services Ltd,479.51,23/03/2023
Delivery Units,Childrens Family Services,Other Services,1023397802,Norse Commercial Services Ltd,19.97,29/03/2023
Delivery Units,Childrens Family Services,Other Services,1021857401,Norse Commercial Services Ltd,-9.06,07/03/2023
Delivery Units,Childrens Family Services,Other Services,1022863802,Norse Commercial Services Ltd,24.11,13/03/2023
Delivery Units,Childrens Family Services,Other Services,1023433902,Norse Commercial Services Ltd,24.11,28/03/2023
Delivery Units,Childrens Family Services,Cleaning and domestic material,1023434401,Norse Commercial Services Ltd,638.74,24/03/2023
Delivery Units,Childrens Family Services,Gas,1022325901,KENT COUNTY COUNCIL (KCS),-57.36,06/03/2023
Delivery Units,Childrens Family Services,Gas,1022715802,KENT COUNTY COUNCIL (KCS),776.90,06/03/2023
Delivery Units,Childrens Family Services,Electricity,1023640801,KENT COUNTY COUNCIL (KCS),"1,887.64",30/03/2023
Delivery Units,Childrens Family Services,Gas,1023641501,KENT COUNTY COUNCIL (KCS),519.97,30/03/2023
Delivery Units,Childrens Family Services,Stationery,1023194401,READ - THE READING AGENCY LTD,"4,452.00",16/03/2023
Delivery Units,Strategy and Resources,COMMUNICATION REAL,1021897003,ACCESS INTELLIGENCE MEDIA,"4,410.00",13/03/2023
Delivery Units,Strategy and Resources,Advertising,1023387801,GOOD IMPRESSIONS (LONDON) LIMITED,180.00,23/03/2023
Delivery Units,Strategy and Resources,Advertising,1023389501,GOOD IMPRESSIONS (LONDON) LIMITED,"1,200.00",23/03/2023
Delivery Units,Assurance,Printing-Contract,1023686501,Civica Election Services Limit,"87,029.82",31/03/2023
Delivery Units,Assurance,Professional Services,1023003302,ASSOCIATION OF ELECTORAL ADMINISTRA,"9,380.65",15/03/2023
Delivery Units,Assurance,Rents,1023471901,ROYAL AIR FORCE MUSEUM,"9,600.00",27/03/2023
Delivery Units,Assurance,Other Services,1023003701,HSS Hire Group PLC,"1,094.40",16/03/2023
Delivery Units,Assurance,Rents,1023251201,PORTAKABIN LTD,"4,722.00",20/03/2023
Delivery Units,Assurance,Stationery,1023387001,GOOD IMPRESSIONS (LONDON) LIMITED,240.00,23/03/2023
Delivery Units,Assurance,Training,1023150002,South East Employers,"11,500.00",16/03/2023
Delivery Units,Childrens Family Services,Professional Services,0070182035,Reddo Recruitment Limited,"3,980.63",15/03/2023
Delivery Units,Childrens Family Services,Legal and Court Fees,0070181205,OSBORNES SOLICITORS,380.00,07/03/2023
Delivery Units,Customer and Place,Equipment and Materials Purcha,1021238903,Solo Protect Ltd,"1,651.50",27/03/2023
Delivery Units,Customer and Place,Equipment and Materials Purcha,1023588801,Solo Protect Ltd,"1,651.50",29/03/2023
Delivery Units,Customer and Place,Equipment and Materials Purcha,1020593903,STORM ENVIRONMENTAL LTD,"20,529.60",07/03/2023
Delivery Units,Customer and Place,Equipment and Materials Purcha,1023252601,FAIRPORT CONTAINERS,"3,576.56",21/03/2023
Delivery Units,Customer and Place,Equipment and Materials Purcha,1023434801,SSI SCHAEFER LTD,"7,080.00",24/03/2023
Delivery Units,Customer and Place,Equipment and Materials Purcha,1023645201,SSI SCHAEFER LTD,"1,060.00",30/03/2023
Delivery Units,Customer and Place,Weedspray,1023689801,Weedfree Ltd,"37,383.00",31/03/2023
Delivery Units,Customer and Place,Equipment and Materials Purcha,1022604102,Keep Britain Tidy,"4,625.00",01/03/2023
Delivery Units,Customer and Place,Equipment and Materials Purcha,1022756202,Keep Britain Tidy,"4,625.00",08/03/2023
Delivery Units,Customer and Place,Training,1022696001,SKILLS TRAINING CENTRE LTD,"2,396.00",03/03/2023
Delivery Units,Customer and Place,General Office Expenses,1022713102,Banner Group Limited,379.20,07/03/2023
Delivery Units,Customer and Place,Training,1022761501,SKILLS TRAINING CENTRE LTD,"19,053.00",07/03/2023
Delivery Units,Customer and Place,Training,1022762201,SKILLS TRAINING CENTRE LTD,"8,972.00",07/03/2023
Delivery Units,Customer and Place,Clothing - Protective Clothing,1023253301,SMI INT Group Ltd,14.85,21/03/2023
Delivery Units,Customer and Place,Clothing - Protective Clothing,1023253802,SMI INT Group Ltd,130.65,21/03/2023
Delivery Units,Customer and Place,Clothing - Protective Clothing,1023347702,SMI INT Group Ltd,750.00,22/03/2023
Delivery Units,Customer and Place,Clothing - Protective Clothing,1023438102,SMI INT Group Ltd,216.45,27/03/2023
Delivery Units,Customer and Place,Training,1023594601,SKILLS TRAINING CENTRE LTD,"6,499.00",29/03/2023
Delivery Units,Customer and Place,Clothing - Protective Clothing,1023688802,SMI INT Group Ltd,33.62,31/03/2023
Delivery Units,Customer and Place,Equipment and Materials Purcha,1023079301,EverywhereK,95.00,17/03/2023
Delivery Units,Customer and Place,Equipment and Materials Purcha,1023252701,The Local News,125.00,20/03/2023
Delivery Units,Customer and Place,Equipment and Materials Purcha,1023341602,The Seasonal Circular Ltd,150.00,22/03/2023
Delivery Units,Customer and Place,Advertising,1023474101,Starr Brothers Films Limited,772.20,28/03/2023
Delivery Units,Customer and Place,Equipment and Materials Purcha,1023631002,SYNLAB Laboratory Services,132.93,30/03/2023
Delivery Units,Adults and Health,Other Transfer Payments to Soc,1023468201,Trojan Consultants Ltd,"13,560.00",27/03/2023
Delivery Units,Adults and Health,Software Licences & Support,1020594003,Access UK Ltd,"1,389.75",14/03/2023
Delivery Units,Adults and Health,Software Licences & Support,1022865301,Access UK Ltd,"1,389.75",14/03/2023
Delivery Units,Adults and Health,Ttl IT & Comms,1022865501,Access UK Ltd,"9,067.50",16/03/2023
Delivery Units,Adults and Health,Training,1023682001,Hasca Ltd,"1,300.00",30/03/2023
Delivery Units,Adults and Health,Health authorities - Third Par,1023284402,NHS North Central London ICB,"37,882.88",21/03/2023
Delivery Units,Adults and Health,Other Services,1022687501,National Association of Financial  Asses,200.00,01/03/2023
Delivery Units,Adults and Health,Other Services,1022687601,National Association of Financial  Asses,200.00,01/03/2023
Delivery Units,Adults and Health,Other Services,1022366804,BARNET EDUCATION AND LEARNING,195.00,17/03/2023
Delivery Units,Adults and Health,Other Services,1022367804,BARNET EDUCATION AND LEARNING,33.24,17/03/2023
Delivery Units,Adults and Health,Other Services,1022368503,BARNET EDUCATION AND LEARNING,150.00,17/03/2023
Delivery Units,Adults and Health,Professional Services,1022743601,Eduhez Ltd,700.00,06/03/2023
Delivery Units,Adults and Health,Other Services,1022919202,BARNET EDUCATION AND LEARNING,156.00,16/03/2023
Delivery Units,Adults and Health,Other Services,1023042502,BARNET EDUCATION AND LEARNING,192.96,16/03/2023
Delivery Units,Adults and Health,Other Services,1023043902,BARNET EDUCATION AND LEARNING,22.00,16/03/2023
Delivery Units,Adults and Health,Other Transfer Payments to Soc,1023236601,IMPOWER CONSULTING LIMITED,"69,566.03",17/03/2023
Delivery Units,Adults and Health,Other Services,1023253002,Barnet Homes,917.43,20/03/2023
Delivery Units,Adults and Health,Legal and Court Fees,1023383501,THOMPSONS SOLICITORS,350.00,23/03/2023
Delivery Units,Adults and Health,Subscriptions,1023193002,ASSOCIATION OF DIRECTORS ADULT,"2,366.00",22/03/2023
Delivery Units,Adults and Health,Subscriptions,1023193902,ASSOCIATION OF DIRECTORS ADULT,"2,484.00",21/03/2023
Delivery Units,Adults and Health,Other Services,1022716501,East London Cleaners Ltd,458.33,03/03/2023
Delivery Units,Adults and Health,Other Services,1022831401,East London Cleaners Ltd,266.67,07/03/2023
Delivery Units,Adults and Health,Other Services,1022834401,East London Cleaners Ltd,300.00,06/03/2023
Delivery Units,Adults and Health,Other Services,1022909403,East London Cleaners Ltd,312.50,10/03/2023
Delivery Units,Adults and Health,Other Services,1023031801,East London Cleaners Ltd,166.67,13/03/2023
Delivery Units,Public Health,Health authorities - Third Par,1022961602,Central & North West London NHS FT,"4,258.93",09/03/2023
Delivery Units,Public Health,Health authorities - Third Par,1023484002,Central & North West London NHS FT,"11,500.00",29/03/2023
Delivery Units,Public Health,Health authorities - Third Par,1009251201,King's College Hospital NHS Foundation T,-285.41,10/03/2023
Delivery Units,Public Health,Health authorities - Third Par,1020935702,CENTRAL LONDONCOMMUNITY HEALTHCARE,962.00,16/03/2023
Delivery Units,Public Health,Health authorities - Third Par,1021124703,CENTRAL LONDONCOMMUNITY HEALTHCARE,35.80,16/03/2023
Delivery Units,Public Health,Health authorities - Third Par,1021896002,King's College Hospital NHS Foundation T,275.74,10/03/2023
Delivery Units,Public Health,Health authorities - Third Par,1022948003,University Hospitals Birmingham,98.75,31/03/2023
Delivery Units,Public Health,Health authorities - Third Par,1022949003,University Hospitals Birmingham,98.75,31/03/2023
Delivery Units,Public Health,Health authorities - Third Par,1022949902,Guy's and St Thomas' NHS FT,"17,025.16",23/03/2023
Delivery Units,Public Health,Health authorities - Third Par,1022959702,Lewisham and Greenwich NHS Trust,553.62,10/03/2023
Delivery Units,Public Health,Health authorities - Third Par,1022961202,Homerton University Hospital,52.66,10/03/2023
Delivery Units,Public Health,Health authorities - Third Par,1022961302,King's College Hospital NHS Foundation T,275.74,10/03/2023
Delivery Units,Public Health,Health authorities - Third Par,1022961502,Homerton University Hospital,"1,198.98",09/03/2023
Delivery Units,Public Health,Health authorities - Third Par,1022961702,Central & North West London NHS FT,162.75,09/03/2023
Delivery Units,Public Health,Health authorities - Third Par,1023192802,University Hosp Sussex NHS FT,129.95,16/03/2023
Delivery Units,Public Health,Health authorities - Third Par,1023251502,CENTRAL LONDONCOMMUNITY HEALTHCARE,829.00,23/03/2023
Delivery Units,Public Health,Health authorities - Third Par,1023467602,Chelsea & Westminster Hospital,"1,905.48",27/03/2023
Delivery Units,Public Health,Health authorities - Third Par,1023468802,North Middlesex University Hos,"12,849.89",27/03/2023
Delivery Units,Public Health,Health authorities - Third Par,1023469002,Chelsea & Westminster Hospital,742.84,27/03/2023
Delivery Units,Public Health,Health authorities - Third Par,1023471102,Chelsea & Westminster Hospital,"39,866.70",27/03/2023
Delivery Units,Public Health,Health authorities - Third Par,1023471402,Central & North West London NHS FT,154.64,27/03/2023
Delivery Units,Public Health,Health authorities - Third Par,1023474202,Chelsea & Westminster Hospital,"2,218.30",27/03/2023
Delivery Units,Public Health,Health authorities - Third Par,1023476902,King's College Hospital NHS Foundation T,275.74,28/03/2023
Delivery Units,Public Health,Health authorities - Third Par,1023481702,London North West Healthcare NHS Trust,"6,512.72",27/03/2023
Delivery Units,Public Health,Health authorities - Third Par,1023628802,Nottingham University Hospitals Trust,28.85,30/03/2023
Delivery Units,Public Health,Health authorities - Third Par,1023631702,University Hospitals Birmingham,291.06,30/03/2023
Delivery Units,Public Health,Health authorities - Third Par,1023253601,Change Grow Live Services Ltd,"587,349.82",21/03/2023
Delivery Units,Public Health,Health authorities - Third Par,1023254801,Change Grow Live Services Ltd,"49,885.10",21/03/2023
Delivery Units,Public Health,Other Services,1021695503,MHFA England,320.00,27/03/2023
Delivery Units,Public Health,Other Services,1022726001,Childwise Research Limited,"2,000.00",06/03/2023
Delivery Units,Public Health,Other Transfer Payments to Soc,1022741702,Kooth Digital Health Limited,"5,835.50",07/03/2023
Delivery Units,Public Health,Other Transfer Payments to Soc,1022752101,Kooth Digital Health Limited,"5,835.50",07/03/2023
Delivery Units,Public Health,Other Services,1023468101,BARNET EDUCATION AND LEARNING,"16,080.00",27/03/2023
Delivery Units,Public Health,Other Services,1023530101,BARNET EDUCATION AND LEARNING,900.00,28/03/2023
Delivery Units,Public Health,Other Services,1023583502,GOOD IMPRESSIONS (LONDON) LIMITED,360.00,29/03/2023
Delivery Units,Public Health,Other Services,1023646301,BARNET EDUCATION AND LEARNING,875.00,30/03/2023
Delivery Units,Strategy and Resources,EBS Funding,0050065438,avis irene clark,400.00,09/03/2023
Delivery Units,Adults and Health,Professional Services,1021164003,Recruitment Team Nine Limited,295.00,17/03/2023
Delivery Units,Adults and Health,Professional Services,1022744801,Recruitment Team Nine Limited,"1,155.00",06/03/2023
Delivery Units,Adults and Health,Professional Services,1022960902,Recruitment Team Nine Limited,590.00,09/03/2023
Delivery Units,Adults and Health,Professional Services,1023195802,Recruitment Team Nine Limited,295.00,22/03/2023
Delivery Units,Adults and Health,Professional Services,1023241802,Aisa Medical Ltd,"2,656.18",20/03/2023
Delivery Units,Adults and Health,Professional Services,1023385802,Recruitment Team Nine Limited,590.00,27/03/2023
Delivery Units,Adults and Health,Professional Services,1023628201,Peaceable Habitation Ltd,677.15,31/03/2023
Delivery Units,Adults and Health,Other Transfer Payments to Soc,1022366702,BARNET EDUCATION AND LEARNING,110.00,07/03/2023
Delivery Units,Adults and Health,Other Services,1022727002,Banner Group Limited,20.36,09/03/2023
Delivery Units,Adults and Health,Other Services,1022862302,The Direct Office Supply Co Ltd,99.00,09/03/2023
Delivery Units,Adults and Health,Other Transfer Payments to Soc,1022871902,BACK CARE SOLUTIONS LIMITED,411.16,17/03/2023
Delivery Units,Adults and Health,Ttl IT & Comms,1023242101,P A Consulting Services Ltd,"145,833.33",21/03/2023
Delivery Units,Adults and Health,Other Agencies - Third Party P,0090557346,AUTUMN GARDENS,"-1,885.71",09/03/2023
Delivery Units,Adults and Health,Other Agencies - Third Party P,0090561741,CARLTON COURT (TLC GROUP),"6,800.00",06/03/2023
Delivery Units,Adults and Health,Other Agencies - Third Party P,0090561752,CARLTON COURT (TLC GROUP),"4,363.24",06/03/2023
Delivery Units,Adults and Health,Other Agencies - Third Party P,0090561892,CARLTON COURT (TLC GROUP),"4,363.24",06/03/2023
Delivery Units,Adults and Health,Other Agencies - Third Party P,0090561970,CARLTON COURT (TLC GROUP),"6,000.00",06/03/2023
Delivery Units,Adults and Health,Other Agencies - Third Party P,0090562646,AUTUMN GARDENS,"3,440.00",09/03/2023
Delivery Units,Adults and Health,Other Agencies - Third Party P,0090562647,AUTUMN GARDENS,"4,800.00",09/03/2023
Delivery Units,Adults and Health,Other Agencies - Third Party P,0090562648,AUTUMN GARDENS,"4,800.00",09/03/2023
Delivery Units,Adults and Health,Other Agencies - Third Party P,0090562649,AUTUMN GARDENS,"4,800.00",09/03/2023
Delivery Units,Adults and Health,Other Agencies - Third Party P,0090566511,BENSLOW MANAGEMENT COMPANY LIMITED,"4,262.06",16/03/2023
Delivery Units,Adults and Health,Other Agencies - Third Party P,0090567558,ASPEN VILLAGES LTD,"2,873.35",20/03/2023
Delivery Units,Adults and Health,Other Agencies - Third Party P,0090570448,CARLTON COURT (TLC GROUP),"6,000.00",22/03/2023
Delivery Units,Adults and Health,Other Agencies - Third Party P,0090570536,CARLTON COURT (TLC GROUP),"6,800.00",22/03/2023
Delivery Units,Adults and Health,Other Agencies - Third Party P,0090570546,CARLTON COURT (TLC GROUP),"4,363.24",22/03/2023
Delivery Units,Adults and Health,Other Agencies - Third Party P,0090570681,CARLTON COURT (TLC GROUP),"4,363.24",22/03/2023
Delivery Units,Adults and Health,Other Agencies - Third Party P,0090571071,AUTUMN GARDENS,860.00,22/03/2023
Delivery Units,Adults and Health,Other Agencies - Third Party P,0090571072,AUTUMN GARDENS,"1,200.00",22/03/2023
Delivery Units,Adults and Health,Other Agencies - Third Party P,0090571073,AUTUMN GARDENS,"1,200.00",22/03/2023
Delivery Units,Adults and Health,Other Agencies - Third Party P,0090571074,AUTUMN GARDENS,"1,200.00",22/03/2023
Delivery Units,Adults and Health,Other Agencies - Third Party P,0090572012,LEONARD CHESHIRE,"7,032.04",24/03/2023
Delivery Units,Adults and Health,Other Agencies - Third Party P,0090572013,LEONARD CHESHIRE,"-4,990.48",24/03/2023
Delivery Units,Adults and Health,Other Agencies - Third Party P,0090561336,AGUDAS ISRAEL HOUSING ASSCTN LTD,"2,472.00",03/03/2023
Delivery Units,Adults and Health,Other Agencies - Third Party P,0090562659,AGUDAS ISRAEL HOUSING ASSCTN LTD,"3,800.00",09/03/2023
Delivery Units,Adults and Health,Other Agencies - Third Party P,0090567702,AGUDAS ISRAEL HOUSING ASSCTN LTD,"2,913.43",20/03/2023
Delivery Units,Adults and Health,Other Agencies - Third Party P,0090571968,AGUDAS ISRAEL HOUSING ASSCTN LTD,"5,978.57",23/03/2023
Delivery Units,Adults and Health,Other Agencies - Third Party P,0090561334,DMP Healthcare (Ogilvy) Ltd,"3,800.00",03/03/2023
Delivery Units,Adults and Health,Other Agencies - Third Party P,0090561363,Hamberley Care 1 Ltd,"2,985.60",03/03/2023
Delivery Units,Adults and Health,Other Agencies - Third Party P,0090561513,LIFESTYLE CARE PLC,"2,882.36",06/03/2023
Delivery Units,Adults and Health,Other Agencies - Third Party P,0090561516,FOUR SEASONS HEALTH CARE,"2,831.68",06/03/2023
Delivery Units,Adults and Health,Other Agencies - Third Party P,0090561518,SONESTA NURSING HOME LTD.,"2,716.68",06/03/2023
Delivery Units,Adults and Health,Other Agencies - Third Party P,0090561520,SAGE NURSING HOME,"4,400.00",06/03/2023
Delivery Units,Adults and Health,Other Agencies - Third Party P,0090561522,ASHTON LODGE CARE CENTRE,"4,033.16",06/03/2023
Delivery Units,Adults and Health,Other Agencies - Third Party P,0090561524,ELEANOR PALMER TRUST NO 2 A/C.,"3,802.00",06/03/2023
Delivery Units,Adults and Health,Other Agencies - Third Party P,0090561526,ABBEY RAVENSCROFT PARK NURSING HOME,"3,752.00",06/03/2023
Delivery Units,Adults and Health,Other Agencies - Third Party P,0090561530,JEWISH CARE,"8,682.28",06/03/2023
Delivery Units,Adults and Health,Other Agencies - Third Party P,0090561533,ASHTON LODGE CARE CENTRE,"3,556.52",06/03/2023
Delivery Units,Adults and Health,Other Agencies - Third Party P,0090561537,BUPA NURSING HOMES LTD - ARKLEY,"8,619.90",06/03/2023
Delivery Units,Adults and Health,Other Agencies - Third Party P,0090561538,APPLE TREE COURT CARE HOME,0.04,06/03/2023
Delivery Units,Adults and Health,Other Agencies - Third Party P,0090561539,APPLE TREE COURT CARE HOME,"-4,352.04",06/03/2023
Delivery Units,Adults and Health,Other Agencies - Third Party P,0090561540,FOUR SEASONS HEALTH CARE,480.06,06/03/2023
Delivery Units,Adults and Health,Other Agencies - Third Party P,0090561541,FOUR SEASONS HEALTH CARE,"-3,033.94",06/03/2023
Delivery Units,Adults and Health,Other Agencies - Third Party P,0090561542,FOUR SEASONS HEALTH CARE,"2,831.68",06/03/2023
Delivery Units,Adults and Health,Other Agencies - Third Party P,0090561543,APPLE TREE COURT CARE HOME,"3,385.00",06/03/2023
Delivery Units,Adults and Health,Other Agencies - Third Party P,0090561544,BUPA CARE HOMES,"2,822.00",06/03/2023
Delivery Units,Adults and Health,Other Agencies - Third Party P,0090561549,SONESTA NURSING HOME LTD.,"2,716.68",06/03/2023
Delivery Units,Adults and Health,Other Agencies - Third Party P,0090561550,JEWISH CARE,"2,882.48",06/03/2023
Delivery Units,Adults and Health,Other Agencies - Third Party P,0090561554,APPLE TREE COURT CARE HOME,"3,865.80",06/03/2023
Delivery Units,Adults and Health,Other Agencies - Third Party P,0090561560,FOUR SEASONS HEALTH CARE,"2,831.68",06/03/2023
Delivery Units,Adults and Health,Other Agencies - Third Party P,0090561561,LIFESTYLE CARE PLC,"2,882.36",06/03/2023
Delivery Units,Adults and Health,Other Agencies - Third Party P,0090561562,JEWISH CARE,"2,882.48",06/03/2023
Delivery Units,Adults and Health,Other Agencies - Third Party P,0090561563,APPLE TREE COURT CARE HOME,"4,800.00",06/03/2023
Delivery Units,Adults and Health,Other Agencies - Third Party P,0090561565,LIFESTYLE CARE PLC,"2,882.36",06/03/2023
Delivery Units,Adults and Health,Other Agencies - Third Party P,0090561566,ASHTON LODGE CARE CENTRE,"3,952.00",06/03/2023
Delivery Units,Adults and Health,Other Agencies - Third Party P,0090561591,ASHTON LODGE CARE CENTRE,"3,552.00",06/03/2023
Delivery Units,Adults and Health,Other Agencies - Third Party P,0090561594,ASHTON LODGE CARE CENTRE,"4,168.52",06/03/2023
Delivery Units,Adults and Health,Other Agencies - Third Party P,0090561596,ABBEY RAVENSCROFT PARK NURSING HOME,"3,752.00",06/03/2023
Delivery Units,Adults and Health,Other Agencies - Third Party P,0090561597,JEWISH CARE,"2,882.48",06/03/2023
Delivery Units,Adults and Health,Other Agencies - Third Party P,0090561599,APPLE TREE COURT CARE HOME,"3,800.00",06/03/2023
Delivery Units,Adults and Health,Other Agencies - Third Party P,0090561602,BUPA CARE HOMES,"14,589.42",06/03/2023
Delivery Units,Adults and Health,Other Agencies - Third Party P,0090561603,LIFESTYLE CARE PLC,"-6,863.90",06/03/2023
Delivery Units,Adults and Health,Other Agencies - Third Party P,0090561605,FOUR SEASONS HEALTH CARE,"2,831.68",06/03/2023
Delivery Units,Adults and Health,Other Agencies - Third Party P,0090561606,FOUR SEASONS HEALTH CARE,"2,831.68",06/03/2023
Delivery Units,Adults and Health,Other Agencies - Third Party P,0090561611,LIFESTYLE CARE PLC,"2,882.36",06/03/2023
Delivery Units,Adults and Health,Other Agencies - Third Party P,0090561614,SONESTA NURSING HOME LTD.,"2,716.68",06/03/2023
Delivery Units,Adults and Health,Other Agencies - Third Party P,0090561623,ABBEY RAVENSCROFT PARK NURSING HOME,"3,752.00",06/03/2023
Delivery Units,Adults and Health,Other Agencies - Third Party P,0090561629,APPLE TREE COURT CARE HOME,"3,865.80",06/03/2023
Delivery Units,Adults and Health,Other Agencies - Third Party P,0090561630,ABBEY RAVENSCROFT PARK NURSING HOME,"3,752.00",06/03/2023
Delivery Units,Adults and Health,Other Agencies - Third Party P,0090561631,LIFESTYLE CARE PLC,"2,882.36",06/03/2023
Delivery Units,Adults and Health,Other Agencies - Third Party P,0090561635,ASHTON LODGE CARE CENTRE,"4,201.60",06/03/2023
Delivery Units,Adults and Health,Other Agencies - Third Party P,0090561636,ABBEY RAVENSCROFT PARK NURSING HOME,"3,752.00",06/03/2023
Delivery Units,Adults and Health,Other Agencies - Third Party P,0090561637,APPLE TREE COURT CARE HOME,"3,800.00",06/03/2023
Delivery Units,Adults and Health,Other Agencies - Third Party P,0090561643,JEWISH CARE,"2,882.48",06/03/2023
Delivery Units,Adults and Health,Other Agencies - Third Party P,0090561645,Aarandale Manor Care Home,"4,049.60",06/03/2023
Delivery Units,Adults and Health,Other Agencies - Third Party P,0090561649,ASHTON LODGE CARE CENTRE,"3,552.00",06/03/2023
Delivery Units,Adults and Health,Other Agencies - Third Party P,0090561655,Lancam Care Services Limited,"3,900.00",06/03/2023
Delivery Units,Adults and Health,Other Agencies - Third Party P,0090561657,SAGE NURSING HOME,"4,952.00",06/03/2023
Delivery Units,Adults and Health,Other Agencies - Third Party P,0090561660,ELEANOR PALMER TRUST NO 2 A/C.,"3,752.00",06/03/2023
Delivery Units,Adults and Health,Other Agencies - Third Party P,0090561662,JEWISH CARE,"2,945.48",06/03/2023
Delivery Units,Adults and Health,Other Agencies - Third Party P,0090561669,LIFESTYLE CARE PLC,"2,882.36",06/03/2023
Delivery Units,Adults and Health,Other Agencies - Third Party P,0090561670,SONESTA NURSING HOME LTD.,"2,716.68",06/03/2023
Delivery Units,Adults and Health,Other Agencies - Third Party P,0090561671,ASHTON LODGE CARE CENTRE,"3,650.00",06/03/2023
Delivery Units,Adults and Health,Other Agencies - Third Party P,0090561672,ABBEY RAVENSCROFT PARK NURSING HOME,"4,200.00",06/03/2023
Delivery Units,Adults and Health,Other Agencies - Third Party P,0090561675,APPLE TREE COURT CARE HOME,"6,204.60",06/03/2023
Delivery Units,Adults and Health,Other Agencies - Third Party P,0090561676,ABBEY RAVENSCROFT PARK NURSING HOME,"4,800.00",06/03/2023
Delivery Units,Adults and Health,Other Agencies - Third Party P,0090561677,ELEANOR PALMER TRUST NO 2 A/C.,"3,800.00",06/03/2023
Delivery Units,Adults and Health,Other Agencies - Third Party P,0090561680,LIFESTYLE CARE PLC,"3,719.12",06/03/2023
Delivery Units,Adults and Health,Other Agencies - Third Party P,0090561682,ASHTON LODGE CARE CENTRE,"4,764.00",06/03/2023
Delivery Units,Adults and Health,Other Agencies - Third Party P,0090561684,APPLE TREE COURT CARE HOME,"4,049.60",06/03/2023
Delivery Units,Adults and Health,Other Agencies - Third Party P,0090561689,JEWISH CARE,"2,945.48",06/03/2023
Delivery Units,Adults and Health,Other Agencies - Third Party P,0090561693,BUPA CARE HOMES,"2,822.00",06/03/2023
Delivery Units,Adults and Health,Other Agencies - Third Party P,0090561696,SONESTA NURSING HOME LTD.,"2,716.68",06/03/2023
Delivery Units,Adults and Health,Other Agencies - Third Party P,0090561699,APPLE TREE COURT CARE HOME,"4,498.60",06/03/2023
Delivery Units,Adults and Health,Other Agencies - Third Party P,0090561700,Aarandale Manor Care Home,"4,049.60",06/03/2023
Delivery Units,Adults and Health,Other Agencies - Third Party P,0090561701,ABBEY RAVENSCROFT PARK NURSING HOME,"4,552.00",06/03/2023
Delivery Units,Adults and Health,Other Agencies - Third Party P,0090561704,JEWISH CARE,"2,882.48",06/03/2023
Delivery Units,Adults and Health,Other Agencies - Third Party P,0090561706,APPLE TREE COURT CARE HOME,"4,898.60",06/03/2023
Delivery Units,Adults and Health,Other Agencies - Third Party P,0090561710,BUPA CARE HOMES,"2,822.00",06/03/2023
Delivery Units,Adults and Health,Other Agencies - Third Party P,0090561711,APPLE TREE COURT CARE HOME,"4,400.00",06/03/2023
Delivery Units,Adults and Health,Other Agencies - Third Party P,0090561712,BUPA CARE HOMES,"2,822.00",06/03/2023
Delivery Units,Adults and Health,Other Agencies - Third Party P,0090561713,BUPA NURSING HOMES LTD - ARKLEY,"3,800.00",06/03/2023
Delivery Units,Adults and Health,Other Agencies - Third Party P,0090561714,ASHTON LODGE CARE CENTRE,"4,249.60",06/03/2023
Delivery Units,Adults and Health,Other Agencies - Third Party P,0090561723,SONESTA NURSING HOME LTD.,"2,716.68",06/03/2023
Delivery Units,Adults and Health,Other Agencies - Third Party P,0090561725,APPLE TREE COURT CARE HOME,"5,400.00",06/03/2023
Delivery Units,Adults and Health,Other Agencies - Third Party P,0090561726,New Century Care (Finchley),"4,800.00",06/03/2023
Delivery Units,Adults and Health,Other Agencies - Third Party P,0090561727,BUPA CARE HOMES,"4,000.00",06/03/2023
Delivery Units,Adults and Health,Other Agencies - Third Party P,0090561728,SAGE NURSING HOME,"4,400.00",06/03/2023
Delivery Units,Adults and Health,Other Agencies - Third Party P,0090561729,ASHTON LODGE CARE CENTRE,"4,163.24",06/03/2023
Delivery Units,Adults and Health,Other Agencies - Third Party P,0090561731,FOUR SEASONS HEALTH CARE,"3,468.00",06/03/2023
Delivery Units,Adults and Health,Other Agencies - Third Party P,0090561732,BUPA CARE HOMES,"4,000.00",06/03/2023
Delivery Units,Adults and Health,Other Agencies - Third Party P,0090561733,FOUR SEASONS HEALTH CARE,"2,831.68",06/03/2023
Delivery Units,Adults and Health,Other Agencies - Third Party P,0090561734,BUPA CARE HOMES,"2,822.00",06/03/2023
Delivery Units,Adults and Health,Other Agencies - Third Party P,0090561735,JEWISH CARE,"2,942.25",06/03/2023
Delivery Units,Adults and Health,Other Agencies - Third Party P,0090561736,APPLE TREE COURT CARE HOME,"3,865.80",06/03/2023
Delivery Units,Adults and Health,Other Agencies - Third Party P,0090561737,BUPA CARE HOMES,"4,000.00",06/03/2023
Delivery Units,Adults and Health,Other Agencies - Third Party P,0090561744,ELM PARK LODGE,"4,593.20",06/03/2023
Delivery Units,Adults and Health,Other Agencies - Third Party P,0090561745,ABBEY RAVENSCROFT PARK NURSING HOME,"1,028.57",06/03/2023
Delivery Units,Adults and Health,Other Agencies - Third Party P,0090561746,New Century Care (Finchley),"5,000.00",06/03/2023
Delivery Units,Adults and Health,Other Agencies - Third Party P,0090561754,ABBEY RAVENSCROFT PARK NURSING HOME,"4,866.64",06/03/2023
Delivery Units,Adults and Health,Other Agencies - Third Party P,0090561756,FOUR SEASONS HEALTH CARE,"2,797.40",06/03/2023
Delivery Units,Adults and Health,Other Agencies - Third Party P,0090561759,LIFESTYLE CARE PLC,"3,749.00",06/03/2023
Delivery Units,Adults and Health,Other Agencies - Third Party P,0090561761,APPLE TREE COURT CARE HOME,"3,385.00",06/03/2023
Delivery Units,Adults and Health,Other Agencies - Third Party P,0090561762,New Century Care (Finchley),"3,024.00",06/03/2023
Delivery Units,Adults and Health,Other Agencies - Third Party P,0090561764,ASHTON LODGE CARE CENTRE,"4,829.88",06/03/2023
Delivery Units,Adults and Health,Other Agencies - Third Party P,0090561765,ASHTON LODGE CARE CENTRE,"4,311.93",06/03/2023
Delivery Units,Adults and Health,Other Agencies - Third Party P,0090561766,BUPA CARE HOMES,"3,325.93",06/03/2023
Delivery Units,Adults and Health,Other Agencies - Third Party P,0090561767,ABBEY RAVENSCROFT PARK NURSING HOME,"35,714.29",06/03/2023
Delivery Units,Adults and Health,Other Agencies - Third Party P,0090561780,APPLE TREE COURT CARE HOME,"2,493.08",06/03/2023
Delivery Units,Adults and Health,Other Agencies - Third Party P,0090561782,Aarandale Manor Care Home,"2,814.76",06/03/2023
Delivery Units,Adults and Health,Other Agencies - Third Party P,0090561792,ASHTON LODGE CARE CENTRE,"3,574.76",06/03/2023
Delivery Units,Adults and Health,Other Agencies - Third Party P,0090561795,ELEANOR PALMER TRUST NO 2 A/C.,"3,802.00",06/03/2023
Delivery Units,Adults and Health,Other Agencies - Third Party P,0090561798,JEWISH CARE,"2,682.48",06/03/2023
Delivery Units,Adults and Health,Other Agencies - Third Party P,0090561804,APPLE TREE COURT CARE HOME,"3,764.00",06/03/2023
Delivery Units,Adults and Health,Other Agencies - Third Party P,0090561808,APPLE TREE COURT CARE HOME,"3,385.00",06/03/2023
Delivery Units,Adults and Health,Other Agencies - Third Party P,0090561809,APPLE TREE COURT CARE HOME,"3,385.00",06/03/2023
Delivery Units,Adults and Health,Other Agencies - Third Party P,0090561819,LIFESTYLE CARE PLC,"2,882.36",06/03/2023
Delivery Units,Adults and Health,Other Agencies - Third Party P,0090561821,FOUR SEASONS HEALTH CARE,"2,831.68",06/03/2023
Delivery Units,Adults and Health,Other Agencies - Third Party P,0090561829,APPLE TREE COURT CARE HOME,"3,385.00",06/03/2023
Delivery Units,Adults and Health,Other Agencies - Third Party P,0090561830,ABBEY RAVENSCROFT PARK NURSING HOME,"3,752.00",06/03/2023
Delivery Units,Adults and Health,Other Agencies - Third Party P,0090561831,JEWISH CARE,"2,945.48",06/03/2023
Delivery Units,Adults and Health,Other Agencies - Third Party P,0090561838,BUPA NURSING HOMES LTD - ARKLEY,"2,822.00",06/03/2023
Delivery Units,Adults and Health,Other Agencies - Third Party P,0090561839,ASHTON LODGE CARE CENTRE,"4,201.60",06/03/2023
Delivery Units,Adults and Health,Other Agencies - Third Party P,0090561841,ELEANOR PALMER TRUST NO 2 A/C.,"3,272.00",06/03/2023
Delivery Units,Adults and Health,Other Agencies - Third Party P,0090561850,Aarandale Manor Care Home,"4,049.60",06/03/2023
Delivery Units,Adults and Health,Other Agencies - Third Party P,0090561851,LIFESTYLE CARE PLC,"2,882.36",06/03/2023
Delivery Units,Adults and Health,Other Agencies - Third Party P,0090561852,ELEANOR PALMER TRUST NO 2 A/C.,"4,720.00",06/03/2023
Delivery Units,Adults and Health,Other Agencies - Third Party P,0090561855,JEWISH CARE,"2,945.48",06/03/2023
Delivery Units,Adults and Health,Other Agencies - Third Party P,0090561856,ELEANOR PALMER TRUST NO 2 A/C.,"3,752.00",06/03/2023
Delivery Units,Adults and Health,Other Agencies - Third Party P,0090561857,Lancam Care Services Limited,"3,700.00",06/03/2023
Delivery Units,Adults and Health,Other Agencies - Third Party P,0090561859,LIFESTYLE CARE PLC,"2,882.36",06/03/2023
Delivery Units,Adults and Health,Other Agencies - Third Party P,0090561863,SAGE NURSING HOME,"3,040.00",06/03/2023
Delivery Units,Adults and Health,Other Agencies - Third Party P,0090561864,BUPA NURSING HOMES LTD - ARKLEY,"2,822.00",06/03/2023
Delivery Units,Adults and Health,Other Agencies - Third Party P,0090561865,JEWISH CARE,"8,263.92",06/03/2023
Delivery Units,Adults and Health,Other Agencies - Third Party P,0090561866,Lancam Care Services Limited,"3,980.00",06/03/2023
Delivery Units,Adults and Health,Other Agencies - Third Party P,0090561868,FOUR SEASONS HEALTH CARE,"2,831.68",06/03/2023
Delivery Units,Adults and Health,Other Agencies - Third Party P,0090561869,Lancam Care Services Limited,"3,980.00",06/03/2023
Delivery Units,Adults and Health,Other Agencies - Third Party P,0090561870,BUPA CARE HOMES,"2,822.00",06/03/2023
Delivery Units,Adults and Health,Other Agencies - Third Party P,0090561874,JEWISH CARE,"4,676.00",06/03/2023
Delivery Units,Adults and Health,Other Agencies - Third Party P,0090561875,JEWISH CARE,"2,882.48",06/03/2023
Delivery Units,Adults and Health,Other Agencies - Third Party P,0090561877,APPLE TREE COURT CARE HOME,"4,763.24",06/03/2023
Delivery Units,Adults and Health,Other Agencies - Third Party P,0090561879,New Century Care (Finchley),"4,400.00",06/03/2023
Delivery Units,Adults and Health,Other Agencies - Third Party P,0090561881,BUPA CARE HOMES,"2,822.00",06/03/2023
Delivery Units,Adults and Health,Other Agencies - Third Party P,0090561882,ABBEY RAVENSCROFT PARK NURSING HOME,"4,400.00",06/03/2023
Delivery Units,Adults and Health,Other Agencies - Third Party P,0090561883,APPLE TREE COURT CARE HOME,"3,753.20",06/03/2023
Delivery Units,Adults and Health,Other Agencies - Third Party P,0090561885,FOUR SEASONS HEALTH CARE,"2,831.68",06/03/2023
Delivery Units,Adults and Health,Other Agencies - Third Party P,0090561886,LIFESTYLE CARE PLC,"2,882.36",06/03/2023
Delivery Units,Adults and Health,Other Agencies - Third Party P,0090561887,ABBEY RAVENSCROFT PARK NURSING HOME,"4,800.00",06/03/2023
Delivery Units,Adults and Health,Other Agencies - Third Party P,0090561888,BUPA NURSING HOMES LTD - ARKLEY,"3,400.00",06/03/2023
Delivery Units,Adults and Health,Other Agencies - Third Party P,0090561895,New Century Care (Finchley),"2,400.00",06/03/2023
Delivery Units,Adults and Health,Other Agencies - Third Party P,0090561898,APPLE TREE COURT CARE HOME,"4,763.24",06/03/2023
Delivery Units,Adults and Health,Other Agencies - Third Party P,0090561899,BUPA NURSING HOMES LTD - ARKLEY,"2,822.00",06/03/2023
Delivery Units,Adults and Health,Other Agencies - Third Party P,0090561900,HENRY NIHILL HOUSE,"4,466.65",06/03/2023
Delivery Units,Adults and Health,Other Agencies - Third Party P,0090561905,JEWISH CARE,"3,641.64",06/03/2023
Delivery Units,Adults and Health,Other Agencies - Third Party P,0090561912,JEWISH CARE,"2,882.48",06/03/2023
Delivery Units,Adults and Health,Other Agencies - Third Party P,0090561922,SONESTA NURSING HOME LTD.,-35.21,06/03/2023
Delivery Units,Adults and Health,Other Agencies - Third Party P,0090561925,JEWISH CARE,"2,882.48",06/03/2023
Delivery Units,Adults and Health,Other Agencies - Third Party P,0090561926,SONESTA NURSING HOME LTD.,"2,716.68",06/03/2023
Delivery Units,Adults and Health,Other Agencies - Third Party P,0090561929,APPLE TREE COURT CARE HOME,"3,385.00",06/03/2023
Delivery Units,Adults and Health,Other Agencies - Third Party P,0090561940,BUPA NURSING HOMES LTD - ARKLEY,"3,962.00",06/03/2023
Delivery Units,Adults and Health,Other Agencies - Third Party P,0090561943,JEWISH CARE,"2,882.48",06/03/2023
Delivery Units,Adults and Health,Other Agencies - Third Party P,0090561944,JEWISH CARE,"2,945.48",06/03/2023
Delivery Units,Adults and Health,Other Agencies - Third Party P,0090561949,FOUR SEASONS HEALTH CARE,"2,831.68",06/03/2023
Delivery Units,Adults and Health,Other Agencies - Third Party P,0090561951,Aarandale Manor Care Home,"6,400.00",06/03/2023
Delivery Units,Adults and Health,Other Agencies - Third Party P,0090561952,APPLE TREE COURT CARE HOME,"3,385.00",06/03/2023
Delivery Units,Adults and Health,Other Agencies - Third Party P,0090561957,LIFESTYLE CARE PLC,"2,882.36",06/03/2023
Delivery Units,Adults and Health,Other Agencies - Third Party P,0090561958,ABBEY RAVENSCROFT PARK NURSING HOME,"3,752.00",06/03/2023
Delivery Units,Adults and Health,Other Agencies - Third Party P,0090561963,ELEANOR PALMER TRUST NO 2 A/C.,"3,272.00",06/03/2023
Delivery Units,Adults and Health,Other Agencies - Third Party P,0090561964,LIFESTYLE CARE PLC,"2,882.36",06/03/2023
Delivery Units,Adults and Health,Other Agencies - Third Party P,0090561965,APPLE TREE COURT CARE HOME,"3,385.00",06/03/2023
Delivery Units,Adults and Health,Other Agencies - Third Party P,0090561968,Aarandale Manor Care Home,"4,049.60",06/03/2023
Delivery Units,Adults and Health,Other Agencies - Third Party P,0090561971,BUPA NURSING HOMES LTD - ARKLEY,"2,822.00",06/03/2023
Delivery Units,Adults and Health,Other Agencies - Third Party P,0090561973,JEWISH CARE,"-2,945.48",06/03/2023
Delivery Units,Adults and Health,Other Agencies - Third Party P,0090561976,SAGE NURSING HOME,"4,400.00",06/03/2023
Delivery Units,Adults and Health,Other Agencies - Third Party P,0090561985,BUPA CARE HOMES,"-4,031.43",06/03/2023
Delivery Units,Adults and Health,Other Agencies - Third Party P,0090561987,New Century Care (Finchley),"4,800.00",06/03/2023
Delivery Units,Adults and Health,Other Agencies - Third Party P,0090561992,SONESTA NURSING HOME LTD.,"1,800.00",06/03/2023
Delivery Units,Adults and Health,Other Agencies - Third Party P,0090561993,ABBEY RAVENSCROFT PARK NURSING HOME,"3,933.36",06/03/2023
Delivery Units,Adults and Health,Other Agencies - Third Party P,0090561998,JEWISH CARE,"2,946.68",06/03/2023
Delivery Units,Adults and Health,Other Agencies - Third Party P,0090562000,ELEANOR PALMER TRUST NO 2 A/C.,"3,800.00",06/03/2023
Delivery Units,Adults and Health,Other Agencies - Third Party P,0090562002,HENRY NIHILL HOUSE,"11,185.71",06/03/2023
Delivery Units,Adults and Health,Other Agencies - Third Party P,0090562004,SONESTA NURSING HOME LTD.,"3,428.57",06/03/2023
Delivery Units,Adults and Health,Other Agencies - Third Party P,0090562005,HENRY NIHILL HOUSE,"8,228.57",06/03/2023
Delivery Units,Adults and Health,Other Agencies - Third Party P,0090562006,SAGE NURSING HOME,"48,085.71",06/03/2023
Delivery Units,Adults and Health,Other Agencies - Third Party P,0090562010,Karuna Manor,"4,207.14",06/03/2023
Delivery Units,Adults and Health,Other Agencies - Third Party P,0090562012,Karuna Manor,"2,373.71",06/03/2023
Delivery Units,Adults and Health,Other Agencies - Third Party P,0090562206,Candlewood House Care Home,"8,595.02",08/03/2023
Delivery Units,Adults and Health,Other Agencies - Third Party P,0090562208,COOPERSCROFT CARE HOME,"6,642.86",08/03/2023
Delivery Units,Adults and Health,Other Agencies - Third Party P,0090562233,CARE UK COMMUNITY PARTNERSHIPS,"5,726.14",08/03/2023
Delivery Units,Adults and Health,Other Agencies - Third Party P,0090562243,WILSMERE HOUSE CARE CENTRE,"4,979.35",08/03/2023
Delivery Units,Adults and Health,Other Agencies - Third Party P,0090562642,Chalfont Lodge (Barchester Healthcare Ho,"6,159.30",09/03/2023
Delivery Units,Adults and Health,Other Agencies - Third Party P,0090562643,Topcare Ltd,"5,314.29",09/03/2023
Delivery Units,Adults and Health,Other Agencies - Third Party P,0090562657,Barchester Healthcare Homes Ltd (Brook,"4,207.14",09/03/2023
Delivery Units,Adults and Health,Other Agencies - Third Party P,0090562859,Milford Lodge Residential Home,"4,207.14",09/03/2023
Delivery Units,Adults and Health,Other Agencies - Third Party P,0090562861,St Matthews Limited,"3,843.69",09/03/2023
Delivery Units,Adults and Health,Other Agencies - Third Party P,0090562865,MEERA NURSING HOME LIMITED,"3,985.71",09/03/2023
Delivery Units,Adults and Health,Other Agencies - Third Party P,0090562870,Barchester Healthcare,"7,085.71",09/03/2023
Delivery Units,Adults and Health,Other Agencies - Third Party P,0090562871,Barchester Healthcare,"6,200.00",09/03/2023
Delivery Units,Adults and Health,Other Agencies - Third Party P,0090562872,Barchester Healthcare,"5,757.14",09/03/2023
Delivery Units,Adults and Health,Other Agencies - Third Party P,0090562874,Barchester Healthcare,"6,200.00",09/03/2023
Delivery Units,Adults and Health,Other Agencies - Third Party P,0090562894,CARE UK COMMUNITY PARTNERSHIPS,"21,660.37",09/03/2023
Delivery Units,Adults and Health,Other Agencies - Third Party P,0090564429,Barchester Healthcare,"5,600.00",13/03/2023
Delivery Units,Adults and Health,Other Agencies - Third Party P,0090564450,COOPERSCROFT CARE HOME,"6,642.86",13/03/2023
Delivery Units,Adults and Health,Other Agencies - Third Party P,0090564451,COOPERSCROFT CARE HOME,"6,000.00",13/03/2023
Delivery Units,Adults and Health,Other Agencies - Third Party P,0090564454,Victoria Care Centre,"2,744.60",13/03/2023
Delivery Units,Adults and Health,Other Agencies - Third Party P,0090564879,TORRINGTON HOMES,"4,207.14",14/03/2023
Delivery Units,Adults and Health,Other Agencies - Third Party P,0090567561,CEDARS NURSING HOME,"4,207.14",20/03/2023
Delivery Units,Adults and Health,Other Agencies - Third Party P,0090567562,CEDARS NURSING HOME,"5,314.29",20/03/2023
Delivery Units,Adults and Health,Other Agencies - Third Party P,0090567567,CEDARS NURSING HOME,"3,919.29",20/03/2023
Delivery Units,Adults and Health,Other Agencies - Third Party P,0090567568,CEDARS NURSING HOME,"5,314.29",20/03/2023
Delivery Units,Adults and Health,Other Agencies - Third Party P,0090567569,CEDARS NURSING HOME,"5,314.29",20/03/2023
Delivery Units,Adults and Health,Other Agencies - Third Party P,0090567570,CEDARS NURSING HOME,"5,314.29",20/03/2023
Delivery Units,Adults and Health,Other Agencies - Third Party P,0090567571,CEDARS NURSING HOME,"4,428.57",20/03/2023
Delivery Units,Adults and Health,Other Agencies - Third Party P,0090567578,HUSKARDS NEW CARE LTD,"2,445.59",20/03/2023
Delivery Units,Adults and Health,Other Agencies - Third Party P,0090570182,GCH North London Ltd,"3,060.00",22/03/2023
Delivery Units,Adults and Health,Other Agencies - Third Party P,0090570184,NIGHTINGALE HOUSE,"16,328.57",22/03/2023
Delivery Units,Adults and Health,Other Agencies - Third Party P,0090570189,Karuna Manor,"7,250.00",22/03/2023
Delivery Units,Adults and Health,Other Agencies - Third Party P,0090570192,DMP Healthcare (Ogilvy) Ltd,"4,207.14",22/03/2023
Delivery Units,Adults and Health,Other Agencies - Third Party P,0090570200,LIFESTYLE CARE PLC,"2,882.36",22/03/2023
Delivery Units,Adults and Health,Other Agencies - Third Party P,0090570203,FOUR SEASONS HEALTH CARE,"2,831.68",22/03/2023
Delivery Units,Adults and Health,Other Agencies - Third Party P,0090570205,SONESTA NURSING HOME LTD.,"2,716.68",22/03/2023
Delivery Units,Adults and Health,Other Agencies - Third Party P,0090570207,SAGE NURSING HOME,"4,400.00",22/03/2023
Delivery Units,Adults and Health,Other Agencies - Third Party P,0090570209,ASHTON LODGE CARE CENTRE,"4,033.16",22/03/2023
Delivery Units,Adults and Health,Other Agencies - Third Party P,0090570211,ELEANOR PALMER TRUST NO 2 A/C.,"3,802.00",22/03/2023
Delivery Units,Adults and Health,Other Agencies - Third Party P,0090570213,ABBEY RAVENSCROFT PARK NURSING HOME,"3,752.00",22/03/2023
Delivery Units,Adults and Health,Other Agencies - Third Party P,0090570217,JEWISH CARE,"8,682.28",22/03/2023
Delivery Units,Adults and Health,Other Agencies - Third Party P,0090570220,ASHTON LODGE CARE CENTRE,"3,556.52",22/03/2023
Delivery Units,Adults and Health,Other Agencies - Third Party P,0090570224,BUPA NURSING HOMES LTD - ARKLEY,"2,863.64",22/03/2023
Delivery Units,Adults and Health,Other Agencies - Third Party P,0090570225,APPLE TREE COURT CARE HOME,0.04,22/03/2023
Delivery Units,Adults and Health,Other Agencies - Third Party P,0090570226,APPLE TREE COURT CARE HOME,"-4,249.24",22/03/2023
Delivery Units,Adults and Health,Other Agencies - Third Party P,0090570227,FOUR SEASONS HEALTH CARE,"5,663.36",22/03/2023
Delivery Units,Adults and Health,Other Agencies - Third Party P,0090570228,FOUR SEASONS HEALTH CARE,"2,831.68",22/03/2023
Delivery Units,Adults and Health,Other Agencies - Third Party P,0090570229,APPLE TREE COURT CARE HOME,"3,385.00",22/03/2023
Delivery Units,Adults and Health,Other Agencies - Third Party P,0090570230,BUPA CARE HOMES,"2,828.05",22/03/2023
Delivery Units,Adults and Health,Other Agencies - Third Party P,0090570235,SONESTA NURSING HOME LTD.,"2,716.68",22/03/2023
Delivery Units,Adults and Health,Other Agencies - Third Party P,0090570236,JEWISH CARE,"2,882.48",22/03/2023
Delivery Units,Adults and Health,Other Agencies - Third Party P,0090570240,APPLE TREE COURT CARE HOME,"3,865.80",22/03/2023
Delivery Units,Adults and Health,Other Agencies - Third Party P,0090570246,FOUR SEASONS HEALTH CARE,"2,831.68",22/03/2023
Delivery Units,Adults and Health,Other Agencies - Third Party P,0090570247,LIFESTYLE CARE PLC,"2,882.36",22/03/2023
Delivery Units,Adults and Health,Other Agencies - Third Party P,0090570248,JEWISH CARE,"2,882.48",22/03/2023
Delivery Units,Adults and Health,Other Agencies - Third Party P,0090570249,APPLE TREE COURT CARE HOME,"4,800.00",22/03/2023
Delivery Units,Adults and Health,Other Agencies - Third Party P,0090570251,LIFESTYLE CARE PLC,"2,882.36",22/03/2023
Delivery Units,Adults and Health,Other Agencies - Third Party P,0090570252,ASHTON LODGE CARE CENTRE,"3,952.00",22/03/2023
Delivery Units,Adults and Health,Other Agencies - Third Party P,0090570253,ASHTON LODGE CARE CENTRE,"4,764.00",22/03/2023
Delivery Units,Adults and Health,Other Agencies - Third Party P,0090570278,ASHTON LODGE CARE CENTRE,"3,552.00",22/03/2023
Delivery Units,Adults and Health,Other Agencies - Third Party P,0090570281,ASHTON LODGE CARE CENTRE,"4,168.52",22/03/2023
Delivery Units,Adults and Health,Other Agencies - Third Party P,0090570283,ABBEY RAVENSCROFT PARK NURSING HOME,"3,752.00",22/03/2023
Delivery Units,Adults and Health,Other Agencies - Third Party P,0090570284,JEWISH CARE,"2,882.48",22/03/2023
Delivery Units,Adults and Health,Other Agencies - Third Party P,0090570286,APPLE TREE COURT CARE HOME,"3,800.00",22/03/2023
Delivery Units,Adults and Health,Other Agencies - Third Party P,0090570289,BUPA CARE HOMES,"-1,560.18",22/03/2023
Delivery Units,Adults and Health,Other Agencies - Third Party P,0090570290,LIFESTYLE CARE PLC,"5,047.08",22/03/2023
Delivery Units,Adults and Health,Other Agencies - Third Party P,0090570292,FOUR SEASONS HEALTH CARE,"2,831.68",22/03/2023
Delivery Units,Adults and Health,Other Agencies - Third Party P,0090570293,FOUR SEASONS HEALTH CARE,"2,831.68",22/03/2023
Delivery Units,Adults and Health,Other Agencies - Third Party P,0090570298,LIFESTYLE CARE PLC,"2,882.36",22/03/2023
Delivery Units,Adults and Health,Other Agencies - Third Party P,0090570301,SONESTA NURSING HOME LTD.,"2,716.68",22/03/2023
Delivery Units,Adults and Health,Other Agencies - Third Party P,0090570309,ABBEY RAVENSCROFT PARK NURSING HOME,"3,752.00",22/03/2023
Delivery Units,Adults and Health,Other Agencies - Third Party P,0090570314,APPLE TREE COURT CARE HOME,"4,049.60",22/03/2023
Delivery Units,Adults and Health,Other Agencies - Third Party P,0090570319,JEWISH CARE,"2,945.48",22/03/2023
Delivery Units,Adults and Health,Other Agencies - Third Party P,0090570323,BUPA CARE HOMES,"2,828.05",22/03/2023
Delivery Units,Adults and Health,Other Agencies - Third Party P,0090570326,SONESTA NURSING HOME LTD.,"2,716.68",22/03/2023
Delivery Units,Adults and Health,Other Agencies - Third Party P,0090570329,APPLE TREE COURT CARE HOME,"4,498.60",22/03/2023
Delivery Units,Adults and Health,Other Agencies - Third Party P,0090570330,Aarandale Manor Care Home,"4,049.60",22/03/2023
Delivery Units,Adults and Health,Other Agencies - Third Party P,0090570331,ABBEY RAVENSCROFT PARK NURSING HOME,"4,552.00",22/03/2023
Delivery Units,Adults and Health,Other Agencies - Third Party P,0090570334,JEWISH CARE,"2,882.48",22/03/2023
Delivery Units,Adults and Health,Other Agencies - Third Party P,0090570336,APPLE TREE COURT CARE HOME,"4,898.60",22/03/2023
Delivery Units,Adults and Health,Other Agencies - Third Party P,0090570340,BUPA CARE HOMES,"2,828.05",22/03/2023
Delivery Units,Adults and Health,Other Agencies - Third Party P,0090570341,APPLE TREE COURT CARE HOME,"4,400.00",22/03/2023
Delivery Units,Adults and Health,Other Agencies - Third Party P,0090570342,BUPA CARE HOMES,"2,828.05",22/03/2023
Delivery Units,Adults and Health,Other Agencies - Third Party P,0090570343,BUPA NURSING HOMES LTD - ARKLEY,"3,800.00",22/03/2023
Delivery Units,Adults and Health,Other Agencies - Third Party P,0090570344,ASHTON LODGE CARE CENTRE,"4,249.60",22/03/2023
Delivery Units,Adults and Health,Other Agencies - Third Party P,0090570353,SONESTA NURSING HOME LTD.,"2,716.68",22/03/2023
Delivery Units,Adults and Health,Other Agencies - Third Party P,0090570355,APPLE TREE COURT CARE HOME,"5,400.00",22/03/2023
Delivery Units,Adults and Health,Other Agencies - Third Party P,0090570356,New Century Care (Finchley),"4,800.00",22/03/2023
Delivery Units,Adults and Health,Other Agencies - Third Party P,0090570357,BUPA CARE HOMES,"-1,714.29",22/03/2023
Delivery Units,Adults and Health,Other Agencies - Third Party P,0090570358,SAGE NURSING HOME,"4,400.00",22/03/2023
Delivery Units,Adults and Health,Other Agencies - Third Party P,0090570359,ASHTON LODGE CARE CENTRE,"4,163.24",22/03/2023
Delivery Units,Adults and Health,Other Agencies - Third Party P,0090570361,FOUR SEASONS HEALTH CARE,"3,468.00",22/03/2023
Delivery Units,Adults and Health,Other Agencies - Third Party P,0090570362,BUPA CARE HOMES,"4,000.00",22/03/2023
Delivery Units,Adults and Health,Other Agencies - Third Party P,0090570363,FOUR SEASONS HEALTH CARE,"2,831.68",22/03/2023
Delivery Units,Adults and Health,Other Agencies - Third Party P,0090570364,BUPA CARE HOMES,"2,828.05",22/03/2023
Delivery Units,Adults and Health,Other Agencies - Third Party P,0090570366,JEWISH CARE,"-2,716.53",22/03/2023
Delivery Units,Adults and Health,Other Agencies - Third Party P,0090570367,APPLE TREE COURT CARE HOME,"3,865.80",22/03/2023
Delivery Units,Adults and Health,Other Agencies - Third Party P,0090570368,BUPA CARE HOMES,"-7,428.57",22/03/2023
Delivery Units,Adults and Health,Other Agencies - Third Party P,0090570375,JEWISH CARE,"-1,820.82",22/03/2023
Delivery Units,Adults and Health,Other Agencies - Third Party P,0090570382,JEWISH CARE,"2,882.48",22/03/2023
Delivery Units,Adults and Health,Other Agencies - Third Party P,0090570392,SONESTA NURSING HOME LTD.,"-2,980.57",22/03/2023
Delivery Units,Adults and Health,Other Agencies - Third Party P,0090570395,JEWISH CARE,"2,882.48",22/03/2023
Delivery Units,Adults and Health,Other Agencies - Third Party P,0090570396,SONESTA NURSING HOME LTD.,"2,716.68",22/03/2023
Delivery Units,Adults and Health,Other Agencies - Third Party P,0090570399,APPLE TREE COURT CARE HOME,"3,385.00",22/03/2023
Delivery Units,Adults and Health,Other Agencies - Third Party P,0090570410,BUPA NURSING HOMES LTD - ARKLEY,"3,968.05",22/03/2023
Delivery Units,Adults and Health,Other Agencies - Third Party P,0090570413,JEWISH CARE,"2,882.48",22/03/2023
Delivery Units,Adults and Health,Other Agencies - Third Party P,0090570414,JEWISH CARE,"2,945.48",22/03/2023
Delivery Units,Adults and Health,Other Agencies - Third Party P,0090570419,FOUR SEASONS HEALTH CARE,"2,831.68",22/03/2023
Delivery Units,Adults and Health,Other Agencies - Third Party P,0090570421,Aarandale Manor Care Home,"6,400.00",22/03/2023
Delivery Units,Adults and Health,Other Agencies - Third Party P,0090570422,APPLE TREE COURT CARE HOME,"3,385.00",22/03/2023
Delivery Units,Adults and Health,Other Agencies - Third Party P,0090570427,LIFESTYLE CARE PLC,"2,882.36",22/03/2023
Delivery Units,Adults and Health,Other Agencies - Third Party P,0090570428,ABBEY RAVENSCROFT PARK NURSING HOME,"3,752.00",22/03/2023
Delivery Units,Adults and Health,Other Agencies - Third Party P,0090570431,ASHTON LODGE CARE CENTRE,"-1,784.25",22/03/2023
Delivery Units,Adults and Health,Other Agencies - Third Party P,0090570432,BUPA CARE HOMES,907.07,22/03/2023
Delivery Units,Adults and Health,Other Agencies - Third Party P,0090570433,ABBEY RAVENSCROFT PARK NURSING HOME,"4,000.00",22/03/2023
Delivery Units,Adults and Health,Other Agencies - Third Party P,0090570434,HENRY NIHILL HOUSE,"11,428.57",22/03/2023
Delivery Units,Adults and Health,Other Agencies - Third Party P,0090570437,ABBEY RAVENSCROFT PARK NURSING HOME,"5,666.64",22/03/2023
Delivery Units,Adults and Health,Other Agencies - Third Party P,0090570438,SONESTA NURSING HOME LTD.,"2,088.21",22/03/2023
Delivery Units,Adults and Health,Other Agencies - Third Party P,0090570441,ELEANOR PALMER TRUST NO 2 A/C.,"3,272.00",22/03/2023
Delivery Units,Adults and Health,Other Agencies - Third Party P,0090570442,LIFESTYLE CARE PLC,"2,882.36",22/03/2023
Delivery Units,Adults and Health,Other Agencies - Third Party P,0090570443,APPLE TREE COURT CARE HOME,"3,385.00",22/03/2023
Delivery Units,Adults and Health,Other Agencies - Third Party P,0090570446,Aarandale Manor Care Home,"4,049.60",22/03/2023
Delivery Units,Adults and Health,Other Agencies - Third Party P,0090570449,BUPA NURSING HOMES LTD - ARKLEY,"2,828.05",22/03/2023
Delivery Units,Adults and Health,Other Agencies - Third Party P,0090570453,SAGE NURSING HOME,"4,400.00",22/03/2023
Delivery Units,Adults and Health,Other Agencies - Third Party P,0090570463,New Century Care (Finchley),"4,800.00",22/03/2023
Delivery Units,Adults and Health,Other Agencies - Third Party P,0090570468,ABBEY RAVENSCROFT PARK NURSING HOME,"4,800.00",22/03/2023
Delivery Units,Adults and Health,Other Agencies - Third Party P,0090570472,JEWISH CARE,"3,167.79",22/03/2023
Delivery Units,Adults and Health,Other Agencies - Third Party P,0090570474,ELEANOR PALMER TRUST NO 2 A/C.,"3,800.00",22/03/2023
Delivery Units,Adults and Health,Other Agencies - Third Party P,0090570476,HENRY NIHILL HOUSE,"3,600.00",22/03/2023
Delivery Units,Adults and Health,Other Agencies - Third Party P,0090570477,SONESTA NURSING HOME LTD.,"3,000.00",22/03/2023
Delivery Units,Adults and Health,Other Agencies - Third Party P,0090570478,BUPA CARE HOMES,"56,826.19",22/03/2023
Delivery Units,Adults and Health,Other Agencies - Third Party P,0090570479,HENRY NIHILL HOUSE,"3,600.00",22/03/2023
Delivery Units,Adults and Health,Other Agencies - Third Party P,0090570480,HENRY NIHILL HOUSE,"4,885.71",22/03/2023
Delivery Units,Adults and Health,Other Agencies - Third Party P,0090570484,APPLE TREE COURT CARE HOME,"3,865.80",22/03/2023
Delivery Units,Adults and Health,Other Agencies - Third Party P,0090570485,ABBEY RAVENSCROFT PARK NURSING HOME,"3,752.00",22/03/2023
Delivery Units,Adults and Health,Other Agencies - Third Party P,0090570486,LIFESTYLE CARE PLC,"2,882.36",22/03/2023
Delivery Units,Adults and Health,Other Agencies - Third Party P,0090570490,ASHTON LODGE CARE CENTRE,"4,201.60",22/03/2023
Delivery Units,Adults and Health,Other Agencies - Third Party P,0090570491,ABBEY RAVENSCROFT PARK NURSING HOME,"3,752.00",22/03/2023
Delivery Units,Adults and Health,Other Agencies - Third Party P,0090570492,APPLE TREE COURT CARE HOME,"3,800.00",22/03/2023
Delivery Units,Adults and Health,Other Agencies - Third Party P,0090570498,JEWISH CARE,"2,882.48",22/03/2023
Delivery Units,Adults and Health,Other Agencies - Third Party P,0090570500,Aarandale Manor Care Home,"4,049.60",22/03/2023
Delivery Units,Adults and Health,Other Agencies - Third Party P,0090570504,ASHTON LODGE CARE CENTRE,"3,552.00",22/03/2023
Delivery Units,Adults and Health,Other Agencies - Third Party P,0090570509,Lancam Care Services Limited,"3,900.00",22/03/2023
Delivery Units,Adults and Health,Other Agencies - Third Party P,0090570511,SAGE NURSING HOME,"4,952.00",22/03/2023
Delivery Units,Adults and Health,Other Agencies - Third Party P,0090570514,ELEANOR PALMER TRUST NO 2 A/C.,"3,752.00",22/03/2023
Delivery Units,Adults and Health,Other Agencies - Third Party P,0090570516,JEWISH CARE,"2,945.48",22/03/2023
Delivery Units,Adults and Health,Other Agencies - Third Party P,0090570523,LIFESTYLE CARE PLC,"2,882.36",22/03/2023
Delivery Units,Adults and Health,Other Agencies - Third Party P,0090570524,SONESTA NURSING HOME LTD.,"2,716.68",22/03/2023
Delivery Units,Adults and Health,Other Agencies - Third Party P,0090570525,ASHTON LODGE CARE CENTRE,"3,650.00",22/03/2023
Delivery Units,Adults and Health,Other Agencies - Third Party P,0090570526,ABBEY RAVENSCROFT PARK NURSING HOME,"4,200.00",22/03/2023
Delivery Units,Adults and Health,Other Agencies - Third Party P,0090570529,APPLE TREE COURT CARE HOME,"-32,485.68",22/03/2023
Delivery Units,Adults and Health,Other Agencies - Third Party P,0090570530,ABBEY RAVENSCROFT PARK NURSING HOME,"4,800.00",22/03/2023
Delivery Units,Adults and Health,Other Agencies - Third Party P,0090570531,ELEANOR PALMER TRUST NO 2 A/C.,"3,800.00",22/03/2023
Delivery Units,Adults and Health,Other Agencies - Third Party P,0090570539,ELM PARK LODGE,"4,593.20",22/03/2023
Delivery Units,Adults and Health,Other Agencies - Third Party P,0090570540,New Century Care (Finchley),"5,000.00",22/03/2023
Delivery Units,Adults and Health,Other Agencies - Third Party P,0090570553,BUPA NURSING HOMES LTD - ARKLEY,"18,942.86",22/03/2023
Delivery Units,Adults and Health,Other Agencies - Third Party P,0090570554,New Century Care (Finchley),"23,913.43",22/03/2023
Delivery Units,Adults and Health,Other Agencies - Third Party P,0090570555,JEWISH CARE,"5,970.85",22/03/2023
Delivery Units,Adults and Health,Other Agencies - Third Party P,0090570556,ABBEY RAVENSCROFT PARK NURSING HOME,"5,266.64",22/03/2023
Delivery Units,Adults and Health,Other Agencies - Third Party P,0090570557,JEWISH CARE,"5,599.01",22/03/2023
Delivery Units,Adults and Health,Other Agencies - Third Party P,0090570558,APPLE TREE COURT CARE HOME,"3,390.56",22/03/2023
Delivery Units,Adults and Health,Other Agencies - Third Party P,0090570559,APPLE TREE COURT CARE HOME,"1,450.72",22/03/2023
Delivery Units,Adults and Health,Other Agencies - Third Party P,0090570560,APPLE TREE COURT CARE HOME,"7,285.67",22/03/2023
Delivery Units,Adults and Health,Other Agencies - Third Party P,0090570571,APPLE TREE COURT CARE HOME,"2,493.08",22/03/2023
Delivery Units,Adults and Health,Other Agencies - Third Party P,0090570573,Aarandale Manor Care Home,"2,814.76",22/03/2023
Delivery Units,Adults and Health,Other Agencies - Third Party P,0090570582,ASHTON LODGE CARE CENTRE,"3,574.76",22/03/2023
Delivery Units,Adults and Health,Other Agencies - Third Party P,0090570585,ELEANOR PALMER TRUST NO 2 A/C.,"3,802.00",22/03/2023
Delivery Units,Adults and Health,Other Agencies - Third Party P,0090570588,JEWISH CARE,"2,682.48",22/03/2023
Delivery Units,Adults and Health,Other Agencies - Third Party P,0090570594,APPLE TREE COURT CARE HOME,"3,764.00",22/03/2023
Delivery Units,Adults and Health,Other Agencies - Third Party P,0090570598,APPLE TREE COURT CARE HOME,"3,385.00",22/03/2023
Delivery Units,Adults and Health,Other Agencies - Third Party P,0090570599,APPLE TREE COURT CARE HOME,"3,385.00",22/03/2023
Delivery Units,Adults and Health,Other Agencies - Third Party P,0090570609,LIFESTYLE CARE PLC,"2,882.36",22/03/2023
Delivery Units,Adults and Health,Other Agencies - Third Party P,0090570611,FOUR SEASONS HEALTH CARE,"2,831.68",22/03/2023
Delivery Units,Adults and Health,Other Agencies - Third Party P,0090570619,APPLE TREE COURT CARE HOME,"3,385.00",22/03/2023
Delivery Units,Adults and Health,Other Agencies - Third Party P,0090570620,ABBEY RAVENSCROFT PARK NURSING HOME,"3,752.00",22/03/2023
Delivery Units,Adults and Health,Other Agencies - Third Party P,0090570621,JEWISH CARE,"2,945.48",22/03/2023
Delivery Units,Adults and Health,Other Agencies - Third Party P,0090570628,BUPA NURSING HOMES LTD - ARKLEY,"2,828.05",22/03/2023
Delivery Units,Adults and Health,Other Agencies - Third Party P,0090570629,ASHTON LODGE CARE CENTRE,"4,201.60",22/03/2023
Delivery Units,Adults and Health,Other Agencies - Third Party P,0090570630,ELEANOR PALMER TRUST NO 2 A/C.,"3,272.00",22/03/2023
Delivery Units,Adults and Health,Other Agencies - Third Party P,0090570639,Aarandale Manor Care Home,"4,049.60",22/03/2023
Delivery Units,Adults and Health,Other Agencies - Third Party P,0090570640,LIFESTYLE CARE PLC,"2,882.36",22/03/2023
Delivery Units,Adults and Health,Other Agencies - Third Party P,0090570641,ELEANOR PALMER TRUST NO 2 A/C.,"4,720.00",22/03/2023
Delivery Units,Adults and Health,Other Agencies - Third Party P,0090570644,JEWISH CARE,"2,945.48",22/03/2023
Delivery Units,Adults and Health,Other Agencies - Third Party P,0090570645,ELEANOR PALMER TRUST NO 2 A/C.,"3,752.00",22/03/2023
Delivery Units,Adults and Health,Other Agencies - Third Party P,0090570646,Lancam Care Services Limited,"3,700.00",22/03/2023
Delivery Units,Adults and Health,Other Agencies - Third Party P,0090570648,LIFESTYLE CARE PLC,"2,882.36",22/03/2023
Delivery Units,Adults and Health,Other Agencies - Third Party P,0090570652,SAGE NURSING HOME,"3,040.00",22/03/2023
Delivery Units,Adults and Health,Other Agencies - Third Party P,0090570653,BUPA NURSING HOMES LTD - ARKLEY,"2,828.05",22/03/2023
Delivery Units,Adults and Health,Other Agencies - Third Party P,0090570654,JEWISH CARE,"8,263.92",22/03/2023
Delivery Units,Adults and Health,Other Agencies - Third Party P,0090570655,Lancam Care Services Limited,"3,980.00",22/03/2023
Delivery Units,Adults and Health,Other Agencies - Third Party P,0090570657,FOUR SEASONS HEALTH CARE,"2,831.68",22/03/2023
Delivery Units,Adults and Health,Other Agencies - Third Party P,0090570658,Lancam Care Services Limited,"3,980.00",22/03/2023
Delivery Units,Adults and Health,Other Agencies - Third Party P,0090570659,BUPA CARE HOMES,"2,828.05",22/03/2023
Delivery Units,Adults and Health,Other Agencies - Third Party P,0090570663,JEWISH CARE,"12,575.10",22/03/2023
Delivery Units,Adults and Health,Other Agencies - Third Party P,0090570664,JEWISH CARE,"2,882.48",22/03/2023
Delivery Units,Adults and Health,Other Agencies - Third Party P,0090570666,APPLE TREE COURT CARE HOME,"4,763.24",22/03/2023
Delivery Units,Adults and Health,Other Agencies - Third Party P,0090570668,New Century Care (Finchley),"4,400.00",22/03/2023
Delivery Units,Adults and Health,Other Agencies - Third Party P,0090570670,BUPA CARE HOMES,"2,828.05",22/03/2023
Delivery Units,Adults and Health,Other Agencies - Third Party P,0090570671,ABBEY RAVENSCROFT PARK NURSING HOME,"4,400.00",22/03/2023
Delivery Units,Adults and Health,Other Agencies - Third Party P,0090570672,APPLE TREE COURT CARE HOME,"3,753.20",22/03/2023
Delivery Units,Adults and Health,Other Agencies - Third Party P,0090570674,FOUR SEASONS HEALTH CARE,"2,831.68",22/03/2023
Delivery Units,Adults and Health,Other Agencies - Third Party P,0090570675,LIFESTYLE CARE PLC,"2,882.36",22/03/2023
Delivery Units,Adults and Health,Other Agencies - Third Party P,0090570676,ABBEY RAVENSCROFT PARK NURSING HOME,"4,800.00",22/03/2023
Delivery Units,Adults and Health,Other Agencies - Third Party P,0090570677,BUPA NURSING HOMES LTD - ARKLEY,"3,400.00",22/03/2023
Delivery Units,Adults and Health,Other Agencies - Third Party P,0090570682,APPLE TREE COURT CARE HOME,"4,763.24",22/03/2023
Delivery Units,Adults and Health,Other Agencies - Third Party P,0090570684,ABBEY RAVENSCROFT PARK NURSING HOME,"5,500.00",22/03/2023
Delivery Units,Adults and Health,Other Agencies - Third Party P,0090570685,ABBEY RAVENSCROFT PARK NURSING HOME,"6,066.65",22/03/2023
Delivery Units,Adults and Health,Other Agencies - Third Party P,0090570686,BUPA NURSING HOMES LTD - ARKLEY,"24,792.86",22/03/2023
Delivery Units,Adults and Health,Other Agencies - Third Party P,0090570687,ABBEY RAVENSCROFT PARK NURSING HOME,"57,771.43",22/03/2023
Delivery Units,Adults and Health,Other Agencies - Third Party P,0090570688,SONESTA NURSING HOME LTD.,"3,085.72",22/03/2023
Delivery Units,Adults and Health,Other Agencies - Third Party P,0090570689,BUPA CARE HOMES,"11,285.71",22/03/2023
Delivery Units,Adults and Health,Other Agencies - Third Party P,0090570690,SAGE NURSING HOME,"4,400.00",22/03/2023
Delivery Units,Adults and Health,Other Agencies - Third Party P,0090570693,APPLE TREE COURT CARE HOME,"29,845.53",22/03/2023
Delivery Units,Adults and Health,Other Agencies - Third Party P,0090570701,SONESTA NURSING HOME LTD.,"2,971.43",22/03/2023
Delivery Units,Adults and Health,Other Agencies - Third Party P,0090570702,SONESTA NURSING HOME LTD.,"2,857.14",22/03/2023
Delivery Units,Adults and Health,Other Agencies - Third Party P,0090570703,New Century Care (Finchley),"7,028.57",22/03/2023
Delivery Units,Adults and Health,Other Agencies - Third Party P,0090571261,WESTMINSTER HEALTH CARE LTD,"4,864.08",23/03/2023
Delivery Units,Adults and Health,Other Agencies - Third Party P,0090571273,WESTMINSTER HEALTH CARE LTD,"20,073.65",23/03/2023
Delivery Units,Adults and Health,Other Agencies - Third Party P,0090571339,St Matthews Limited,"15,708.00",23/03/2023
Delivery Units,Adults and Health,Other Agencies - Third Party P,0090561330,Shenleybury House Ltd,"3,600.00",03/03/2023
Delivery Units,Adults and Health,Other Agencies - Third Party P,0090561331,Shenleybury House Ltd,"3,600.00",03/03/2023
Delivery Units,Adults and Health,Other Agencies - Third Party P,0090561564,CATHERINE LODGE,"3,800.00",06/03/2023
Delivery Units,Adults and Health,Other Agencies - Third Party P,0090561584,ROSEACRES CARE HOME LIMITED,"3,120.00",06/03/2023
Delivery Units,Adults and Health,Other Agencies - Third Party P,0090561601,CATHERINE LODGE,"3,400.00",06/03/2023
Delivery Units,Adults and Health,Other Agencies - Third Party P,0090561610,CATHERINE LODGE,"3,580.00",06/03/2023
Delivery Units,Adults and Health,Other Agencies - Third Party P,0090561612,CARLTON COURT (TLC GROUP),"5,800.00",06/03/2023
Delivery Units,Adults and Health,Other Agencies - Third Party P,0090561618,CARLTON COURT (TLC GROUP),"5,400.00",06/03/2023
Delivery Units,Adults and Health,Other Agencies - Third Party P,0090561628,ROSEACRES CARE HOME LIMITED,"3,200.00",06/03/2023
Delivery Units,Adults and Health,Other Agencies - Third Party P,0090561641,CATHERINE LODGE,"3,800.00",06/03/2023
Delivery Units,Adults and Health,Other Agencies - Third Party P,0090561647,ROSEACRES CARE HOME LIMITED,"2,900.00",06/03/2023
Delivery Units,Adults and Health,Other Agencies - Third Party P,0090561665,ROSEACRES CARE HOME LIMITED,"3,400.00",06/03/2023
Delivery Units,Adults and Health,Other Agencies - Third Party P,0090561673,CATHERINE LODGE,"3,800.00",06/03/2023
Delivery Units,Adults and Health,Other Agencies - Third Party P,0090561690,CATHERINE LODGE,"3,200.00",06/03/2023
Delivery Units,Adults and Health,Other Agencies - Third Party P,0090561705,ROSEACRES CARE HOME LIMITED,-500.00,06/03/2023
Delivery Units,Adults and Health,Other Agencies - Third Party P,0090561718,CATHERINE LODGE,"3,800.00",06/03/2023
Delivery Units,Adults and Health,Other Agencies - Third Party P,0090561738,CARLTON COURT (TLC GROUP),"5,200.00",06/03/2023
Delivery Units,Adults and Health,Other Agencies - Third Party P,0090561739,CATHERINE LODGE,"3,800.00",06/03/2023
Delivery Units,Adults and Health,Other Agencies - Third Party P,0090561757,ROSEACRES CARE HOME LIMITED,"2,900.00",06/03/2023
Delivery Units,Adults and Health,Other Agencies - Third Party P,0090561807,ROSEACRES CARE HOME LIMITED,"3,400.00",06/03/2023
Delivery Units,Adults and Health,Other Agencies - Third Party P,0090561845,ROSEACRES CARE HOME LIMITED,"3,200.00",06/03/2023
Delivery Units,Adults and Health,Other Agencies - Third Party P,0090561871,ROSEACRES CARE HOME LIMITED,"3,400.00",06/03/2023
Delivery Units,Adults and Health,Other Agencies - Third Party P,0090561910,CATHERINE LODGE,"3,000.00",06/03/2023
Delivery Units,Adults and Health,Other Agencies - Third Party P,0090561913,ROSEACRES CARE HOME LIMITED,"3,676.00",06/03/2023
Delivery Units,Adults and Health,Other Agencies - Third Party P,0090561914,CARLTON COURT (TLC GROUP),"2,380.00",06/03/2023
Delivery Units,Adults and Health,Other Agencies - Third Party P,0090561918,ROSEACRES CARE HOME LIMITED,"3,120.00",06/03/2023
Delivery Units,Adults and Health,Other Agencies - Third Party P,0090561946,ROSEACRES CARE HOME LIMITED,"3,400.00",06/03/2023
Delivery Units,Adults and Health,Other Agencies - Third Party P,0090561953,CATHERINE LODGE,"3,200.00",06/03/2023
Delivery Units,Adults and Health,Other Agencies - Third Party P,0090561962,ROSEACRES CARE HOME LIMITED,"2,900.00",06/03/2023
Delivery Units,Adults and Health,Other Agencies - Third Party P,0090561975,ROSEACRES CARE HOME LIMITED,"3,400.00",06/03/2023
Delivery Units,Adults and Health,Other Agencies - Third Party P,0090561984,ROSEACRES CARE HOME LIMITED,"3,600.00",06/03/2023
Delivery Units,Adults and Health,Other Agencies - Third Party P,0090561989,ROSEACRES CARE HOME LIMITED,"3,800.00",06/03/2023
Delivery Units,Adults and Health,Other Agencies - Third Party P,0090561990,ROSEACRES CARE HOME LIMITED,"3,800.00",06/03/2023
Delivery Units,Adults and Health,Other Agencies - Third Party P,0090561995,CATHERINE LODGE,"3,800.00",06/03/2023
Delivery Units,Adults and Health,Other Agencies - Third Party P,0090561997,CARLTON COURT (TLC GROUP),"18,264.29",06/03/2023
Delivery Units,Adults and Health,Other Agencies - Third Party P,0090562226,Warren Heath Residential Home Ltd,"3,660.00",08/03/2023
Delivery Units,Adults and Health,Other Agencies - Third Party P,0090562234,Shenleybury House Ltd,"3,985.71",08/03/2023
Delivery Units,Adults and Health,Other Agencies - Third Party P,0090562863,TENTERDEN HOUSE,"4,280.26",09/03/2023
Delivery Units,Adults and Health,Other Agencies - Third Party P,0090562876,SYDMAR LODGE,"5,535.71",09/03/2023
Delivery Units,Adults and Health,Other Agencies - Third Party P,0090562877,SYDMAR LODGE,"4,353.29",09/03/2023
Delivery Units,Adults and Health,Other Agencies - Third Party P,0090562879,SYDMAR LODGE,"5,535.71",09/03/2023
Delivery Units,Adults and Health,Other Agencies - Third Party P,0090562880,SYDMAR LODGE,"5,535.71",09/03/2023
Delivery Units,Adults and Health,Other Agencies - Third Party P,0090567641,TBG Mosaic,"2,676.00",20/03/2023
Delivery Units,Adults and Health,Other Agencies - Third Party P,0090567642,TBG Mosaic,"2,676.00",20/03/2023
Delivery Units,Adults and Health,Other Agencies - Third Party P,0090567644,TBG Mosaic,"2,540.00",20/03/2023
Delivery Units,Adults and Health,Other Agencies - Third Party P,0090567646,TBG Mosaic,"2,540.00",20/03/2023
Delivery Units,Adults and Health,Other Agencies - Third Party P,0090567647,TBG Mosaic,"2,540.00",20/03/2023
Delivery Units,Adults and Health,Other Agencies - Third Party P,0090567648,TBG Mosaic,"2,540.00",20/03/2023
Delivery Units,Adults and Health,Other Agencies - Third Party P,0090567649,TBG Mosaic,"4,430.40",20/03/2023
Delivery Units,Adults and Health,Other Agencies - Third Party P,0090567650,TBG Mosaic,"2,676.00",20/03/2023
Delivery Units,Adults and Health,Other Agencies - Third Party P,0090567651,TBG Mosaic,"2,676.00",20/03/2023
Delivery Units,Adults and Health,Other Agencies - Third Party P,0090567652,TBG Mosaic,"2,540.00",20/03/2023
Delivery Units,Adults and Health,Other Agencies - Third Party P,0090567653,TBG Mosaic,"2,676.00",20/03/2023
Delivery Units,Adults and Health,Other Agencies - Third Party P,0090567654,TBG Mosaic,"2,540.00",20/03/2023
Delivery Units,Adults and Health,Other Agencies - Third Party P,0090567655,TBG Mosaic,"2,676.00",20/03/2023
Delivery Units,Adults and Health,Other Agencies - Third Party P,0090567656,TBG Mosaic,"2,676.00",20/03/2023
Delivery Units,Adults and Health,Other Agencies - Third Party P,0090567657,TBG Mosaic,"2,540.00",20/03/2023
Delivery Units,Adults and Health,Other Agencies - Third Party P,0090567658,TBG Mosaic,"2,676.00",20/03/2023
Delivery Units,Adults and Health,Other Agencies - Third Party P,0090567659,TBG Mosaic,"2,857.92",20/03/2023
Delivery Units,Adults and Health,Other Agencies - Third Party P,0090567660,TBG Mosaic,"2,540.00",20/03/2023
Delivery Units,Adults and Health,Other Agencies - Third Party P,0090567661,TBG Mosaic,"2,676.00",20/03/2023
Delivery Units,Adults and Health,Other Agencies - Third Party P,0090567662,TBG Mosaic,"2,540.00",20/03/2023
Delivery Units,Adults and Health,Other Agencies - Third Party P,0090567663,TBG Mosaic,"2,676.00",20/03/2023
Delivery Units,Adults and Health,Other Agencies - Third Party P,0090567664,TBG Mosaic,"2,676.00",20/03/2023
Delivery Units,Adults and Health,Other Agencies - Third Party P,0090567665,TBG Mosaic,"2,676.00",20/03/2023
Delivery Units,Adults and Health,Other Agencies - Third Party P,0090567666,TBG Mosaic,"2,676.00",20/03/2023
Delivery Units,Adults and Health,Other Agencies - Third Party P,0090567668,TBG Mosaic,"2,540.00",20/03/2023
Delivery Units,Adults and Health,Other Agencies - Third Party P,0090567669,TBG Mosaic,"9,381.12",20/03/2023
Delivery Units,Adults and Health,Other Agencies - Third Party P,0090567670,TBG Mosaic,"4,612.00",20/03/2023
Delivery Units,Adults and Health,Other Agencies - Third Party P,0090567671,TBG Mosaic,"8,427.23",20/03/2023
Delivery Units,Adults and Health,Other Agencies - Third Party P,0090567672,TBG Mosaic,"9,673.20",20/03/2023
Delivery Units,Adults and Health,Other Agencies - Third Party P,0090567673,TBG Mosaic,"2,676.00",20/03/2023
Delivery Units,Adults and Health,Other Agencies - Third Party P,0090567674,TBG Mosaic,"2,540.00",20/03/2023
Delivery Units,Adults and Health,Other Agencies - Third Party P,0090567675,TBG Mosaic,"2,540.00",20/03/2023
Delivery Units,Adults and Health,Other Agencies - Third Party P,0090567676,TBG Mosaic,"3,000.00",20/03/2023
Delivery Units,Adults and Health,Other Agencies - Third Party P,0090567677,TBG Mosaic,"2,540.00",20/03/2023
Delivery Units,Adults and Health,Other Agencies - Third Party P,0090567678,TBG Mosaic,"2,676.00",20/03/2023
Delivery Units,Adults and Health,Other Agencies - Third Party P,0090567679,TBG Mosaic,"2,676.00",20/03/2023
Delivery Units,Adults and Health,Other Agencies - Third Party P,0090567680,TBG Mosaic,"2,540.00",20/03/2023
Delivery Units,Adults and Health,Other Agencies - Third Party P,0090567681,TBG Mosaic,"2,676.00",20/03/2023
Delivery Units,Adults and Health,Other Agencies - Third Party P,0090567682,TBG Mosaic,"2,676.00",20/03/2023
Delivery Units,Adults and Health,Other Agencies - Third Party P,0090567683,TBG Mosaic,"2,540.00",20/03/2023
Delivery Units,Adults and Health,Other Agencies - Third Party P,0090567684,TBG Mosaic,"13,999.20",20/03/2023
Delivery Units,Adults and Health,Other Agencies - Third Party P,0090567685,TBG Mosaic,"2,540.00",20/03/2023
Delivery Units,Adults and Health,Other Agencies - Third Party P,0090567686,TBG Mosaic,"2,540.00",20/03/2023
Delivery Units,Adults and Health,Other Agencies - Third Party P,0090567687,TBG Mosaic,"2,540.00",20/03/2023
Delivery Units,Adults and Health,Other Agencies - Third Party P,0090567689,TBG Mosaic,"2,676.00",20/03/2023
Delivery Units,Adults and Health,Other Agencies - Third Party P,0090567690,TBG Mosaic,"15,344.34",20/03/2023
Delivery Units,Adults and Health,Other Agencies - Third Party P,0090567691,TBG Mosaic,"2,676.00",20/03/2023
Delivery Units,Adults and Health,Other Agencies - Third Party P,0090567692,TBG Mosaic,"2,676.00",20/03/2023
Delivery Units,Adults and Health,Other Agencies - Third Party P,0090567693,TBG Mosaic,"2,540.00",20/03/2023
Delivery Units,Adults and Health,Other Agencies - Third Party P,0090567694,TBG Mosaic,"2,540.00",20/03/2023
Delivery Units,Adults and Health,Other Agencies - Third Party P,0090567695,TBG Mosaic,"2,540.00",20/03/2023
Delivery Units,Adults and Health,Other Agencies - Third Party P,0090567696,TBG Mosaic,"2,540.00",20/03/2023
Delivery Units,Adults and Health,Other Agencies - Third Party P,0090567697,TBG Mosaic,"5,255.14",20/03/2023
Delivery Units,Adults and Health,Other Agencies - Third Party P,0090570250,CATHERINE LODGE,"3,800.00",22/03/2023
Delivery Units,Adults and Health,Other Agencies - Third Party P,0090570271,ROSEACRES CARE HOME LIMITED,"3,120.00",22/03/2023
Delivery Units,Adults and Health,Other Agencies - Third Party P,0090570288,CATHERINE LODGE,"3,400.00",22/03/2023
Delivery Units,Adults and Health,Other Agencies - Third Party P,0090570297,CATHERINE LODGE,"3,580.00",22/03/2023
Delivery Units,Adults and Health,Other Agencies - Third Party P,0090570299,CARLTON COURT (TLC GROUP),"5,800.00",22/03/2023
Delivery Units,Adults and Health,Other Agencies - Third Party P,0090570305,CARLTON COURT (TLC GROUP),"5,400.00",22/03/2023
Delivery Units,Adults and Health,Other Agencies - Third Party P,0090570320,CATHERINE LODGE,"3,200.00",22/03/2023
Delivery Units,Adults and Health,Other Agencies - Third Party P,0090570335,ROSEACRES CARE HOME LIMITED,-396.43,22/03/2023
Delivery Units,Adults and Health,Other Agencies - Third Party P,0090570348,CATHERINE LODGE,"3,800.00",22/03/2023
Delivery Units,Adults and Health,Other Agencies - Third Party P,0090570365,CATHERINE LODGE,"-3,935.71",22/03/2023
Delivery Units,Adults and Health,Other Agencies - Third Party P,0090570369,CARLTON COURT (TLC GROUP),"5,200.00",22/03/2023
Delivery Units,Adults and Health,Other Agencies - Third Party P,0090570370,CATHERINE LODGE,"3,800.00",22/03/2023
Delivery Units,Adults and Health,Other Agencies - Third Party P,0090570380,CATHERINE LODGE,"3,000.00",22/03/2023
Delivery Units,Adults and Health,Other Agencies - Third Party P,0090570383,ROSEACRES CARE HOME LIMITED,"2,900.00",22/03/2023
Delivery Units,Adults and Health,Other Agencies - Third Party P,0090570384,CARLTON COURT (TLC GROUP),"19,791.84",22/03/2023
Delivery Units,Adults and Health,Other Agencies - Third Party P,0090570388,ROSEACRES CARE HOME LIMITED,"3,120.00",22/03/2023
Delivery Units,Adults and Health,Other Agencies - Third Party P,0090570416,ROSEACRES CARE HOME LIMITED,"3,400.00",22/03/2023
Delivery Units,Adults and Health,Other Agencies - Third Party P,0090570423,CATHERINE LODGE,"3,200.00",22/03/2023
Delivery Units,Adults and Health,Other Agencies - Third Party P,0090570436,CARLTON COURT (TLC GROUP),"8,414.29",22/03/2023
Delivery Units,Adults and Health,Other Agencies - Third Party P,0090570440,ROSEACRES CARE HOME LIMITED,"2,900.00",22/03/2023
Delivery Units,Adults and Health,Other Agencies - Third Party P,0090570452,ROSEACRES CARE HOME LIMITED,"3,400.00",22/03/2023
Delivery Units,Adults and Health,Other Agencies - Third Party P,0090570461,ROSEACRES CARE HOME LIMITED,"3,600.00",22/03/2023
Delivery Units,Adults and Health,Other Agencies - Third Party P,0090570465,ROSEACRES CARE HOME LIMITED,"3,800.00",22/03/2023
Delivery Units,Adults and Health,Other Agencies - Third Party P,0090570466,ROSEACRES CARE HOME LIMITED,"3,800.00",22/03/2023
Delivery Units,Adults and Health,Other Agencies - Third Party P,0090570470,CATHERINE LODGE,"3,800.00",22/03/2023
Delivery Units,Adults and Health,Other Agencies - Third Party P,0090570471,CARLTON COURT (TLC GROUP),"7,200.00",22/03/2023
Delivery Units,Adults and Health,Other Agencies - Third Party P,0090570483,ROSEACRES CARE HOME LIMITED,"3,200.00",22/03/2023
Delivery Units,Adults and Health,Other Agencies - Third Party P,0090570496,CATHERINE LODGE,"3,800.00",22/03/2023
Delivery Units,Adults and Health,Other Agencies - Third Party P,0090570502,ROSEACRES CARE HOME LIMITED,"2,900.00",22/03/2023
Delivery Units,Adults and Health,Other Agencies - Third Party P,0090570519,ROSEACRES CARE HOME LIMITED,"3,400.00",22/03/2023
Delivery Units,Adults and Health,Other Agencies - Third Party P,0090570527,CATHERINE LODGE,"3,800.00",22/03/2023
Delivery Units,Adults and Health,Other Agencies - Third Party P,0090570549,ROSEACRES CARE HOME LIMITED,"-4,350.00",22/03/2023
Delivery Units,Adults and Health,Other Agencies - Third Party P,0090570551,ROSEACRES CARE HOME LIMITED,"7,146.43",22/03/2023
Delivery Units,Adults and Health,Other Agencies - Third Party P,0090570597,ROSEACRES CARE HOME LIMITED,"3,400.00",22/03/2023
Delivery Units,Adults and Health,Other Agencies - Third Party P,0090570634,ROSEACRES CARE HOME LIMITED,"3,200.00",22/03/2023
Delivery Units,Adults and Health,Other Agencies - Third Party P,0090570660,ROSEACRES CARE HOME LIMITED,"3,400.00",22/03/2023
Delivery Units,Adults and Health,Other Agencies - Third Party P,0090570692,CARLTON COURT (TLC GROUP),"6,200.00",22/03/2023
Delivery Units,Adults and Health,Other Agencies - Third Party P,0090571970,TENTERDEN HOUSE,"4,305.04",23/03/2023
Delivery Units,Adults and Health,Other Agencies - Third Party P,0090561313,LIVABILITY,"4,720.12",03/03/2023
Delivery Units,Adults and Health,Other Agencies - Third Party P,0090561317,LIVABILITY,"3,740.44",03/03/2023
Delivery Units,Adults and Health,Other Agencies - Third Party P,0090561318,LIVABILITY,"3,572.56",03/03/2023
Delivery Units,Adults and Health,Other Agencies - Third Party P,0090562232,VILLA SCALABRINI,"4,428.57",08/03/2023
Delivery Units,Adults and Health,Other Agencies - Third Party P,0090562651,LIVABILITY,"4,720.12",09/03/2023
Delivery Units,Adults and Health,Other Agencies - Third Party P,0090562655,LIVABILITY,"3,740.44",09/03/2023
Delivery Units,Adults and Health,Other Agencies - Third Party P,0090562656,LIVABILITY,"3,572.56",09/03/2023
Delivery Units,Adults and Health,Other Agencies - Third Party P,0090571332,LIVABILITY,505.73,23/03/2023
Delivery Units,Adults and Health,Other Agencies - Third Party P,0090571335,LIVABILITY,400.76,23/03/2023
Delivery Units,Adults and Health,Other Agencies - Third Party P,0090571336,LIVABILITY,382.78,23/03/2023
Delivery Units,Adults and Health,Other Agencies - Third Party P,0090561872,WOODFIELD HOUSE,"14,081.60",06/03/2023
Delivery Units,Adults and Health,Other Agencies - Third Party P,0090562007,WOODFIELD HOUSE,"14,827.89",06/03/2023
Delivery Units,Adults and Health,Other Agencies - Third Party P,0090570481,WOODFIELD HOUSE,"5,354.51",22/03/2023
Delivery Units,Adults and Health,Other Agencies - Third Party P,0090570661,WOODFIELD HOUSE,"14,081.60",22/03/2023
Delivery Units,Adults and Health,Other Agencies - Third Party P,0090561338,AGUDAS ISRAEL HOUSING ASSCTN LTD,"4,000.00",03/03/2023
Delivery Units,Adults and Health,Other Agencies - Third Party P,0090567704,AGUDAS ISRAEL HOUSING ASSCTN LTD,"4,714.28",20/03/2023
Delivery Units,Adults and Health,Other Agencies - Third Party P,0090560759,Avon Lodge UK Ltd,"3,600.00",02/03/2023
Delivery Units,Adults and Health,Other Agencies - Third Party P,0090561320,THE WOODSIDE HOME,"2,920.00",03/03/2023
Delivery Units,Adults and Health,Other Agencies - Third Party P,0090561321,THE WOODSIDE HOME,"2,540.00",03/03/2023
Delivery Units,Adults and Health,Other Agencies - Third Party P,0090561322,THE WOODSIDE HOME,"2,676.00",03/03/2023
Delivery Units,Adults and Health,Other Agencies - Third Party P,0090561323,THE WOODSIDE HOME,"2,540.00",03/03/2023
Delivery Units,Adults and Health,Other Agencies - Third Party P,0090561324,THE WOODSIDE HOME,"2,540.00",03/03/2023
Delivery Units,Adults and Health,Other Agencies - Third Party P,0090561329,Allied Care (MH) Ltd,"5,168.00",03/03/2023
Delivery Units,Adults and Health,Other Agencies - Third Party P,0090561519,NAZARETH HOUSE,"2,540.00",06/03/2023
Delivery Units,Adults and Health,Other Agencies - Third Party P,0090561521,ELM PARK LODGE,"3,168.92",06/03/2023
Delivery Units,Adults and Health,Other Agencies - Third Party P,0090561523,JEWISH CARE,"2,801.80",06/03/2023
Delivery Units,Adults and Health,Other Agencies - Third Party P,0090561529,NAZARETH HOUSE,"2,540.00",06/03/2023
Delivery Units,Adults and Health,Other Agencies - Third Party P,0090561535,THE LIMES RESIDENTIAL HOME,"3,160.00",06/03/2023
Delivery Units,Adults and Health,Other Agencies - Third Party P,0090561536,JEWISH CARE,"2,659.00",06/03/2023
Delivery Units,Adults and Health,Other Agencies - Third Party P,0090561546,JEWISH CARE,"2,801.80",06/03/2023
Delivery Units,Adults and Health,Other Agencies - Third Party P,0090561547,JEWISH CARE,"2,747.48",06/03/2023
Delivery Units,Adults and Health,Other Agencies - Third Party P,0090561548,JEWISH CARE,"2,801.80",06/03/2023
Delivery Units,Adults and Health,Other Agencies - Third Party P,0090561551,THE LIMES RESIDENTIAL HOME,"3,120.00",06/03/2023
Delivery Units,Adults and Health,Other Agencies - Third Party P,0090561552,JEWISH CARE,"2,659.00",06/03/2023
Delivery Units,Adults and Health,Other Agencies - Third Party P,0090561556,JEWISH CARE,"2,659.00",06/03/2023
Delivery Units,Adults and Health,Other Agencies - Third Party P,0090561557,ELEANOR PALMER TRUST NO 2 A/C.,"3,240.00",06/03/2023
Delivery Units,Adults and Health,Other Agencies - Third Party P,0090561558,ELEANOR PALMER TRUST NO 2 A/C.,"3,240.00",06/03/2023
Delivery Units,Adults and Health,Other Agencies - Third Party P,0090561559,ELEANOR PALMER TRUST NO 2 A/C.,"3,240.00",06/03/2023
Delivery Units,Adults and Health,Other Agencies - Third Party P,0090561570,BUPA CARE HOMES,"2,516.00",06/03/2023
Delivery Units,Adults and Health,Other Agencies - Third Party P,0090561575,ELEANOR PALMER TRUST NO 2 A/C.,"3,280.44",06/03/2023
Delivery Units,Adults and Health,Other Agencies - Third Party P,0090561578,JEWISH CARE,"4,265.48",06/03/2023
Delivery Units,Adults and Health,Other Agencies - Third Party P,0090561581,JEWISH CARE,"2,641.80",06/03/2023
Delivery Units,Adults and Health,Other Agencies - Third Party P,0090561583,JEWISH CARE,"2,801.80",06/03/2023
Delivery Units,Adults and Health,Other Agencies - Third Party P,0090561593,JEWISH CARE,"4,825.16",06/03/2023
Delivery Units,Adults and Health,Other Agencies - Third Party P,0090561595,ASHTON LODGE CARE CENTRE,"4,136.52",06/03/2023
Delivery Units,Adults and Health,Other Agencies - Third Party P,0090561598,JEWISH CARE,"2,801.80",06/03/2023
Delivery Units,Adults and Health,Other Agencies - Third Party P,0090561600,JEWISH CARE,"2,641.80",06/03/2023
Delivery Units,Adults and Health,Other Agencies - Third Party P,0090561613,JEWISH CARE,"2,801.80",06/03/2023
Delivery Units,Adults and Health,Other Agencies - Third Party P,0090561617,JEWISH CARE,"5,070.40",06/03/2023
Delivery Units,Adults and Health,Other Agencies - Third Party P,0090561619,JEWISH CARE,"2,659.00",06/03/2023
Delivery Units,Adults and Health,Other Agencies - Third Party P,0090561620,NAZARETH HOUSE,"2,676.00",06/03/2023
Delivery Units,Adults and Health,Other Agencies - Third Party P,0090561625,LIFESTYLE CARE PLC,"3,200.00",06/03/2023
Delivery Units,Adults and Health,Other Agencies - Third Party P,0090561626,ELMHURST RESIDENTIAL HOME,"3,800.00",06/03/2023
Delivery Units,Adults and Health,Other Agencies - Third Party P,0090561627,JEWISH CARE,"2,801.80",06/03/2023
Delivery Units,Adults and Health,Other Agencies - Third Party P,0090561633,NAZARETH HOUSE,"2,676.00",06/03/2023
Delivery Units,Adults and Health,Other Agencies - Third Party P,0090561634,JEWISH CARE,"2,499.00",06/03/2023
Delivery Units,Adults and Health,Other Agencies - Third Party P,0090561642,JEWISH CARE,"2,801.80",06/03/2023
Delivery Units,Adults and Health,Other Agencies - Third Party P,0090561646,BUPA CARE HOMES,"3,361.92",06/03/2023
Delivery Units,Adults and Health,Other Agencies - Third Party P,0090561648,SAGE NURSING HOME,"3,520.00",06/03/2023
Delivery Units,Adults and Health,Other Agencies - Third Party P,0090561650,ELEANOR PALMER TRUST NO 2 A/C.,"3,240.00",06/03/2023
Delivery Units,Adults and Health,Other Agencies - Third Party P,0090561651,JEWISH CARE,"2,801.80",06/03/2023
Delivery Units,Adults and Health,Other Agencies - Third Party P,0090561652,NAZARETH HOUSE,"-1,624.71",06/03/2023
Delivery Units,Adults and Health,Other Agencies - Third Party P,0090561653,NAZARETH HOUSE,"2,676.00",06/03/2023
Delivery Units,Adults and Health,Other Agencies - Third Party P,0090561659,ELMHURST RESIDENTIAL HOME,"3,600.00",06/03/2023
Delivery Units,Adults and Health,Other Agencies - Third Party P,0090561661,NAZARETH HOUSE,"2,540.00",06/03/2023
Delivery Units,Adults and Health,Other Agencies - Third Party P,0090561667,APPLE TREE COURT CARE HOME,"3,400.00",06/03/2023
Delivery Units,Adults and Health,Other Agencies - Third Party P,0090561668,APPLE TREE COURT CARE HOME,"3,400.00",06/03/2023
Delivery Units,Adults and Health,Other Agencies - Third Party P,0090561679,THE LIMES RESIDENTIAL HOME,"3,500.00",06/03/2023
Delivery Units,Adults and Health,Other Agencies - Third Party P,0090561683,Aarandale Manor Care Home,"5,000.00",06/03/2023
Delivery Units,Adults and Health,Other Agencies - Third Party P,0090561685,JEWISH CARE,"3,504.36",06/03/2023
Delivery Units,Adults and Health,Other Agencies - Third Party P,0090561687,JEWISH CARE,"2,801.80",06/03/2023
Delivery Units,Adults and Health,Other Agencies - Third Party P,0090561688,NAZARETH HOUSE,"2,676.00",06/03/2023
Delivery Units,Adults and Health,Other Agencies - Third Party P,0090561692,BUPA NURSING HOMES LTD - ARKLEY,"2,800.00",06/03/2023
Delivery Units,Adults and Health,Other Agencies - Third Party P,0090561697,ELM PARK LODGE,"3,536.00",06/03/2023
Delivery Units,Adults and Health,Other Agencies - Third Party P,0090561702,NAZARETH HOUSE,"2,540.00",06/03/2023
Delivery Units,Adults and Health,Other Agencies - Third Party P,0090561703,JEWISH CARE,"7,658.40",06/03/2023
Delivery Units,Adults and Health,Other Agencies - Third Party P,0090561707,ELMHURST RESIDENTIAL HOME,"4,000.00",06/03/2023
Delivery Units,Adults and Health,Other Agencies - Third Party P,0090561708,APPLE TREE COURT CARE HOME,"3,400.00",06/03/2023
Delivery Units,Adults and Health,Other Agencies - Third Party P,0090561716,JEWISH CARE,"2,945.48",06/03/2023
Delivery Units,Adults and Health,Other Agencies - Third Party P,0090561721,NAZARETH HOUSE,"4,471.20",06/03/2023
Delivery Units,Adults and Health,Other Agencies - Third Party P,0090561722,BUPA CARE HOMES,"4,000.00",06/03/2023
Delivery Units,Adults and Health,Other Agencies - Third Party P,0090561730,JEWISH CARE,"2,801.80",06/03/2023
Delivery Units,Adults and Health,Other Agencies - Third Party P,0090561740,THE LIMES RESIDENTIAL HOME,"3,400.00",06/03/2023
Delivery Units,Adults and Health,Other Agencies - Third Party P,0090561743,ELMHURST RESIDENTIAL HOME,"8,832.00",06/03/2023
Delivery Units,Adults and Health,Other Agencies - Third Party P,0090561747,JEWISH CARE,"2,657.00",06/03/2023
Delivery Units,Adults and Health,Other Agencies - Third Party P,0090561749,APPLE TREE COURT CARE HOME,"4,352.00",06/03/2023
Delivery Units,Adults and Health,Other Agencies - Third Party P,0090561753,LIFESTYLE CARE PLC,"8,500.00",06/03/2023
Delivery Units,Adults and Health,Other Agencies - Third Party P,0090561755,Aarandale Manor Care Home,"5,200.00",06/03/2023
Delivery Units,Adults and Health,Other Agencies - Third Party P,0090561758,NAZARETH HOUSE,"2,895.86",06/03/2023
Delivery Units,Adults and Health,Other Agencies - Third Party P,0090561768,ELM PARK LODGE,"4,984.00",06/03/2023
Delivery Units,Adults and Health,Other Agencies - Third Party P,0090561788,ELEANOR PALMER TRUST NO 2 A/C.,"3,280.44",06/03/2023
Delivery Units,Adults and Health,Other Agencies - Third Party P,0090561794,ELMHURST RESIDENTIAL HOME,"3,000.00",06/03/2023
Delivery Units,Adults and Health,Other Agencies - Third Party P,0090561796,ELEANOR PALMER TRUST NO 2 A/C.,"3,240.00",06/03/2023
Delivery Units,Adults and Health,Other Agencies - Third Party P,0090561799,ELMHURST RESIDENTIAL HOME,"3,000.00",06/03/2023
Delivery Units,Adults and Health,Other Agencies - Third Party P,0090561803,NAZARETH HOUSE,"2,540.00",06/03/2023
Delivery Units,Adults and Health,Other Agencies - Third Party P,0090561806,JEWISH CARE,"2,801.80",06/03/2023
Delivery Units,Adults and Health,Other Agencies - Third Party P,0090561810,THE LIMES RESIDENTIAL HOME,"3,120.00",06/03/2023
Delivery Units,Adults and Health,Other Agencies - Third Party P,0090561812,NAZARETH HOUSE,"2,676.00",06/03/2023
Delivery Units,Adults and Health,Other Agencies - Third Party P,0090561814,JEWISH CARE,"2,499.00",06/03/2023
Delivery Units,Adults and Health,Other Agencies - Third Party P,0090561816,NAZARETH HOUSE,"3,800.00",06/03/2023
Delivery Units,Adults and Health,Other Agencies - Third Party P,0090561817,JEWISH CARE,"2,801.80",06/03/2023
Delivery Units,Adults and Health,Other Agencies - Third Party P,0090561820,JEWISH CARE,"2,659.00",06/03/2023
Delivery Units,Adults and Health,Other Agencies - Third Party P,0090561822,NAZARETH HOUSE,"2,540.00",06/03/2023
Delivery Units,Adults and Health,Other Agencies - Third Party P,0090561824,THE LIMES RESIDENTIAL HOME,"3,120.00",06/03/2023
Delivery Units,Adults and Health,Other Agencies - Third Party P,0090561825,NAZARETH HOUSE,"2,676.00",06/03/2023
Delivery Units,Adults and Health,Other Agencies - Third Party P,0090561827,JEWISH CARE,"2,801.80",06/03/2023
Delivery Units,Adults and Health,Other Agencies - Third Party P,0090561832,NAZARETH HOUSE,"2,540.00",06/03/2023
Delivery Units,Adults and Health,Other Agencies - Third Party P,0090561833,ELEANOR PALMER TRUST NO 2 A/C.,"3,240.00",06/03/2023
Delivery Units,Adults and Health,Other Agencies - Third Party P,0090561834,NAZARETH HOUSE,"2,676.00",06/03/2023
Delivery Units,Adults and Health,Other Agencies - Third Party P,0090561837,THE LIMES RESIDENTIAL HOME,"3,220.00",06/03/2023
Delivery Units,Adults and Health,Other Agencies - Third Party P,0090561842,NAZARETH HOUSE,"2,540.00",06/03/2023
Delivery Units,Adults and Health,Other Agencies - Third Party P,0090561847,NAZARETH HOUSE,"2,676.00",06/03/2023
Delivery Units,Adults and Health,Other Agencies - Third Party P,0090561848,JEWISH CARE,"2,801.80",06/03/2023
Delivery Units,Adults and Health,Other Agencies - Third Party P,0090561849,JEWISH CARE,"2,801.80",06/03/2023
Delivery Units,Adults and Health,Other Agencies - Third Party P,0090561853,ELMHURST RESIDENTIAL HOME,"3,800.00",06/03/2023
Delivery Units,Adults and Health,Other Agencies - Third Party P,0090561854,NAZARETH HOUSE,"2,676.00",06/03/2023
Delivery Units,Adults and Health,Other Agencies - Third Party P,0090561858,ELEANOR PALMER TRUST NO 2 A/C.,"3,800.00",06/03/2023
Delivery Units,Adults and Health,Other Agencies - Third Party P,0090561862,JEWISH CARE,"2,905.48",06/03/2023
Delivery Units,Adults and Health,Other Agencies - Third Party P,0090561873,JEWISH CARE,"3,200.00",06/03/2023
Delivery Units,Adults and Health,Other Agencies - Third Party P,0090561878,APPLE TREE COURT CARE HOME,"5,124.00",06/03/2023
Delivery Units,Adults and Health,Other Agencies - Third Party P,0090561880,ELM PARK LODGE,"3,800.00",06/03/2023
Delivery Units,Adults and Health,Other Agencies - Third Party P,0090561884,ASHTON LODGE CARE CENTRE,"4,000.00",06/03/2023
Delivery Units,Adults and Health,Other Agencies - Third Party P,0090561896,JEWISH CARE,"1,801.16",06/03/2023
Delivery Units,Adults and Health,Other Agencies - Third Party P,0090561907,SAGE NURSING HOME,"2,640.00",06/03/2023
Delivery Units,Adults and Health,Other Agencies - Third Party P,0090561911,THE LIMES RESIDENTIAL HOME,"2,676.00",06/03/2023
Delivery Units,Adults and Health,Other Agencies - Third Party P,0090561915,NAZARETH HOUSE,"2,540.00",06/03/2023
Delivery Units,Adults and Health,Other Agencies - Third Party P,0090561917,THE LIMES RESIDENTIAL HOME,"2,676.00",06/03/2023
Delivery Units,Adults and Health,Other Agencies - Third Party P,0090561921,SAGE NURSING HOME,"3,040.00",06/03/2023
Delivery Units,Adults and Health,Other Agencies - Third Party P,0090561924,ELEANOR PALMER TRUST NO 2 A/C.,"3,240.00",06/03/2023
Delivery Units,Adults and Health,Other Agencies - Third Party P,0090561928,ELEANOR PALMER TRUST NO 2 A/C.,"3,240.00",06/03/2023
Delivery Units,Adults and Health,Other Agencies - Third Party P,0090561931,JEWISH CARE,"2,659.00",06/03/2023
Delivery Units,Adults and Health,Other Agencies - Third Party P,0090561932,JEWISH CARE,"2,801.80",06/03/2023
Delivery Units,Adults and Health,Other Agencies - Third Party P,0090561935,APPLE TREE COURT CARE HOME,"4,400.00",06/03/2023
Delivery Units,Adults and Health,Other Agencies - Third Party P,0090561936,JEWISH CARE,"2,801.80",06/03/2023
Delivery Units,Adults and Health,Other Agencies - Third Party P,0090561937,ABBEY RAVENSCROFT PARK NURSING HOME,"4,032.20",06/03/2023
Delivery Units,Adults and Health,Other Agencies - Third Party P,0090561938,JEWISH CARE,"2,560.00",06/03/2023
Delivery Units,Adults and Health,Other Agencies - Third Party P,0090561941,JEWISH CARE,"2,801.80",06/03/2023
Delivery Units,Adults and Health,Other Agencies - Third Party P,0090561942,JEWISH CARE,"2,801.80",06/03/2023
Delivery Units,Adults and Health,Other Agencies - Third Party P,0090561945,ELEANOR PALMER TRUST NO 2 A/C.,"3,240.00",06/03/2023
Delivery Units,Adults and Health,Other Agencies - Third Party P,0090561947,BUPA CARE HOMES,"2,760.00",06/03/2023
Delivery Units,Adults and Health,Other Agencies - Third Party P,0090561948,LIFESTYLE CARE PLC,"3,600.00",06/03/2023
Delivery Units,Adults and Health,Other Agencies - Third Party P,0090561950,NAZARETH HOUSE,"2,676.00",06/03/2023
Delivery Units,Adults and Health,Other Agencies - Third Party P,0090561954,BUPA CARE HOMES,"3,817.00",06/03/2023
Delivery Units,Adults and Health,Other Agencies - Third Party P,0090561955,JEWISH CARE,"2,499.00",06/03/2023
Delivery Units,Adults and Health,Other Agencies - Third Party P,0090561966,ELEANOR PALMER TRUST NO 2 A/C.,"3,240.00",06/03/2023
Delivery Units,Adults and Health,Other Agencies - Third Party P,0090561969,APPLE TREE COURT CARE HOME,"3,800.00",06/03/2023
Delivery Units,Adults and Health,Other Agencies - Third Party P,0090561972,LIFESTYLE CARE PLC,"3,400.00",06/03/2023
Delivery Units,Adults and Health,Other Agencies - Third Party P,0090561974,THE LIMES RESIDENTIAL HOME,"3,200.00",06/03/2023
Delivery Units,Adults and Health,Other Agencies - Third Party P,0090561981,ELEANOR PALMER TRUST NO 2 A/C.,"3,400.00",06/03/2023
Delivery Units,Adults and Health,Other Agencies - Third Party P,0090561986,JEWISH CARE,"2,657.00",06/03/2023
Delivery Units,Adults and Health,Other Agencies - Third Party P,0090561988,LIFESTYLE CARE PLC,"3,600.00",06/03/2023
Delivery Units,Adults and Health,Other Agencies - Third Party P,0090561991,JEWISH CARE,"2,641.80",06/03/2023
Delivery Units,Adults and Health,Other Agencies - Third Party P,0090561999,BUPA CARE HOMES,"4,000.00",06/03/2023
Delivery Units,Adults and Health,Other Agencies - Third Party P,0090562003,LIFESTYLE CARE PLC,"4,600.00",06/03/2023
Delivery Units,Adults and Health,Other Agencies - Third Party P,0090562008,EASTSIDE HOUSE CARE HOME,"3,720.00",06/03/2023
Delivery Units,Adults and Health,Other Agencies - Third Party P,0090562009,Karuna Manor,"4,207.14",06/03/2023
Delivery Units,Adults and Health,Other Agencies - Third Party P,0090562011,Karuna Manor,"6,642.86",06/03/2023
Delivery Units,Adults and Health,Other Agencies - Third Party P,0090562015,EASTSIDE HOUSE CARE HOME,"3,800.00",06/03/2023
Delivery Units,Adults and Health,Other Agencies - Third Party P,0090562016,EASTSIDE HOUSE CARE HOME,"3,800.00",06/03/2023
Delivery Units,Adults and Health,Other Agencies - Third Party P,0090562044,GREEN TREES,"3,764.33",06/03/2023
Delivery Units,Adults and Health,Other Agencies - Third Party P,0090562210,Haling Park Care Home,"3,800.00",08/03/2023
Delivery Units,Adults and Health,Other Agencies - Third Party P,0090562239,GREEN TREES,"3,941.34",08/03/2023
Delivery Units,Adults and Health,Other Agencies - Third Party P,0090562249,QUANTUM CARE LIMITED,"3,800.00",08/03/2023
Delivery Units,Adults and Health,Other Agencies - Third Party P,0090562258,Boughton Lodge Care Home,"3,100.00",08/03/2023
Delivery Units,Adults and Health,Other Agencies - Third Party P,0090562260,Brownlow Enterprises Ltd,"3,460.00",08/03/2023
Delivery Units,Adults and Health,Other Agencies - Third Party P,0090562261,Brownlow Enterprises Ltd,"3,012.00",08/03/2023
Delivery Units,Adults and Health,Other Agencies - Third Party P,0090562262,Brownlow Enterprises Ltd,"3,232.00",08/03/2023
Delivery Units,Adults and Health,Other Agencies - Third Party P,0090562263,Brownlow Enterprises Ltd,"3,212.00",08/03/2023
Delivery Units,Adults and Health,Other Agencies - Third Party P,0090562265,Brownlow Enterprises Ltd,"3,212.00",08/03/2023
Delivery Units,Adults and Health,Other Agencies - Third Party P,0090562636,THE CHRISTIAN CARE TRUST,"4,317.68",09/03/2023
Delivery Units,Adults and Health,Other Agencies - Third Party P,0090562637,Hillyfield Rest Home Limited,"4,871.42",09/03/2023
Delivery Units,Adults and Health,Other Agencies - Third Party P,0090562638,Hillyfield Rest Home Limited,"4,871.42",09/03/2023
Delivery Units,Adults and Health,Other Agencies - Third Party P,0090562644,ANASTASIA LODGE,"3,480.00",09/03/2023
Delivery Units,Adults and Health,Other Agencies - Third Party P,0090562864,MEERA NURSING HOME LIMITED,"3,764.29",09/03/2023
Delivery Units,Adults and Health,Other Agencies - Third Party P,0090562866,MEERA NURSING HOME LIMITED,"3,764.29",09/03/2023
Delivery Units,Adults and Health,Other Agencies - Third Party P,0090562873,Barchester Healthcare,"5,456.00",09/03/2023
Delivery Units,Adults and Health,Other Agencies - Third Party P,0090562882,Newgrange of Cheshunt Ltd,"3,542.86",09/03/2023
Delivery Units,Adults and Health,Other Agencies - Third Party P,0090562906,THE WOODSIDE HOME,"2,630.71",09/03/2023
Delivery Units,Adults and Health,Other Agencies - Third Party P,0090562907,THE WOODSIDE HOME,"2,630.71",09/03/2023
Delivery Units,Adults and Health,Other Agencies - Third Party P,0090562908,THE WOODSIDE HOME,"3,024.29",09/03/2023
Delivery Units,Adults and Health,Other Agencies - Third Party P,0090562909,THE WOODSIDE HOME,"2,771.57",09/03/2023
Delivery Units,Adults and Health,Other Agencies - Third Party P,0090562910,THE WOODSIDE HOME,"2,630.71",09/03/2023
Delivery Units,Adults and Health,Other Agencies - Third Party P,0090564428,NIGHTINGALE HOUSE,"2,774.72",13/03/2023
Delivery Units,Adults and Health,Other Agencies - Third Party P,0090564877,TORRINGTON HOMES,"2,448.78",14/03/2023
Delivery Units,Adults and Health,Other Agencies - Third Party P,0090564878,TORRINGTON HOMES,"4,207.14",14/03/2023
Delivery Units,Adults and Health,Other Agencies - Third Party P,0090567563,CEDARS NURSING HOME,"5,314.29",20/03/2023
Delivery Units,Adults and Health,Other Agencies - Third Party P,0090567564,CEDARS NURSING HOME,"5,757.14",20/03/2023
Delivery Units,Adults and Health,Other Agencies - Third Party P,0090567566,CEDARS NURSING HOME,"5,757.14",20/03/2023
Delivery Units,Adults and Health,Other Agencies - Third Party P,0090567572,CEDARS NURSING HOME,"4,428.57",20/03/2023
Delivery Units,Adults and Health,Other Agencies - Third Party P,0090567576,MEERA NURSING HOME LIMITED,"2,914.29",20/03/2023
Delivery Units,Adults and Health,Other Agencies - Third Party P,0090570174,Boughton Lodge Care Home,"3,100.00",22/03/2023
Delivery Units,Adults and Health,Other Agencies - Third Party P,0090570175,Alexandra House (Runwood Homes),"2,770.07",22/03/2023
Delivery Units,Adults and Health,Other Agencies - Third Party P,0090570183,Avon Lodge UK Ltd,"3,985.71",22/03/2023
Delivery Units,Adults and Health,Other Agencies - Third Party P,0090570206,NAZARETH HOUSE,"2,540.00",22/03/2023
Delivery Units,Adults and Health,Other Agencies - Third Party P,0090570208,ELM PARK LODGE,"3,168.92",22/03/2023
Delivery Units,Adults and Health,Other Agencies - Third Party P,0090570210,JEWISH CARE,"2,801.80",22/03/2023
Delivery Units,Adults and Health,Other Agencies - Third Party P,0090570216,NAZARETH HOUSE,"2,540.00",22/03/2023
Delivery Units,Adults and Health,Other Agencies - Third Party P,0090570222,THE LIMES RESIDENTIAL HOME,"3,160.00",22/03/2023
Delivery Units,Adults and Health,Other Agencies - Third Party P,0090570223,JEWISH CARE,"2,659.00",22/03/2023
Delivery Units,Adults and Health,Other Agencies - Third Party P,0090570232,JEWISH CARE,"2,801.80",22/03/2023
Delivery Units,Adults and Health,Other Agencies - Third Party P,0090570233,JEWISH CARE,"2,747.48",22/03/2023
Delivery Units,Adults and Health,Other Agencies - Third Party P,0090570234,JEWISH CARE,"2,801.80",22/03/2023
Delivery Units,Adults and Health,Other Agencies - Third Party P,0090570237,THE LIMES RESIDENTIAL HOME,"3,120.00",22/03/2023
Delivery Units,Adults and Health,Other Agencies - Third Party P,0090570238,JEWISH CARE,"2,659.00",22/03/2023
Delivery Units,Adults and Health,Other Agencies - Third Party P,0090570242,JEWISH CARE,"2,659.00",22/03/2023
Delivery Units,Adults and Health,Other Agencies - Third Party P,0090570243,ELEANOR PALMER TRUST NO 2 A/C.,"3,240.00",22/03/2023
Delivery Units,Adults and Health,Other Agencies - Third Party P,0090570244,ELEANOR PALMER TRUST NO 2 A/C.,"3,240.00",22/03/2023
Delivery Units,Adults and Health,Other Agencies - Third Party P,0090570245,ELEANOR PALMER TRUST NO 2 A/C.,"3,240.00",22/03/2023
Delivery Units,Adults and Health,Other Agencies - Third Party P,0090570257,BUPA CARE HOMES,"2,516.00",22/03/2023
Delivery Units,Adults and Health,Other Agencies - Third Party P,0090570262,ELEANOR PALMER TRUST NO 2 A/C.,"3,280.44",22/03/2023
Delivery Units,Adults and Health,Other Agencies - Third Party P,0090570265,JEWISH CARE,"4,265.48",22/03/2023
Delivery Units,Adults and Health,Other Agencies - Third Party P,0090570268,JEWISH CARE,"2,657.80",22/03/2023
Delivery Units,Adults and Health,Other Agencies - Third Party P,0090570270,JEWISH CARE,"2,801.80",22/03/2023
Delivery Units,Adults and Health,Other Agencies - Third Party P,0090570280,JEWISH CARE,"4,825.16",22/03/2023
Delivery Units,Adults and Health,Other Agencies - Third Party P,0090570282,ASHTON LODGE CARE CENTRE,"4,136.52",22/03/2023
Delivery Units,Adults and Health,Other Agencies - Third Party P,0090570285,JEWISH CARE,"2,801.80",22/03/2023
Delivery Units,Adults and Health,Other Agencies - Third Party P,0090570287,JEWISH CARE,"2,641.80",22/03/2023
Delivery Units,Adults and Health,Other Agencies - Third Party P,0090570300,JEWISH CARE,"2,801.80",22/03/2023
Delivery Units,Adults and Health,Other Agencies - Third Party P,0090570304,JEWISH CARE,"5,070.40",22/03/2023
Delivery Units,Adults and Health,Other Agencies - Third Party P,0090570306,JEWISH CARE,"2,659.00",22/03/2023
Delivery Units,Adults and Health,Other Agencies - Third Party P,0090570307,NAZARETH HOUSE,"2,676.00",22/03/2023
Delivery Units,Adults and Health,Other Agencies - Third Party P,0090570311,LIFESTYLE CARE PLC,"3,200.00",22/03/2023
Delivery Units,Adults and Health,Other Agencies - Third Party P,0090570312,ELMHURST RESIDENTIAL HOME,"3,800.00",22/03/2023
Delivery Units,Adults and Health,Other Agencies - Third Party P,0090570313,Aarandale Manor Care Home,"5,000.00",22/03/2023
Delivery Units,Adults and Health,Other Agencies - Third Party P,0090570315,JEWISH CARE,"3,504.36",22/03/2023
Delivery Units,Adults and Health,Other Agencies - Third Party P,0090570317,JEWISH CARE,"2,801.80",22/03/2023
Delivery Units,Adults and Health,Other Agencies - Third Party P,0090570318,NAZARETH HOUSE,"2,676.00",22/03/2023
Delivery Units,Adults and Health,Other Agencies - Third Party P,0090570322,BUPA NURSING HOMES LTD - ARKLEY,"2,800.00",22/03/2023
Delivery Units,Adults and Health,Other Agencies - Third Party P,0090570327,ELM PARK LODGE,"3,536.00",22/03/2023
Delivery Units,Adults and Health,Other Agencies - Third Party P,0090570332,NAZARETH HOUSE,"2,540.00",22/03/2023
Delivery Units,Adults and Health,Other Agencies - Third Party P,0090570333,JEWISH CARE,"7,658.40",22/03/2023
Delivery Units,Adults and Health,Other Agencies - Third Party P,0090570337,ELMHURST RESIDENTIAL HOME,"4,000.00",22/03/2023
Delivery Units,Adults and Health,Other Agencies - Third Party P,0090570338,APPLE TREE COURT CARE HOME,"3,400.00",22/03/2023
Delivery Units,Adults and Health,Other Agencies - Third Party P,0090570346,JEWISH CARE,"2,945.48",22/03/2023
Delivery Units,Adults and Health,Other Agencies - Third Party P,0090570351,NAZARETH HOUSE,"4,471.20",22/03/2023
Delivery Units,Adults and Health,Other Agencies - Third Party P,0090570352,BUPA CARE HOMES,"4,000.00",22/03/2023
Delivery Units,Adults and Health,Other Agencies - Third Party P,0090570360,JEWISH CARE,"2,801.80",22/03/2023
Delivery Units,Adults and Health,Other Agencies - Third Party P,0090570377,SAGE NURSING HOME,"2,640.00",22/03/2023
Delivery Units,Adults and Health,Other Agencies - Third Party P,0090570381,THE LIMES RESIDENTIAL HOME,"2,676.00",22/03/2023
Delivery Units,Adults and Health,Other Agencies - Third Party P,0090570385,NAZARETH HOUSE,"2,540.00",22/03/2023
Delivery Units,Adults and Health,Other Agencies - Third Party P,0090570387,THE LIMES RESIDENTIAL HOME,"2,676.00",22/03/2023
Delivery Units,Adults and Health,Other Agencies - Third Party P,0090570391,SAGE NURSING HOME,"3,040.00",22/03/2023
Delivery Units,Adults and Health,Other Agencies - Third Party P,0090570394,ELEANOR PALMER TRUST NO 2 A/C.,"3,240.00",22/03/2023
Delivery Units,Adults and Health,Other Agencies - Third Party P,0090570398,ELEANOR PALMER TRUST NO 2 A/C.,"3,240.00",22/03/2023
Delivery Units,Adults and Health,Other Agencies - Third Party P,0090570401,JEWISH CARE,"2,659.00",22/03/2023
Delivery Units,Adults and Health,Other Agencies - Third Party P,0090570402,JEWISH CARE,"2,801.80",22/03/2023
Delivery Units,Adults and Health,Other Agencies - Third Party P,0090570405,APPLE TREE COURT CARE HOME,"4,400.00",22/03/2023
Delivery Units,Adults and Health,Other Agencies - Third Party P,0090570406,JEWISH CARE,"2,801.80",22/03/2023
Delivery Units,Adults and Health,Other Agencies - Third Party P,0090570407,ABBEY RAVENSCROFT PARK NURSING HOME,"4,032.20",22/03/2023
Delivery Units,Adults and Health,Other Agencies - Third Party P,0090570408,JEWISH CARE,"2,560.00",22/03/2023
Delivery Units,Adults and Health,Other Agencies - Third Party P,0090570411,JEWISH CARE,"2,801.80",22/03/2023
Delivery Units,Adults and Health,Other Agencies - Third Party P,0090570412,JEWISH CARE,"2,801.80",22/03/2023
Delivery Units,Adults and Health,Other Agencies - Third Party P,0090570415,ELEANOR PALMER TRUST NO 2 A/C.,"3,240.00",22/03/2023
Delivery Units,Adults and Health,Other Agencies - Third Party P,0090570417,BUPA CARE HOMES,"2,760.00",22/03/2023
Delivery Units,Adults and Health,Other Agencies - Third Party P,0090570418,LIFESTYLE CARE PLC,"3,600.00",22/03/2023
Delivery Units,Adults and Health,Other Agencies - Third Party P,0090570420,NAZARETH HOUSE,"2,676.00",22/03/2023
Delivery Units,Adults and Health,Other Agencies - Third Party P,0090570424,BUPA CARE HOMES,"2,884.00",22/03/2023
Delivery Units,Adults and Health,Other Agencies - Third Party P,0090570425,JEWISH CARE,"2,499.00",22/03/2023
Delivery Units,Adults and Health,Other Agencies - Third Party P,0090570435,JEWISH CARE,"3,985.50",22/03/2023
Delivery Units,Adults and Health,Other Agencies - Third Party P,0090570444,ELEANOR PALMER TRUST NO 2 A/C.,"3,240.00",22/03/2023
Delivery Units,Adults and Health,Other Agencies - Third Party P,0090570447,APPLE TREE COURT CARE HOME,"3,800.00",22/03/2023
Delivery Units,Adults and Health,Other Agencies - Third Party P,0090570450,LIFESTYLE CARE PLC,"3,400.00",22/03/2023
Delivery Units,Adults and Health,Other Agencies - Third Party P,0090570451,THE LIMES RESIDENTIAL HOME,"3,200.00",22/03/2023
Delivery Units,Adults and Health,Other Agencies - Third Party P,0090570458,ELEANOR PALMER TRUST NO 2 A/C.,"3,400.00",22/03/2023
Delivery Units,Adults and Health,Other Agencies - Third Party P,0090570462,JEWISH CARE,"2,657.00",22/03/2023
Delivery Units,Adults and Health,Other Agencies - Third Party P,0090570464,LIFESTYLE CARE PLC,"3,600.00",22/03/2023
Delivery Units,Adults and Health,Other Agencies - Third Party P,0090570467,JEWISH CARE,"3,996.09",22/03/2023
Delivery Units,Adults and Health,Other Agencies - Third Party P,0090570473,BUPA CARE HOMES,"4,000.00",22/03/2023
Delivery Units,Adults and Health,Other Agencies - Third Party P,0090570482,JEWISH CARE,"2,801.80",22/03/2023
Delivery Units,Adults and Health,Other Agencies - Third Party P,0090570488,NAZARETH HOUSE,"2,676.00",22/03/2023
Delivery Units,Adults and Health,Other Agencies - Third Party P,0090570489,JEWISH CARE,"2,499.00",22/03/2023
Delivery Units,Adults and Health,Other Agencies - Third Party P,0090570497,JEWISH CARE,"2,801.80",22/03/2023
Delivery Units,Adults and Health,Other Agencies - Third Party P,0090570501,BUPA CARE HOMES,"3,361.92",22/03/2023
Delivery Units,Adults and Health,Other Agencies - Third Party P,0090570503,SAGE NURSING HOME,"3,520.00",22/03/2023
Delivery Units,Adults and Health,Other Agencies - Third Party P,0090570505,ELEANOR PALMER TRUST NO 2 A/C.,"3,240.00",22/03/2023
Delivery Units,Adults and Health,Other Agencies - Third Party P,0090570506,JEWISH CARE,"2,801.80",22/03/2023
Delivery Units,Adults and Health,Other Agencies - Third Party P,0090570507,NAZARETH HOUSE,"2,676.00",22/03/2023
Delivery Units,Adults and Health,Other Agencies - Third Party P,0090570513,ELMHURST RESIDENTIAL HOME,"3,600.00",22/03/2023
Delivery Units,Adults and Health,Other Agencies - Third Party P,0090570515,NAZARETH HOUSE,"2,540.00",22/03/2023
Delivery Units,Adults and Health,Other Agencies - Third Party P,0090570521,APPLE TREE COURT CARE HOME,"3,400.00",22/03/2023
Delivery Units,Adults and Health,Other Agencies - Third Party P,0090570522,APPLE TREE COURT CARE HOME,"3,400.00",22/03/2023
Delivery Units,Adults and Health,Other Agencies - Third Party P,0090570533,THE LIMES RESIDENTIAL HOME,"3,500.00",22/03/2023
Delivery Units,Adults and Health,Other Agencies - Third Party P,0090570535,THE LIMES RESIDENTIAL HOME,"3,400.00",22/03/2023
Delivery Units,Adults and Health,Other Agencies - Third Party P,0090570538,ELMHURST RESIDENTIAL HOME,"8,832.00",22/03/2023
Delivery Units,Adults and Health,Other Agencies - Third Party P,0090570541,JEWISH CARE,"2,657.00",22/03/2023
Delivery Units,Adults and Health,Other Agencies - Third Party P,0090570543,APPLE TREE COURT CARE HOME,"4,352.00",22/03/2023
Delivery Units,Adults and Health,Other Agencies - Third Party P,0090570547,LIFESTYLE CARE PLC,"3,400.00",22/03/2023
Delivery Units,Adults and Health,Other Agencies - Third Party P,0090570548,Aarandale Manor Care Home,"5,200.00",22/03/2023
Delivery Units,Adults and Health,Other Agencies - Third Party P,0090570579,ELEANOR PALMER TRUST NO 2 A/C.,"3,280.44",22/03/2023
Delivery Units,Adults and Health,Other Agencies - Third Party P,0090570584,ELMHURST RESIDENTIAL HOME,"3,000.00",22/03/2023
Delivery Units,Adults and Health,Other Agencies - Third Party P,0090570586,ELEANOR PALMER TRUST NO 2 A/C.,"3,240.00",22/03/2023
Delivery Units,Adults and Health,Other Agencies - Third Party P,0090570589,ELMHURST RESIDENTIAL HOME,"3,000.00",22/03/2023
Delivery Units,Adults and Health,Other Agencies - Third Party P,0090570593,NAZARETH HOUSE,"2,540.00",22/03/2023
Delivery Units,Adults and Health,Other Agencies - Third Party P,0090570596,JEWISH CARE,"2,801.80",22/03/2023
Delivery Units,Adults and Health,Other Agencies - Third Party P,0090570600,THE LIMES RESIDENTIAL HOME,"3,120.00",22/03/2023
Delivery Units,Adults and Health,Other Agencies - Third Party P,0090570602,NAZARETH HOUSE,"2,676.00",22/03/2023
Delivery Units,Adults and Health,Other Agencies - Third Party P,0090570604,JEWISH CARE,"2,499.00",22/03/2023
Delivery Units,Adults and Health,Other Agencies - Third Party P,0090570606,NAZARETH HOUSE,"3,800.00",22/03/2023
Delivery Units,Adults and Health,Other Agencies - Third Party P,0090570607,JEWISH CARE,"2,801.80",22/03/2023
Delivery Units,Adults and Health,Other Agencies - Third Party P,0090570610,JEWISH CARE,"2,659.00",22/03/2023
Delivery Units,Adults and Health,Other Agencies - Third Party P,0090570612,NAZARETH HOUSE,"2,540.00",22/03/2023
Delivery Units,Adults and Health,Other Agencies - Third Party P,0090570614,THE LIMES RESIDENTIAL HOME,"3,120.00",22/03/2023
Delivery Units,Adults and Health,Other Agencies - Third Party P,0090570615,NAZARETH HOUSE,"2,676.00",22/03/2023
Delivery Units,Adults and Health,Other Agencies - Third Party P,0090570617,JEWISH CARE,"2,801.80",22/03/2023
Delivery Units,Adults and Health,Other Agencies - Third Party P,0090570622,NAZARETH HOUSE,"2,540.00",22/03/2023
Delivery Units,Adults and Health,Other Agencies - Third Party P,0090570623,ELEANOR PALMER TRUST NO 2 A/C.,"3,240.00",22/03/2023
Delivery Units,Adults and Health,Other Agencies - Third Party P,0090570624,NAZARETH HOUSE,"2,676.00",22/03/2023
Delivery Units,Adults and Health,Other Agencies - Third Party P,0090570627,THE LIMES RESIDENTIAL HOME,"3,220.00",22/03/2023
Delivery Units,Adults and Health,Other Agencies - Third Party P,0090570631,NAZARETH HOUSE,"2,540.00",22/03/2023
Delivery Units,Adults and Health,Other Agencies - Third Party P,0090570636,NAZARETH HOUSE,"2,676.00",22/03/2023
Delivery Units,Adults and Health,Other Agencies - Third Party P,0090570637,JEWISH CARE,"2,801.80",22/03/2023
Delivery Units,Adults and Health,Other Agencies - Third Party P,0090570638,JEWISH CARE,"2,801.80",22/03/2023
Delivery Units,Adults and Health,Other Agencies - Third Party P,0090570642,ELMHURST RESIDENTIAL HOME,"3,800.00",22/03/2023
Delivery Units,Adults and Health,Other Agencies - Third Party P,0090570643,NAZARETH HOUSE,"2,676.00",22/03/2023
Delivery Units,Adults and Health,Other Agencies - Third Party P,0090570647,ELEANOR PALMER TRUST NO 2 A/C.,"3,800.00",22/03/2023
Delivery Units,Adults and Health,Other Agencies - Third Party P,0090570651,JEWISH CARE,830.14,22/03/2023
Delivery Units,Adults and Health,Other Agencies - Third Party P,0090570662,JEWISH CARE,"3,200.00",22/03/2023
Delivery Units,Adults and Health,Other Agencies - Third Party P,0090570667,APPLE TREE COURT CARE HOME,"5,124.00",22/03/2023
Delivery Units,Adults and Health,Other Agencies - Third Party P,0090570669,ELM PARK LODGE,"3,392.86",22/03/2023
Delivery Units,Adults and Health,Other Agencies - Third Party P,0090570673,ASHTON LODGE CARE CENTRE,"4,000.00",22/03/2023
Delivery Units,Adults and Health,Other Agencies - Third Party P,0090570691,NAZARETH HOUSE,"2,796.00",22/03/2023
Delivery Units,Adults and Health,Other Agencies - Third Party P,0090570694,THE LIMES RESIDENTIAL HOME,"2,625.00",22/03/2023
Delivery Units,Adults and Health,Other Agencies - Third Party P,0090571069,ANASTASIA LODGE,870.00,22/03/2023
Delivery Units,Adults and Health,Other Agencies - Third Party P,0090571931,TORRINGTON HOMES,"3,800.00",23/03/2023
Delivery Units,Adults and Health,Other Agencies - Third Party P,0090573003,JEWISH CARE,"41,364.51",31/03/2023
Delivery Units,Adults and Health,Other Agencies - Third Party P,0090560746,High Quality Home Care Ltd  t/a Right at,907.80,02/03/2023
Delivery Units,Adults and Health,Other Agencies - Third Party P,0090560748,High Quality Home Care Ltd  t/a Right at,907.80,02/03/2023
Delivery Units,Adults and Health,Other Agencies - Third Party P,0090560750,High Quality Home Care Ltd  t/a Right at,907.80,02/03/2023
Delivery Units,Adults and Health,Other Agencies - Third Party P,0090560752,High Quality Home Care Ltd  t/a Right at,907.80,02/03/2023
Delivery Units,Adults and Health,Other Agencies - Third Party P,0090561018,Primera Assisted Living Ltd,173.77,02/03/2023
Delivery Units,Adults and Health,Other Agencies - Third Party P,0090561019,Primera Assisted Living Ltd,96.04,02/03/2023
Delivery Units,Adults and Health,Other Agencies - Third Party P,0090561020,Primera Assisted Living Ltd,192.09,02/03/2023
Delivery Units,Adults and Health,Other Agencies - Third Party P,0090561021,Primera Assisted Living Ltd,228.65,02/03/2023
Delivery Units,Adults and Health,Other Agencies - Third Party P,0090561022,Primera Assisted Living Ltd,150.91,02/03/2023
Delivery Units,Adults and Health,Other Agencies - Third Party P,0090561023,Primera Assisted Living Ltd,96.04,02/03/2023
Delivery Units,Adults and Health,Other Agencies - Third Party P,0090561024,Primera Assisted Living Ltd,192.09,02/03/2023
Delivery Units,Adults and Health,Other Agencies - Third Party P,0090561025,Primera Assisted Living Ltd,228.65,02/03/2023
Delivery Units,Adults and Health,Other Agencies - Third Party P,0090561026,Primera Assisted Living Ltd,150.91,02/03/2023
Delivery Units,Adults and Health,Other Agencies - Third Party P,0090561027,Primera Assisted Living Ltd,96.04,02/03/2023
Delivery Units,Adults and Health,Other Agencies - Third Party P,0090561028,Primera Assisted Living Ltd,192.09,02/03/2023
Delivery Units,Adults and Health,Other Agencies - Third Party P,0090561029,Primera Assisted Living Ltd,228.65,02/03/2023
Delivery Units,Adults and Health,Other Agencies - Third Party P,0090561030,Primera Assisted Living Ltd,150.91,02/03/2023
Delivery Units,Adults and Health,Other Agencies - Third Party P,0090561031,Primera Assisted Living Ltd,96.04,02/03/2023
Delivery Units,Adults and Health,Other Agencies - Third Party P,0090561032,Primera Assisted Living Ltd,192.09,02/03/2023
Delivery Units,Adults and Health,Other Agencies - Third Party P,0090561033,Primera Assisted Living Ltd,228.65,02/03/2023
Delivery Units,Adults and Health,Other Agencies - Third Party P,0090561078,Arthur Morrison Ltd,295.00,02/03/2023
Delivery Units,Adults and Health,Other Agencies - Third Party P,0090561079,Arthur Morrison Ltd,262.22,02/03/2023
Delivery Units,Adults and Health,Other Agencies - Third Party P,0090561080,Arthur Morrison Ltd,261.63,02/03/2023
Delivery Units,Adults and Health,Other Agencies - Third Party P,0090561081,Arthur Morrison Ltd,409.50,02/03/2023
Delivery Units,Adults and Health,Other Agencies - Third Party P,0090561082,Arthur Morrison Ltd,302.94,02/03/2023
Delivery Units,Adults and Health,Other Agencies - Third Party P,0090561083,Arthur Morrison Ltd,46.82,02/03/2023
Delivery Units,Adults and Health,Other Agencies - Third Party P,0090561085,Arthur Morrison Ltd,131.11,02/03/2023
Delivery Units,Adults and Health,Other Agencies - Third Party P,0090561087,Arthur Morrison Ltd,98.35,02/03/2023
Delivery Units,Adults and Health,Other Agencies - Third Party P,0090561090,Arthur Morrison Ltd,55.08,02/03/2023
Delivery Units,Adults and Health,Other Agencies - Third Party P,0090561093,Arthur Morrison Ltd,295.00,02/03/2023
Delivery Units,Adults and Health,Other Agencies - Third Party P,0090561094,Arthur Morrison Ltd,262.22,02/03/2023
Delivery Units,Adults and Health,Other Agencies - Third Party P,0090561095,Arthur Morrison Ltd,261.63,02/03/2023
Delivery Units,Adults and Health,Other Agencies - Third Party P,0090561096,Arthur Morrison Ltd,409.50,02/03/2023
Delivery Units,Adults and Health,Other Agencies - Third Party P,0090561097,Arthur Morrison Ltd,302.94,02/03/2023
Delivery Units,Adults and Health,Other Agencies - Third Party P,0090561098,Arthur Morrison Ltd,46.82,02/03/2023
Delivery Units,Adults and Health,Other Agencies - Third Party P,0090561100,Arthur Morrison Ltd,131.11,02/03/2023
Delivery Units,Adults and Health,Other Agencies - Third Party P,0090561102,Arthur Morrison Ltd,98.35,02/03/2023
Delivery Units,Adults and Health,Other Agencies - Third Party P,0090561105,Arthur Morrison Ltd,55.08,02/03/2023
Delivery Units,Adults and Health,Other Agencies - Third Party P,0090561107,Arthur Morrison Ltd,56.19,02/03/2023
Delivery Units,Adults and Health,Other Agencies - Third Party P,0090561108,Arthur Morrison Ltd,18.73,02/03/2023
Delivery Units,Adults and Health,Other Agencies - Third Party P,0090561109,Arthur Morrison Ltd,295.00,02/03/2023
Delivery Units,Adults and Health,Other Agencies - Third Party P,0090561110,Arthur Morrison Ltd,262.22,02/03/2023
Delivery Units,Adults and Health,Other Agencies - Third Party P,0090561111,Arthur Morrison Ltd,335.07,02/03/2023
Delivery Units,Adults and Health,Other Agencies - Third Party P,0090561112,Arthur Morrison Ltd,409.50,02/03/2023
Delivery Units,Adults and Health,Other Agencies - Third Party P,0090561113,Arthur Morrison Ltd,302.94,02/03/2023
Delivery Units,Adults and Health,Other Agencies - Third Party P,0090561114,Arthur Morrison Ltd,46.82,02/03/2023
Delivery Units,Adults and Health,Other Agencies - Third Party P,0090561116,Arthur Morrison Ltd,131.11,02/03/2023
Delivery Units,Adults and Health,Other Agencies - Third Party P,0090561118,Arthur Morrison Ltd,98.35,02/03/2023
Delivery Units,Adults and Health,Other Agencies - Third Party P,0090561121,Arthur Morrison Ltd,55.08,02/03/2023
Delivery Units,Adults and Health,Other Agencies - Third Party P,0090561122,Arthur Morrison Ltd,56.19,02/03/2023
Delivery Units,Adults and Health,Other Agencies - Third Party P,0090561123,Arthur Morrison Ltd,37.46,02/03/2023
Delivery Units,Adults and Health,Other Agencies - Third Party P,0090561124,Arthur Morrison Ltd,295.00,02/03/2023
Delivery Units,Adults and Health,Other Agencies - Third Party P,0090561125,Arthur Morrison Ltd,262.22,02/03/2023
Delivery Units,Adults and Health,Other Agencies - Third Party P,0090561126,Arthur Morrison Ltd,335.07,02/03/2023
Delivery Units,Adults and Health,Other Agencies - Third Party P,0090561127,Arthur Morrison Ltd,409.50,02/03/2023
Delivery Units,Adults and Health,Other Agencies - Third Party P,0090561128,Arthur Morrison Ltd,302.94,02/03/2023
Delivery Units,Adults and Health,Other Agencies - Third Party P,0090561129,Arthur Morrison Ltd,46.82,02/03/2023
Delivery Units,Adults and Health,Other Agencies - Third Party P,0090561131,Arthur Morrison Ltd,131.11,02/03/2023
Delivery Units,Adults and Health,Other Agencies - Third Party P,0090561133,Arthur Morrison Ltd,98.35,02/03/2023
Delivery Units,Adults and Health,Other Agencies - Third Party P,0090561136,Arthur Morrison Ltd,55.08,02/03/2023
Delivery Units,Adults and Health,Other Agencies - Third Party P,0090561137,Arthur Morrison Ltd,56.19,02/03/2023
Delivery Units,Adults and Health,Other Agencies - Third Party P,0090561138,Arthur Morrison Ltd,37.46,02/03/2023
Delivery Units,Adults and Health,Other Agencies - Third Party P,0090561139,Social Care Consortium Limited,415.61,02/03/2023
Delivery Units,Adults and Health,Other Agencies - Third Party P,0090561143,Social Care Consortium Limited,113.35,02/03/2023
Delivery Units,Adults and Health,Other Agencies - Third Party P,0090561145,Social Care Consortium Limited,259.08,02/03/2023
Delivery Units,Adults and Health,Other Agencies - Third Party P,0090561149,Social Care Consortium Limited,151.13,02/03/2023
Delivery Units,Adults and Health,Other Agencies - Third Party P,0090561151,Social Care Consortium Limited,755.65,02/03/2023
Delivery Units,Adults and Health,Other Agencies - Third Party P,0090561153,Social Care Consortium Limited,264.47,02/03/2023
Delivery Units,Adults and Health,Other Agencies - Third Party P,0090561154,Social Care Consortium Limited,550.54,02/03/2023
Delivery Units,Adults and Health,Other Agencies - Third Party P,0090561155,Social Care Consortium Limited,134.94,02/03/2023
Delivery Units,Adults and Health,Other Agencies - Third Party P,0090561156,Social Care Consortium Limited,118.74,02/03/2023
Delivery Units,Adults and Health,Other Agencies - Third Party P,0090561158,Social Care Consortium Limited,269.87,02/03/2023
Delivery Units,Adults and Health,Other Agencies - Third Party P,0090561160,Social Care Consortium Limited,43.18,02/03/2023
Delivery Units,Adults and Health,Other Agencies - Third Party P,0090561162,Social Care Consortium Limited,369.62,02/03/2023
Delivery Units,Adults and Health,Other Agencies - Third Party P,0090561163,Social Care Consortium Limited,151.13,02/03/2023
Delivery Units,Adults and Health,Other Agencies - Third Party P,0090561164,Social Care Consortium Limited,415.61,02/03/2023
Delivery Units,Adults and Health,Other Agencies - Third Party P,0090561168,Social Care Consortium Limited,113.35,02/03/2023
Delivery Units,Adults and Health,Other Agencies - Third Party P,0090561170,Social Care Consortium Limited,259.08,02/03/2023
Delivery Units,Adults and Health,Other Agencies - Third Party P,0090561174,Social Care Consortium Limited,151.13,02/03/2023
Delivery Units,Adults and Health,Other Agencies - Third Party P,0090561176,Social Care Consortium Limited,755.65,02/03/2023
Delivery Units,Adults and Health,Other Agencies - Third Party P,0090561179,Social Care Consortium Limited,264.48,02/03/2023
Delivery Units,Adults and Health,Other Agencies - Third Party P,0090561180,Social Care Consortium Limited,550.54,02/03/2023
Delivery Units,Adults and Health,Other Agencies - Third Party P,0090561181,Social Care Consortium Limited,134.94,02/03/2023
Delivery Units,Adults and Health,Other Agencies - Third Party P,0090561182,Social Care Consortium Limited,118.74,02/03/2023
Delivery Units,Adults and Health,Other Agencies - Third Party P,0090561183,Social Care Consortium Limited,269.88,02/03/2023
Delivery Units,Adults and Health,Other Agencies - Third Party P,0090561185,Social Care Consortium Limited,370.26,02/03/2023
Delivery Units,Adults and Health,Other Agencies - Third Party P,0090561186,Social Care Consortium Limited,151.13,02/03/2023
Delivery Units,Adults and Health,Other Agencies - Third Party P,0090561191,Social Care Consortium Limited,415.61,02/03/2023
Delivery Units,Adults and Health,Other Agencies - Third Party P,0090561195,Social Care Consortium Limited,113.35,02/03/2023
Delivery Units,Adults and Health,Other Agencies - Third Party P,0090561197,Social Care Consortium Limited,259.08,02/03/2023
Delivery Units,Adults and Health,Other Agencies - Third Party P,0090561201,Social Care Consortium Limited,151.13,02/03/2023
Delivery Units,Adults and Health,Other Agencies - Third Party P,0090561203,Social Care Consortium Limited,64.77,02/03/2023
Delivery Units,Adults and Health,Other Agencies - Third Party P,0090561204,Social Care Consortium Limited,755.65,02/03/2023
Delivery Units,Adults and Health,Other Agencies - Third Party P,0090561207,Social Care Consortium Limited,264.48,02/03/2023
Delivery Units,Adults and Health,Other Agencies - Third Party P,0090561208,Social Care Consortium Limited,550.54,02/03/2023
Delivery Units,Adults and Health,Other Agencies - Third Party P,0090561209,Social Care Consortium Limited,134.94,02/03/2023
Delivery Units,Adults and Health,Other Agencies - Third Party P,0090561210,Social Care Consortium Limited,118.74,02/03/2023
Delivery Units,Adults and Health,Other Agencies - Third Party P,0090561211,Social Care Consortium Limited,226.70,02/03/2023
Delivery Units,Adults and Health,Other Agencies - Third Party P,0090561213,Social Care Consortium Limited,370.26,02/03/2023
Delivery Units,Adults and Health,Other Agencies - Third Party P,0090561214,Social Care Consortium Limited,151.13,02/03/2023
Delivery Units,Adults and Health,Other Agencies - Third Party P,0090561220,Social Care Consortium Limited,415.61,02/03/2023
Delivery Units,Adults and Health,Other Agencies - Third Party P,0090561224,Social Care Consortium Limited,113.35,02/03/2023
Delivery Units,Adults and Health,Other Agencies - Third Party P,0090561226,Social Care Consortium Limited,237.49,02/03/2023
Delivery Units,Adults and Health,Other Agencies - Third Party P,0090561230,Social Care Consortium Limited,151.13,02/03/2023
Delivery Units,Adults and Health,Other Agencies - Third Party P,0090561231,Social Care Consortium Limited,302.26,02/03/2023
Delivery Units,Adults and Health,Other Agencies - Third Party P,0090561232,Social Care Consortium Limited,755.65,02/03/2023
Delivery Units,Adults and Health,Other Agencies - Third Party P,0090561235,Social Care Consortium Limited,264.48,02/03/2023
Delivery Units,Adults and Health,Other Agencies - Third Party P,0090561236,Social Care Consortium Limited,550.54,02/03/2023
Delivery Units,Adults and Health,Other Agencies - Third Party P,0090561237,Social Care Consortium Limited,134.94,02/03/2023
Delivery Units,Adults and Health,Other Agencies - Third Party P,0090561238,Social Care Consortium Limited,118.74,02/03/2023
Delivery Units,Adults and Health,Other Agencies - Third Party P,0090561240,Social Care Consortium Limited,226.69,02/03/2023
Delivery Units,Adults and Health,Other Agencies - Third Party P,0090561242,Social Care Consortium Limited,370.26,02/03/2023
Delivery Units,Adults and Health,Other Agencies - Third Party P,0090561243,Social Care Consortium Limited,151.13,02/03/2023
Delivery Units,Adults and Health,Other Agencies - Third Party P,0090561250,Social Care Consortium Limited,415.60,02/03/2023
Delivery Units,Adults and Health,Other Agencies - Third Party P,0090561252,Social Care Consortium Limited,415.60,02/03/2023
Delivery Units,Adults and Health,Other Agencies - Third Party P,0090561254,Social Care Consortium Limited,415.60,02/03/2023
Delivery Units,Adults and Health,Other Agencies - Third Party P,0090561256,Social Care Consortium Limited,415.60,02/03/2023
Delivery Units,Adults and Health,Other Agencies - Third Party P,0090561265,Concept Care Solutions Ltd,110.25,02/03/2023
Delivery Units,Adults and Health,Other Agencies - Third Party P,0090561267,Concept Care Solutions Ltd,154.65,02/03/2023
Delivery Units,Adults and Health,Other Agencies - Third Party P,0090561272,ACE Homecare Services Ltd,"10,973.76",02/03/2023
Delivery Units,Adults and Health,Other Agencies - Third Party P,0090561276,Springvilla Care Ltd,"1,232.00",02/03/2023
Delivery Units,Adults and Health,Other Agencies - Third Party P,0090561308,Homecare Alliance Ltd,498.12,03/03/2023
Delivery Units,Adults and Health,Other Agencies - Third Party P,0090561373,Social Care Consortium Limited,361.63,03/03/2023
Delivery Units,Adults and Health,Other Agencies - Third Party P,0090561374,Social Care Consortium Limited,415.61,03/03/2023
Delivery Units,Adults and Health,Other Agencies - Third Party P,0090561379,Social Care Consortium Limited,113.35,03/03/2023
Delivery Units,Adults and Health,Other Agencies - Third Party P,0090561381,Social Care Consortium Limited,237.49,03/03/2023
Delivery Units,Adults and Health,Other Agencies - Third Party P,0090561382,Social Care Consortium Limited,361.63,03/03/2023
Delivery Units,Adults and Health,Other Agencies - Third Party P,0090561387,Social Care Consortium Limited,151.13,03/03/2023
Delivery Units,Adults and Health,Other Agencies - Third Party P,0090561388,Social Care Consortium Limited,361.63,03/03/2023
Delivery Units,Adults and Health,Other Agencies - Third Party P,0090561390,Social Care Consortium Limited,302.26,03/03/2023
Delivery Units,Adults and Health,Other Agencies - Third Party P,0090561391,Social Care Consortium Limited,755.65,03/03/2023
Delivery Units,Adults and Health,Other Agencies - Third Party P,0090561394,Social Care Consortium Limited,264.48,03/03/2023
Delivery Units,Adults and Health,Other Agencies - Third Party P,0090561396,Social Care Consortium Limited,550.54,03/03/2023
Delivery Units,Adults and Health,Other Agencies - Third Party P,0090561397,Social Care Consortium Limited,415.60,03/03/2023
Delivery Units,Adults and Health,Other Agencies - Third Party P,0090561398,Social Care Consortium Limited,134.94,03/03/2023
Delivery Units,Adults and Health,Other Agencies - Third Party P,0090561399,Social Care Consortium Limited,118.74,03/03/2023
Delivery Units,Adults and Health,Other Agencies - Third Party P,0090561401,Social Care Consortium Limited,226.70,03/03/2023
Delivery Units,Adults and Health,Other Agencies - Third Party P,0090561402,Social Care Consortium Limited,415.60,03/03/2023
Delivery Units,Adults and Health,Other Agencies - Third Party P,0090561404,Social Care Consortium Limited,370.26,03/03/2023
Delivery Units,Adults and Health,Other Agencies - Third Party P,0090561405,Social Care Consortium Limited,151.13,03/03/2023
Delivery Units,Adults and Health,Other Agencies - Third Party P,0090561412,Social Care Consortium Limited,415.61,03/03/2023
Delivery Units,Adults and Health,Other Agencies - Third Party P,0090561416,Social Care Consortium Limited,113.35,03/03/2023
Delivery Units,Adults and Health,Other Agencies - Third Party P,0090561418,Social Care Consortium Limited,237.49,03/03/2023
Delivery Units,Adults and Health,Other Agencies - Third Party P,0090561422,Social Care Consortium Limited,151.13,03/03/2023
Delivery Units,Adults and Health,Other Agencies - Third Party P,0090561424,Social Care Consortium Limited,302.26,03/03/2023
Delivery Units,Adults and Health,Other Agencies - Third Party P,0090561425,Social Care Consortium Limited,755.65,03/03/2023
Delivery Units,Adults and Health,Other Agencies - Third Party P,0090561428,Social Care Consortium Limited,264.48,03/03/2023
Delivery Units,Adults and Health,Other Agencies - Third Party P,0090561429,Social Care Consortium Limited,550.54,03/03/2023
Delivery Units,Adults and Health,Other Agencies - Third Party P,0090561430,Social Care Consortium Limited,415.60,03/03/2023
Delivery Units,Adults and Health,Other Agencies - Third Party P,0090561431,Social Care Consortium Limited,134.94,03/03/2023
Delivery Units,Adults and Health,Other Agencies - Third Party P,0090561432,Social Care Consortium Limited,118.74,03/03/2023
Delivery Units,Adults and Health,Other Agencies - Third Party P,0090561434,Social Care Consortium Limited,226.70,03/03/2023
Delivery Units,Adults and Health,Other Agencies - Third Party P,0090561435,Social Care Consortium Limited,370.26,03/03/2023
Delivery Units,Adults and Health,Other Agencies - Third Party P,0090561436,Social Care Consortium Limited,151.13,03/03/2023
Delivery Units,Adults and Health,Other Agencies - Third Party P,0090561439,Social Care Consortium Limited,415.61,03/03/2023
Delivery Units,Adults and Health,Other Agencies - Third Party P,0090561443,Social Care Consortium Limited,113.35,03/03/2023
Delivery Units,Adults and Health,Other Agencies - Third Party P,0090561445,Social Care Consortium Limited,237.49,03/03/2023
Delivery Units,Adults and Health,Other Agencies - Third Party P,0090561449,Social Care Consortium Limited,151.13,03/03/2023
Delivery Units,Adults and Health,Other Agencies - Third Party P,0090561451,Social Care Consortium Limited,302.26,03/03/2023
Delivery Units,Adults and Health,Other Agencies - Third Party P,0090561452,Social Care Consortium Limited,755.65,03/03/2023
Delivery Units,Adults and Health,Other Agencies - Third Party P,0090561455,Social Care Consortium Limited,264.48,03/03/2023
Delivery Units,Adults and Health,Other Agencies - Third Party P,0090561456,Social Care Consortium Limited,550.54,03/03/2023
Delivery Units,Adults and Health,Other Agencies - Third Party P,0090561457,Social Care Consortium Limited,415.60,03/03/2023
Delivery Units,Adults and Health,Other Agencies - Third Party P,0090561458,Social Care Consortium Limited,118.74,03/03/2023
Delivery Units,Adults and Health,Other Agencies - Third Party P,0090561460,Social Care Consortium Limited,226.70,03/03/2023
Delivery Units,Adults and Health,Other Agencies - Third Party P,0090561462,Social Care Consortium Limited,151.13,03/03/2023
Delivery Units,Adults and Health,Other Agencies - Third Party P,0090561479,Hertsmere Valley Care Services Limited,365.40,03/03/2023
Delivery Units,Adults and Health,Other Agencies - Third Party P,0090561482,Skillcare Ltd,142.50,06/03/2023
Delivery Units,Adults and Health,Other Agencies - Third Party P,0090561500,Skillcare Ltd,68.13,06/03/2023
Delivery Units,Adults and Health,Other Agencies - Third Party P,0090561501,Skillcare Ltd,76.00,06/03/2023
Delivery Units,Adults and Health,Other Agencies - Third Party P,0090561502,Skillcare Ltd,190.00,06/03/2023
Delivery Units,Adults and Health,Other Agencies - Third Party P,0090561503,Skillcare Ltd,190.00,06/03/2023
Delivery Units,Adults and Health,Other Agencies - Third Party P,0090561504,Skillcare Ltd,408.50,06/03/2023
Delivery Units,Adults and Health,Other Agencies - Third Party P,0090561505,Skillcare Ltd,190.00,06/03/2023
Delivery Units,Adults and Health,Other Agencies - Third Party P,0090561506,Skillcare Ltd,190.00,06/03/2023
Delivery Units,Adults and Health,Other Agencies - Third Party P,0090562049,Rivendell Care & Support,"1,435.89",06/03/2023
Delivery Units,Adults and Health,Other Agencies - Third Party P,0090562050,Rivendell Care & Support,"2,637.67",06/03/2023
Delivery Units,Adults and Health,Other Agencies - Third Party P,0090562051,Rivendell Care & Support,"2,226.67",06/03/2023
Delivery Units,Adults and Health,Other Agencies - Third Party P,0090562052,Nova Dom Care Ltd,52.55,06/03/2023
Delivery Units,Adults and Health,Other Agencies - Third Party P,0090562065,Circle Care Ltd,"1,134.00",06/03/2023
Delivery Units,Adults and Health,Other Agencies - Third Party P,0090562067,Carecroft Ltd,984.90,06/03/2023
Delivery Units,Adults and Health,Other Agencies - Third Party P,0090562073,Metro Homecare Ltd,"1,989.50",06/03/2023
Delivery Units,Adults and Health,Other Agencies - Third Party P,0090562074,Metro Homecare Ltd,"2,681.50",06/03/2023
Delivery Units,Adults and Health,Other Agencies - Third Party P,0090562075,Metro Homecare Ltd,"2,768.00",06/03/2023
Delivery Units,Adults and Health,Other Agencies - Third Party P,0090562076,Metro Homecare Ltd,"2,768.00",06/03/2023
Delivery Units,Adults and Health,Other Agencies - Third Party P,0090562077,Metro Homecare Ltd,"2,768.00",06/03/2023
Delivery Units,Adults and Health,Other Agencies - Third Party P,0090562078,Oaktree Homecare Services Ltd,164.25,06/03/2023
Delivery Units,Adults and Health,Other Agencies - Third Party P,0090562079,Oaktree Homecare Services Ltd,241.81,06/03/2023
Delivery Units,Adults and Health,Other Agencies - Third Party P,0090562080,Oaktree Homecare Services Ltd,703.00,06/03/2023
Delivery Units,Adults and Health,Other Agencies - Third Party P,0090562081,Oaktree Homecare Services Ltd,114.06,06/03/2023
Delivery Units,Adults and Health,Other Agencies - Third Party P,0090562082,Oaktree Homecare Services Ltd,129.50,06/03/2023
Delivery Units,Adults and Health,Other Agencies - Third Party P,0090562085,Oaktree Homecare Services Ltd,305.25,06/03/2023
Delivery Units,Adults and Health,Other Agencies - Third Party P,0090562086,Oaktree Homecare Services Ltd,777.00,06/03/2023
Delivery Units,Adults and Health,Other Agencies - Third Party P,0090562087,Oaktree Homecare Services Ltd,226.63,06/03/2023
Delivery Units,Adults and Health,Other Agencies - Third Party P,0090562089,Oaktree Homecare Services Ltd,46.25,06/03/2023
Delivery Units,Adults and Health,Other Agencies - Third Party P,0090562090,Oaktree Homecare Services Ltd,222.00,06/03/2023
Delivery Units,Adults and Health,Other Agencies - Third Party P,0090562091,Oaktree Homecare Services Ltd,291.38,06/03/2023
Delivery Units,Adults and Health,Other Agencies - Third Party P,0090562092,Oaktree Homecare Services Ltd,388.50,06/03/2023
Delivery Units,Adults and Health,Other Agencies - Third Party P,0090562094,Oaktree Homecare Services Ltd,323.75,06/03/2023
Delivery Units,Adults and Health,Other Agencies - Third Party P,0090562095,Oaktree Homecare Services Ltd,166.50,06/03/2023
Delivery Units,Adults and Health,Other Agencies - Third Party P,0090562096,Oaktree Homecare Services Ltd,259.00,06/03/2023
Delivery Units,Adults and Health,Other Agencies - Third Party P,0090562098,Oaktree Homecare Services Ltd,263.63,06/03/2023
Delivery Units,Adults and Health,Other Agencies - Third Party P,0090562101,Oaktree Homecare Services Ltd,574.88,06/03/2023
Delivery Units,Adults and Health,Other Agencies - Third Party P,0090562102,Oaktree Homecare Services Ltd,830.38,06/03/2023
Delivery Units,Adults and Health,Other Agencies - Third Party P,0090562104,Oaktree Homecare Services Ltd,63.88,06/03/2023
Delivery Units,Adults and Health,Other Agencies - Third Party P,0090562105,Oaktree Homecare Services Ltd,319.38,06/03/2023
Delivery Units,Adults and Health,Other Agencies - Third Party P,0090562106,Oaktree Homecare Services Ltd,59.31,06/03/2023
Delivery Units,Adults and Health,Other Agencies - Third Party P,0090562107,Oaktree Homecare Services Ltd,194.25,06/03/2023
Delivery Units,Adults and Health,Other Agencies - Third Party P,0090562110,Oaktree Homecare Services Ltd,164.25,06/03/2023
Delivery Units,Adults and Health,Other Agencies - Third Party P,0090562111,Oaktree Homecare Services Ltd,241.81,06/03/2023
Delivery Units,Adults and Health,Other Agencies - Third Party P,0090562112,Oaktree Homecare Services Ltd,703.00,06/03/2023
Delivery Units,Adults and Health,Other Agencies - Third Party P,0090562113,Oaktree Homecare Services Ltd,114.06,06/03/2023
Delivery Units,Adults and Health,Other Agencies - Third Party P,0090562114,Oaktree Homecare Services Ltd,129.50,06/03/2023
Delivery Units,Adults and Health,Other Agencies - Third Party P,0090562117,Oaktree Homecare Services Ltd,323.75,06/03/2023
Delivery Units,Adults and Health,Other Agencies - Third Party P,0090562118,Oaktree Homecare Services Ltd,111.00,06/03/2023
Delivery Units,Adults and Health,Other Agencies - Third Party P,0090562119,Oaktree Homecare Services Ltd,226.63,06/03/2023
Delivery Units,Adults and Health,Other Agencies - Third Party P,0090562121,Oaktree Homecare Services Ltd,46.25,06/03/2023
Delivery Units,Adults and Health,Other Agencies - Third Party P,0090562122,Oaktree Homecare Services Ltd,18.50,06/03/2023
Delivery Units,Adults and Health,Other Agencies - Third Party P,0090562123,Oaktree Homecare Services Ltd,291.38,06/03/2023
Delivery Units,Adults and Health,Other Agencies - Third Party P,0090562124,Oaktree Homecare Services Ltd,379.25,06/03/2023
Delivery Units,Adults and Health,Other Agencies - Third Party P,0090562126,Oaktree Homecare Services Ltd,323.75,06/03/2023
Delivery Units,Adults and Health,Other Agencies - Third Party P,0090562127,Oaktree Homecare Services Ltd,166.50,06/03/2023
Delivery Units,Adults and Health,Other Agencies - Third Party P,0090562128,Oaktree Homecare Services Ltd,129.50,06/03/2023
Delivery Units,Adults and Health,Other Agencies - Third Party P,0090562130,Oaktree Homecare Services Ltd,282.13,06/03/2023
Delivery Units,Adults and Health,Other Agencies - Third Party P,0090562133,Oaktree Homecare Services Ltd,574.88,06/03/2023
Delivery Units,Adults and Health,Other Agencies - Third Party P,0090562134,Oaktree Homecare Services Ltd,830.38,06/03/2023
Delivery Units,Adults and Health,Other Agencies - Third Party P,0090562136,Oaktree Homecare Services Ltd,63.88,06/03/2023
Delivery Units,Adults and Health,Other Agencies - Third Party P,0090562137,Oaktree Homecare Services Ltd,319.38,06/03/2023
Delivery Units,Adults and Health,Other Agencies - Third Party P,0090562138,Oaktree Homecare Services Ltd,59.31,06/03/2023
Delivery Units,Adults and Health,Other Agencies - Third Party P,0090562139,Oaktree Homecare Services Ltd,194.25,06/03/2023
Delivery Units,Adults and Health,Other Agencies - Third Party P,0090562142,Oaktree Homecare Services Ltd,164.25,06/03/2023
Delivery Units,Adults and Health,Other Agencies - Third Party P,0090562143,Oaktree Homecare Services Ltd,241.81,06/03/2023
Delivery Units,Adults and Health,Other Agencies - Third Party P,0090562144,Oaktree Homecare Services Ltd,703.00,06/03/2023
Delivery Units,Adults and Health,Other Agencies - Third Party P,0090562145,Oaktree Homecare Services Ltd,114.06,06/03/2023
Delivery Units,Adults and Health,Other Agencies - Third Party P,0090562146,Oaktree Homecare Services Ltd,129.50,06/03/2023
Delivery Units,Adults and Health,Other Agencies - Third Party P,0090562148,Oaktree Homecare Services Ltd,305.25,06/03/2023
Delivery Units,Adults and Health,Other Agencies - Third Party P,0090562149,Oaktree Homecare Services Ltd,226.63,06/03/2023
Delivery Units,Adults and Health,Other Agencies - Third Party P,0090562151,Oaktree Homecare Services Ltd,46.25,06/03/2023
Delivery Units,Adults and Health,Other Agencies - Third Party P,0090562152,Oaktree Homecare Services Ltd,92.50,06/03/2023
Delivery Units,Adults and Health,Other Agencies - Third Party P,0090562153,Oaktree Homecare Services Ltd,291.38,06/03/2023
Delivery Units,Adults and Health,Other Agencies - Third Party P,0090562155,Oaktree Homecare Services Ltd,323.75,06/03/2023
Delivery Units,Adults and Health,Other Agencies - Third Party P,0090562156,Oaktree Homecare Services Ltd,166.50,06/03/2023
Delivery Units,Adults and Health,Other Agencies - Third Party P,0090562157,Oaktree Homecare Services Ltd,259.00,06/03/2023
Delivery Units,Adults and Health,Other Agencies - Third Party P,0090562159,Oaktree Homecare Services Ltd,263.63,06/03/2023
Delivery Units,Adults and Health,Other Agencies - Third Party P,0090562162,Oaktree Homecare Services Ltd,574.88,06/03/2023
Delivery Units,Adults and Health,Other Agencies - Third Party P,0090562163,Oaktree Homecare Services Ltd,830.38,06/03/2023
Delivery Units,Adults and Health,Other Agencies - Third Party P,0090562165,Oaktree Homecare Services Ltd,63.88,06/03/2023
Delivery Units,Adults and Health,Other Agencies - Third Party P,0090562166,Oaktree Homecare Services Ltd,319.38,06/03/2023
Delivery Units,Adults and Health,Other Agencies - Third Party P,0090562167,Oaktree Homecare Services Ltd,59.31,06/03/2023
Delivery Units,Adults and Health,Other Agencies - Third Party P,0090562168,Oaktree Homecare Services Ltd,194.25,06/03/2023
Delivery Units,Adults and Health,Other Agencies - Third Party P,0090562173,Oaktree Homecare Services Ltd,164.25,06/03/2023
Delivery Units,Adults and Health,Other Agencies - Third Party P,0090562174,Oaktree Homecare Services Ltd,241.81,06/03/2023
Delivery Units,Adults and Health,Other Agencies - Third Party P,0090562175,Oaktree Homecare Services Ltd,703.00,06/03/2023
Delivery Units,Adults and Health,Other Agencies - Third Party P,0090562176,Oaktree Homecare Services Ltd,114.06,06/03/2023
Delivery Units,Adults and Health,Other Agencies - Third Party P,0090562177,Oaktree Homecare Services Ltd,129.50,06/03/2023
Delivery Units,Adults and Health,Other Agencies - Third Party P,0090562179,Oaktree Homecare Services Ltd,305.25,06/03/2023
Delivery Units,Adults and Health,Other Agencies - Third Party P,0090562180,Oaktree Homecare Services Ltd,226.63,06/03/2023
Delivery Units,Adults and Health,Other Agencies - Third Party P,0090562182,Oaktree Homecare Services Ltd,46.25,06/03/2023
Delivery Units,Adults and Health,Other Agencies - Third Party P,0090562183,Oaktree Homecare Services Ltd,92.50,06/03/2023
Delivery Units,Adults and Health,Other Agencies - Third Party P,0090562184,Oaktree Homecare Services Ltd,291.38,06/03/2023
Delivery Units,Adults and Health,Other Agencies - Third Party P,0090562185,Oaktree Homecare Services Ltd,217.38,06/03/2023
Delivery Units,Adults and Health,Other Agencies - Third Party P,0090562187,Oaktree Homecare Services Ltd,323.75,06/03/2023
Delivery Units,Adults and Health,Other Agencies - Third Party P,0090562188,Oaktree Homecare Services Ltd,166.50,06/03/2023
Delivery Units,Adults and Health,Other Agencies - Third Party P,0090562189,Oaktree Homecare Services Ltd,259.00,06/03/2023
Delivery Units,Adults and Health,Other Agencies - Third Party P,0090562191,Oaktree Homecare Services Ltd,263.63,06/03/2023
Delivery Units,Adults and Health,Other Agencies - Third Party P,0090562194,Oaktree Homecare Services Ltd,574.88,06/03/2023
Delivery Units,Adults and Health,Other Agencies - Third Party P,0090562195,Oaktree Homecare Services Ltd,830.38,06/03/2023
Delivery Units,Adults and Health,Other Agencies - Third Party P,0090562197,Oaktree Homecare Services Ltd,63.88,06/03/2023
Delivery Units,Adults and Health,Other Agencies - Third Party P,0090562198,Oaktree Homecare Services Ltd,319.38,06/03/2023
Delivery Units,Adults and Health,Other Agencies - Third Party P,0090562199,Oaktree Homecare Services Ltd,59.31,06/03/2023
Delivery Units,Adults and Health,Other Agencies - Third Party P,0090562200,Oaktree Homecare Services Ltd,194.25,06/03/2023
Delivery Units,Adults and Health,Other Agencies - Third Party P,0090562274,Concept Care Solutions Ltd,185.58,08/03/2023
Delivery Units,Adults and Health,Other Agencies - Third Party P,0090562275,Concept Care Solutions Ltd,110.25,08/03/2023
Delivery Units,Adults and Health,Other Agencies - Third Party P,0090562277,Concept Care Solutions Ltd,247.44,08/03/2023
Delivery Units,Adults and Health,Other Agencies - Third Party P,0090562280,Concept Care Solutions Ltd,154.65,08/03/2023
Delivery Units,Adults and Health,Other Agencies - Third Party P,0090562300,Kaamil Education Ltd,"1,360.00",08/03/2023
Delivery Units,Adults and Health,Other Agencies - Third Party P,0090562302,Kaamil Education Ltd,"1,360.00",08/03/2023
Delivery Units,Adults and Health,Other Agencies - Third Party P,0090562672,Metro Homecare Ltd,259.50,09/03/2023
Delivery Units,Adults and Health,Other Agencies - Third Party P,0090562673,Metro Homecare Ltd,38.93,09/03/2023
Delivery Units,Adults and Health,Other Agencies - Third Party P,0090562674,I-Care Recruitment Services Ltd,"5,014.84",09/03/2023
Delivery Units,Adults and Health,Other Agencies - Third Party P,0090562675,Metro Homecare Ltd,302.75,09/03/2023
Delivery Units,Adults and Health,Other Agencies - Third Party P,0090562676,Metro Homecare Ltd,90.83,09/03/2023
Delivery Units,Adults and Health,Other Agencies - Third Party P,0090562677,Metro Homecare Ltd,272.48,09/03/2023
Delivery Units,Adults and Health,Other Agencies - Third Party P,0090562679,Metro Homecare Ltd,302.75,09/03/2023
Delivery Units,Adults and Health,Other Agencies - Third Party P,0090562682,Metro Homecare Ltd,873.65,09/03/2023
Delivery Units,Adults and Health,Other Agencies - Third Party P,0090562683,Metro Homecare Ltd,181.65,09/03/2023
Delivery Units,Adults and Health,Other Agencies - Third Party P,0090562685,Metro Homecare Ltd,363.30,09/03/2023
Delivery Units,Adults and Health,Other Agencies - Third Party P,0090562686,Metro Homecare Ltd,129.75,09/03/2023
Delivery Units,Adults and Health,Other Agencies - Third Party P,0090562689,I-Care Recruitment Services Ltd,902.58,09/03/2023
Delivery Units,Adults and Health,Other Agencies - Third Party P,0090562690,Metro Homecare Ltd,211.93,09/03/2023
Delivery Units,Adults and Health,Other Agencies - Third Party P,0090562697,Metro Homecare Ltd,726.60,09/03/2023
Delivery Units,Adults and Health,Other Agencies - Third Party P,0090562701,Metro Homecare Ltd,259.50,09/03/2023
Delivery Units,Adults and Health,Other Agencies - Third Party P,0090562702,Metro Homecare Ltd,38.93,09/03/2023
Delivery Units,Adults and Health,Other Agencies - Third Party P,0090562703,I-Care Recruitment Services Ltd,"19,578.04",09/03/2023
Delivery Units,Adults and Health,Other Agencies - Third Party P,0090562704,Metro Homecare Ltd,302.75,09/03/2023
Delivery Units,Adults and Health,Other Agencies - Third Party P,0090562706,Metro Homecare Ltd,90.83,09/03/2023
Delivery Units,Adults and Health,Other Agencies - Third Party P,0090562707,Metro Homecare Ltd,272.48,09/03/2023
Delivery Units,Adults and Health,Other Agencies - Third Party P,0090562709,Metro Homecare Ltd,302.75,09/03/2023
Delivery Units,Adults and Health,Other Agencies - Third Party P,0090562712,Metro Homecare Ltd,873.65,09/03/2023
Delivery Units,Adults and Health,Other Agencies - Third Party P,0090562713,Metro Homecare Ltd,181.65,09/03/2023
Delivery Units,Adults and Health,Other Agencies - Third Party P,0090562716,Metro Homecare Ltd,363.30,09/03/2023
Delivery Units,Adults and Health,Other Agencies - Third Party P,0090562717,Metro Homecare Ltd,129.75,09/03/2023
Delivery Units,Adults and Health,Other Agencies - Third Party P,0090562721,Metro Homecare Ltd,211.93,09/03/2023
Delivery Units,Adults and Health,Other Agencies - Third Party P,0090562726,Metro Homecare Ltd,726.60,09/03/2023
Delivery Units,Adults and Health,Other Agencies - Third Party P,0090562731,Metro Homecare Ltd,259.50,09/03/2023
Delivery Units,Adults and Health,Other Agencies - Third Party P,0090562732,Metro Homecare Ltd,38.93,09/03/2023
Delivery Units,Adults and Health,Other Agencies - Third Party P,0090562733,Metro Homecare Ltd,302.75,09/03/2023
Delivery Units,Adults and Health,Other Agencies - Third Party P,0090562735,Metro Homecare Ltd,90.83,09/03/2023
Delivery Units,Adults and Health,Other Agencies - Third Party P,0090562736,Metro Homecare Ltd,272.48,09/03/2023
Delivery Units,Adults and Health,Other Agencies - Third Party P,0090562738,Metro Homecare Ltd,302.75,09/03/2023
Delivery Units,Adults and Health,Other Agencies - Third Party P,0090562741,Metro Homecare Ltd,873.65,09/03/2023
Delivery Units,Adults and Health,Other Agencies - Third Party P,0090562742,Metro Homecare Ltd,181.65,09/03/2023
Delivery Units,Adults and Health,Other Agencies - Third Party P,0090562744,Metro Homecare Ltd,363.30,09/03/2023
Delivery Units,Adults and Health,Other Agencies - Third Party P,0090562745,Metro Homecare Ltd,129.75,09/03/2023
Delivery Units,Adults and Health,Other Agencies - Third Party P,0090562749,Metro Homecare Ltd,211.93,09/03/2023
Delivery Units,Adults and Health,Other Agencies - Third Party P,0090562752,Metro Homecare Ltd,726.60,09/03/2023
Delivery Units,Adults and Health,Other Agencies - Third Party P,0090562758,Metro Homecare Ltd,259.50,09/03/2023
Delivery Units,Adults and Health,Other Agencies - Third Party P,0090562759,Metro Homecare Ltd,38.93,09/03/2023
Delivery Units,Adults and Health,Other Agencies - Third Party P,0090562760,Metro Homecare Ltd,302.75,09/03/2023
Delivery Units,Adults and Health,Other Agencies - Third Party P,0090562762,Metro Homecare Ltd,90.83,09/03/2023
Delivery Units,Adults and Health,Other Agencies - Third Party P,0090562763,Metro Homecare Ltd,272.48,09/03/2023
Delivery Units,Adults and Health,Other Agencies - Third Party P,0090562765,Metro Homecare Ltd,302.75,09/03/2023
Delivery Units,Adults and Health,Other Agencies - Third Party P,0090562768,Metro Homecare Ltd,873.65,09/03/2023
Delivery Units,Adults and Health,Other Agencies - Third Party P,0090562769,Metro Homecare Ltd,181.65,09/03/2023
Delivery Units,Adults and Health,Other Agencies - Third Party P,0090562771,Metro Homecare Ltd,363.30,09/03/2023
Delivery Units,Adults and Health,Other Agencies - Third Party P,0090562772,Metro Homecare Ltd,229.23,09/03/2023
Delivery Units,Adults and Health,Other Agencies - Third Party P,0090562776,Metro Homecare Ltd,211.93,09/03/2023
Delivery Units,Adults and Health,Other Agencies - Third Party P,0090562778,Metro Homecare Ltd,726.60,09/03/2023
Delivery Units,Adults and Health,Other Agencies - Third Party P,0090562911,Servesoul Limited,262.08,09/03/2023
Delivery Units,Adults and Health,Other Agencies - Third Party P,0090562913,Servesoul Limited,131.04,09/03/2023
Delivery Units,Adults and Health,Other Agencies - Third Party P,0090562915,Servesoul Limited,491.40,09/03/2023
Delivery Units,Adults and Health,Other Agencies - Third Party P,0090562916,Servesoul Limited,131.04,09/03/2023
Delivery Units,Adults and Health,Other Agencies - Third Party P,0090562917,Servesoul Limited,313.56,09/03/2023
Delivery Units,Adults and Health,Other Agencies - Third Party P,0090562918,Servesoul Limited,196.56,09/03/2023
Delivery Units,Adults and Health,Other Agencies - Third Party P,0090562919,Servesoul Limited,659.88,09/03/2023
Delivery Units,Adults and Health,Other Agencies - Third Party P,0090562920,Servesoul Limited,"2,090.64",09/03/2023
Delivery Units,Adults and Health,Other Agencies - Third Party P,0090562921,Servesoul Limited,131.04,09/03/2023
Delivery Units,Adults and Health,Other Agencies - Third Party P,0090562922,Servesoul Limited,56.16,09/03/2023
Delivery Units,Adults and Health,Other Agencies - Third Party P,0090562925,Servesoul Limited,"1,179.36",09/03/2023
Delivery Units,Adults and Health,Other Agencies - Third Party P,0090562926,Servesoul Limited,149.76,09/03/2023
Delivery Units,Adults and Health,Other Agencies - Third Party P,0090562927,Servesoul Limited,262.08,09/03/2023
Delivery Units,Adults and Health,Other Agencies - Third Party P,0090562929,Servesoul Limited,589.68,09/03/2023
Delivery Units,Adults and Health,Other Agencies - Third Party P,0090562930,Servesoul Limited,196.56,09/03/2023
Delivery Units,Adults and Health,Other Agencies - Third Party P,0090562931,Servesoul Limited,786.24,09/03/2023
Delivery Units,Adults and Health,Other Agencies - Third Party P,0090562933,Servesoul Limited,196.56,09/03/2023
Delivery Units,Adults and Health,Other Agencies - Third Party P,0090562936,Servesoul Limited,294.84,09/03/2023
Delivery Units,Adults and Health,Other Agencies - Third Party P,0090562937,Servesoul Limited,196.56,09/03/2023
Delivery Units,Adults and Health,Other Agencies - Third Party P,0090562939,Servesoul Limited,229.32,09/03/2023
Delivery Units,Adults and Health,Other Agencies - Third Party P,0090562940,Servesoul Limited,163.80,09/03/2023
Delivery Units,Adults and Health,Other Agencies - Third Party P,0090562941,Servesoul Limited,"1,113.84",09/03/2023
Delivery Units,Adults and Health,Other Agencies - Third Party P,0090562943,Servesoul Limited,248.04,09/03/2023
Delivery Units,Adults and Health,Other Agencies - Third Party P,0090562944,Servesoul Limited,313.56,09/03/2023
Delivery Units,Adults and Health,Other Agencies - Third Party P,0090562945,Servesoul Limited,196.56,09/03/2023
Delivery Units,Adults and Health,Other Agencies - Third Party P,0090562946,Servesoul Limited,56.16,09/03/2023
Delivery Units,Adults and Health,Other Agencies - Third Party P,0090562948,Servesoul Limited,589.68,09/03/2023
Delivery Units,Adults and Health,Other Agencies - Third Party P,0090562949,Servesoul Limited,589.68,09/03/2023
Delivery Units,Adults and Health,Other Agencies - Third Party P,0090562950,Servesoul Limited,215.28,09/03/2023
Delivery Units,Adults and Health,Other Agencies - Third Party P,0090562951,Servesoul Limited,397.80,09/03/2023
Delivery Units,Adults and Health,Other Agencies - Third Party P,0090562952,Servesoul Limited,229.32,09/03/2023
Delivery Units,Adults and Health,Other Agencies - Third Party P,0090562954,Servesoul Limited,131.04,09/03/2023
Delivery Units,Adults and Health,Other Agencies - Third Party P,0090562955,Servesoul Limited,187.20,09/03/2023
Delivery Units,Adults and Health,Other Agencies - Third Party P,0090562958,Servesoul Limited,336.96,09/03/2023
Delivery Units,Adults and Health,Other Agencies - Third Party P,0090562961,Servesoul Limited,299.52,09/03/2023
Delivery Units,Adults and Health,Other Agencies - Third Party P,0090562964,Servesoul Limited,56.16,09/03/2023
Delivery Units,Adults and Health,Other Agencies - Third Party P,0090562965,Servesoul Limited,589.68,09/03/2023
Delivery Units,Adults and Health,Other Agencies - Third Party P,0090562969,Servesoul Limited,589.68,09/03/2023
Delivery Units,Adults and Health,Other Agencies - Third Party P,0090562977,Servesoul Limited,257.40,09/03/2023
Delivery Units,Adults and Health,Other Agencies - Third Party P,0090562981,Servesoul Limited,589.68,09/03/2023
Delivery Units,Adults and Health,Other Agencies - Third Party P,0090562982,Servesoul Limited,229.32,09/03/2023
Delivery Units,Adults and Health,Other Agencies - Third Party P,0090562984,Servesoul Limited,149.76,09/03/2023
Delivery Units,Adults and Health,Other Agencies - Third Party P,0090562985,Servesoul Limited,496.08,09/03/2023
Delivery Units,Adults and Health,Other Agencies - Third Party P,0090562992,Servesoul Limited,262.08,09/03/2023
Delivery Units,Adults and Health,Other Agencies - Third Party P,0090562994,Servesoul Limited,131.04,09/03/2023
Delivery Units,Adults and Health,Other Agencies - Third Party P,0090562996,Servesoul Limited,491.40,09/03/2023
Delivery Units,Adults and Health,Other Agencies - Third Party P,0090562997,Servesoul Limited,131.04,09/03/2023
Delivery Units,Adults and Health,Other Agencies - Third Party P,0090562998,Servesoul Limited,313.56,09/03/2023
Delivery Units,Adults and Health,Other Agencies - Third Party P,0090562999,Servesoul Limited,196.56,09/03/2023
Delivery Units,Adults and Health,Other Agencies - Third Party P,0090563000,Servesoul Limited,613.08,09/03/2023
Delivery Units,Adults and Health,Other Agencies - Third Party P,0090563001,Servesoul Limited,"2,090.64",09/03/2023
Delivery Units,Adults and Health,Other Agencies - Third Party P,0090563002,Servesoul Limited,131.04,09/03/2023
Delivery Units,Adults and Health,Other Agencies - Third Party P,0090563003,Servesoul Limited,65.52,09/03/2023
Delivery Units,Adults and Health,Other Agencies - Third Party P,0090563006,Servesoul Limited,"1,179.36",09/03/2023
Delivery Units,Adults and Health,Other Agencies - Third Party P,0090563007,Servesoul Limited,149.76,09/03/2023
Delivery Units,Adults and Health,Other Agencies - Third Party P,0090563008,Servesoul Limited,262.08,09/03/2023
Delivery Units,Adults and Health,Other Agencies - Third Party P,0090563010,Servesoul Limited,589.68,09/03/2023
Delivery Units,Adults and Health,Other Agencies - Third Party P,0090563011,Servesoul Limited,196.56,09/03/2023
Delivery Units,Adults and Health,Other Agencies - Third Party P,0090563012,Servesoul Limited,786.24,09/03/2023
Delivery Units,Adults and Health,Other Agencies - Third Party P,0090563014,Servesoul Limited,196.56,09/03/2023
Delivery Units,Adults and Health,Other Agencies - Third Party P,0090563017,Servesoul Limited,294.84,09/03/2023
Delivery Units,Adults and Health,Other Agencies - Third Party P,0090563018,Servesoul Limited,196.56,09/03/2023
Delivery Units,Adults and Health,Other Agencies - Third Party P,0090563020,Servesoul Limited,229.32,09/03/2023
Delivery Units,Adults and Health,Other Agencies - Third Party P,0090563021,Servesoul Limited,163.80,09/03/2023
Delivery Units,Adults and Health,Other Agencies - Third Party P,0090563022,Servesoul Limited,"1,113.84",09/03/2023
Delivery Units,Adults and Health,Other Agencies - Third Party P,0090563024,Servesoul Limited,248.04,09/03/2023
Delivery Units,Adults and Health,Other Agencies - Third Party P,0090563025,Servesoul Limited,313.56,09/03/2023
Delivery Units,Adults and Health,Other Agencies - Third Party P,0090563026,Servesoul Limited,56.16,09/03/2023
Delivery Units,Adults and Health,Other Agencies - Third Party P,0090563028,Servesoul Limited,589.68,09/03/2023
Delivery Units,Adults and Health,Other Agencies - Third Party P,0090563029,Servesoul Limited,561.60,09/03/2023
Delivery Units,Adults and Health,Other Agencies - Third Party P,0090563030,Servesoul Limited,196.56,09/03/2023
Delivery Units,Adults and Health,Other Agencies - Third Party P,0090563031,Servesoul Limited,397.80,09/03/2023
Delivery Units,Adults and Health,Other Agencies - Third Party P,0090563032,Servesoul Limited,229.32,09/03/2023
Delivery Units,Adults and Health,Other Agencies - Third Party P,0090563034,Servesoul Limited,131.04,09/03/2023
Delivery Units,Adults and Health,Other Agencies - Third Party P,0090563035,Servesoul Limited,187.20,09/03/2023
Delivery Units,Adults and Health,Other Agencies - Third Party P,0090563040,Servesoul Limited,299.52,09/03/2023
Delivery Units,Adults and Health,Other Agencies - Third Party P,0090563043,Servesoul Limited,56.16,09/03/2023
Delivery Units,Adults and Health,Other Agencies - Third Party P,0090563044,Servesoul Limited,589.68,09/03/2023
Delivery Units,Adults and Health,Other Agencies - Third Party P,0090563047,Servesoul Limited,589.68,09/03/2023
Delivery Units,Adults and Health,Other Agencies - Third Party P,0090563054,Servesoul Limited,257.40,09/03/2023
Delivery Units,Adults and Health,Other Agencies - Third Party P,0090563057,Servesoul Limited,589.68,09/03/2023
Delivery Units,Adults and Health,Other Agencies - Third Party P,0090563058,Servesoul Limited,229.32,09/03/2023
Delivery Units,Adults and Health,Other Agencies - Third Party P,0090563060,Servesoul Limited,65.52,09/03/2023
Delivery Units,Adults and Health,Other Agencies - Third Party P,0090563061,Servesoul Limited,294.84,09/03/2023
Delivery Units,Adults and Health,Other Agencies - Third Party P,0090563103,MI HOMECARE LIMITED,179.74,09/03/2023
Delivery Units,Adults and Health,Other Agencies - Third Party P,0090563104,MI HOMECARE LIMITED,"1,513.60",09/03/2023
Delivery Units,Adults and Health,Other Agencies - Third Party P,0090563105,MI HOMECARE LIMITED,236.50,09/03/2023
Delivery Units,Adults and Health,Other Agencies - Third Party P,0090563106,MI HOMECARE LIMITED,"3,178.56",09/03/2023
Delivery Units,Adults and Health,Other Agencies - Third Party P,0090563107,MI HOMECARE LIMITED,283.80,09/03/2023
Delivery Units,Adults and Health,Other Agencies - Third Party P,0090563108,MI HOMECARE LIMITED,70.95,09/03/2023
Delivery Units,Adults and Health,Other Agencies - Third Party P,0090563109,MI HOMECARE LIMITED,198.66,09/03/2023
Delivery Units,Adults and Health,Other Agencies - Third Party P,0090563112,MI HOMECARE LIMITED,179.74,09/03/2023
Delivery Units,Adults and Health,Other Agencies - Third Party P,0090563113,MI HOMECARE LIMITED,245.96,09/03/2023
Delivery Units,Adults and Health,Other Agencies - Third Party P,0090563114,MI HOMECARE LIMITED,85.14,09/03/2023
Delivery Units,Adults and Health,Other Agencies - Third Party P,0090563116,MI HOMECARE LIMITED,983.84,09/03/2023
Delivery Units,Adults and Health,Other Agencies - Third Party P,0090563117,MI HOMECARE LIMITED,302.72,09/03/2023
Delivery Units,Adults and Health,Other Agencies - Third Party P,0090563118,MI HOMECARE LIMITED,132.44,09/03/2023
Delivery Units,Adults and Health,Other Agencies - Third Party P,0090563119,MI HOMECARE LIMITED,297.99,09/03/2023
Delivery Units,Adults and Health,Other Agencies - Third Party P,0090563121,MI HOMECARE LIMITED,198.66,09/03/2023
Delivery Units,Adults and Health,Other Agencies - Third Party P,0090563123,MI HOMECARE LIMITED,293.26,09/03/2023
Delivery Units,Adults and Health,Other Agencies - Third Party P,0090563124,MI HOMECARE LIMITED,293.26,09/03/2023
Delivery Units,Adults and Health,Other Agencies - Third Party P,0090563125,MI HOMECARE LIMITED,"1,660.23",09/03/2023
Delivery Units,Adults and Health,Other Agencies - Third Party P,0090563126,MI HOMECARE LIMITED,293.26,09/03/2023
Delivery Units,Adults and Health,Other Agencies - Third Party P,0090563127,MI HOMECARE LIMITED,250.69,09/03/2023
Delivery Units,Adults and Health,Other Agencies - Third Party P,0090563128,MI HOMECARE LIMITED,70.95,09/03/2023
Delivery Units,Adults and Health,Other Agencies - Third Party P,0090563129,MI HOMECARE LIMITED,482.46,09/03/2023
Delivery Units,Adults and Health,Other Agencies - Third Party P,0090563130,MI HOMECARE LIMITED,231.77,09/03/2023
Delivery Units,Adults and Health,Other Agencies - Third Party P,0090563131,MI HOMECARE LIMITED,56.76,09/03/2023
Delivery Units,Adults and Health,Other Agencies - Third Party P,0090563133,MI HOMECARE LIMITED,85.14,09/03/2023
Delivery Units,Adults and Health,Other Agencies - Third Party P,0090563134,MI HOMECARE LIMITED,85.14,09/03/2023
Delivery Units,Adults and Health,Other Agencies - Third Party P,0090563136,MI HOMECARE LIMITED,264.88,09/03/2023
Delivery Units,Adults and Health,Other Agencies - Third Party P,0090563137,MI HOMECARE LIMITED,264.88,09/03/2023
Delivery Units,Adults and Health,Other Agencies - Third Party P,0090563138,MI HOMECARE LIMITED,66.22,09/03/2023
Delivery Units,Adults and Health,Other Agencies - Third Party P,0090563139,MI HOMECARE LIMITED,335.83,09/03/2023
Delivery Units,Adults and Health,Other Agencies - Third Party P,0090563141,MI HOMECARE LIMITED,85.14,09/03/2023
Delivery Units,Adults and Health,Other Agencies - Third Party P,0090563143,MI HOMECARE LIMITED,127.71,09/03/2023
Delivery Units,Adults and Health,Other Agencies - Third Party P,0090563144,MI HOMECARE LIMITED,255.42,09/03/2023
Delivery Units,Adults and Health,Other Agencies - Third Party P,0090563146,MI HOMECARE LIMITED,198.66,09/03/2023
Delivery Units,Adults and Health,Other Agencies - Third Party P,0090563147,MI HOMECARE LIMITED,212.66,09/03/2023
Delivery Units,Adults and Health,Other Agencies - Third Party P,0090563148,MI HOMECARE LIMITED,198.66,09/03/2023
Delivery Units,Adults and Health,Other Agencies - Third Party P,0090563151,MI HOMECARE LIMITED,132.44,09/03/2023
Delivery Units,Adults and Health,Other Agencies - Third Party P,0090563152,MI HOMECARE LIMITED,28.38,09/03/2023
Delivery Units,Adults and Health,Other Agencies - Third Party P,0090563154,MI HOMECARE LIMITED,279.07,09/03/2023
